Workbook

Sheet Assumptions (hidden)
A1: Assumptions
A3: Investment growth (p.a.) | B3: 0.06
A4: Inflation (p.a.) | B4: 0.06
A8: Fees all incl. VAT
B9: Fees used | F9: Default configured values | I9: Overriding fee deals
A11: Ongoing Fees | B11: Rand | F11: Rand | I11: Rand
A12: Administration fee (*1) | B12: =IF(I12<>"",I12,F12) -> 0 | F12: =IF(Input!A3="Living Annuity - Monthly Payment",9*12,IF(Input!A3="Living Annuity - Quarterly Payment",15*4,IF(Input!A3="Living Annuity - Bi-Annual Payment",24*2,IF(Input!A3="Living Annuity - Annual Payment",42,0)))) -> 0
A15: (*1) Admininistration fee limits | B15: Rand p.m | C15: Increase p.a | F15: Rand p.m | G15: Increase p.a | I15: Rand p.m | J15: Increase p.a
A16: Min | B16: 0 | C16: =IF(J16<>"",J16,G16) -> 0.06 | F16: 0 | G16: 0.06
A17: Max | B17: 99999999999 | C17: =IF(J17<>"",J17,G17) -> 0.06 | F17: 10 | G17: 0.06
A18: Minimum Debit Order Limit | B18: 500
A20: Other fees
A21: Model
A23: Gross Growth | B23: 0.1
A24: Growth Factor | B24: 0.095 | C24: * Calibrated
A26: Debit order weight | B26: 5 | C26: This value was set by not taking low debit orders into account. Should therefore not need to change due to the minimum on client based fee charging.
C27: Influences DO and initial & ongoing advisor fee
A28: Product List | B28: Products | C28: RIY Term
B29: INV | C29: 10
B30: RA | C30: 10
B31: PRES | C31: 10
B32: LA | C32: 15
B33: LWIP | C33: 10
A35: Initial Ad_DO factor | B35: 0.587 | C35: Sensitivty/influence to rand based ongoing advisor fee or initial fee on debit order
A36: Rand Based Fee Factor | B36: 1.125 | C36: Influence initial advisor fee on SP & D/O
A39: Other Transaction fees | B39: none

Sheet Input (hidden)
A1: Fund Input | Q1: Always set to NIL as no fee to manco
A2: Product | B2: Fund Name (Select multiple funds from the drop down list only) | C2: Existing Market Value (Insert values from investor statement) | D2: New Lump Sum (new investment or additional investment into existing account) | E2: New recurring debit order (p.a.) (new or change to an existing debit order) | F2: Existing debit orders (p.a.) | G2: Debit order annual increase % | H2: Regular withdrawals (p.a.) (negative value) | I2: Regular withrdawal increase % (p.a.) | J2: Fund Weight % | K2: Gross TER + TC = TIC (incl VAT) | L2: Client rebate (incl VAT) | M2: Net TIC per client (incl VAT) | N2: Initial Adviser Fee % (Lump sums) (incl VAT) | O2: Initial Adviser Fee % - Recurring (same as lump sums) (incl VAT) | P2: Ongoing Adviser Fee % (incl VAT) | Q2: Initial administration Fee % (incl VAT) | R2: Ongoing administration Fee % (incl VAT)
A3: IPMC Direct Investments Including TFSA | B3: Click on cell to select fund from the drop down list | D3: 0 | E3: 0 | G3: 0 | H3: 0 | I3: 0 | J3: =SUM(C3:F3)/SUM($C$13:$F$13) ->  | K3: =IFERROR(VLOOKUP(B3,'Latest available TER'!B3:I125,8,FALSE)/100,0) -> 0 | L3: 0 | M3: =K3-L3 -> 0 | N3: 0 | O3: 0 | P3: 0 | Q3: 0 | R3: 0
B4: Click on cell to select fund from the drop down list | C4: 0 | D4: 0 | E4: 0 | G4: 0 | H4: 0 | I4: 0 | J4: =SUM(C4:F4)/SUM($C$13:$F$13) ->  | K4: =IFERROR(VLOOKUP(B4,'Latest available TER'!B4:I126,8,FALSE)/100,0) -> 0 | L4: 0 | M4: =K4-L4 -> 0 | N4: 0 | O4: 0 | P4: 0 | Q4: 0 | R4: 0
B5: Click on cell to select fund from the drop down list | C5: 0 | D5: 0 | E5: 0 | G5: 0 | H5: 0 | I5: 0 | K5: =IFERROR(VLOOKUP(B5,'Latest available TER'!B5:I127,8,FALSE)/100,0) -> 0 | L5: 0 | M5: 0 | N5: 0 | O5: 0 | P5: 0 | Q5: 0 | R5: 0
C6: 0 | K6: =IFERROR(VLOOKUP(B6,'Latest available TER'!B6:I128,8,FALSE)/100,0) -> 0 | L6: 0 | M6: 0 | N6: 0 | O6: =+N6 -> 0 | P6: 0 | Q6: 0 | R6: 0
C7: 0 | F7: 0 | K7: =IFERROR(VLOOKUP(B7,'Latest available TER'!B7:I129,8,FALSE)/100,0) -> 0 | L7: 0 | M7: 0 | N7: 0 | O7: 0 | P7: 0 | Q7: 0 | R7: 0
C8: 0 | K8: =IFERROR(VLOOKUP(B8,'Latest available TER'!B8:I130,8,FALSE)/100,0) -> 0 | L8: 0 | M8: 0 | N8: 0 | O8: 0 | P8: 0 | Q8: 0 | R8: 0
C9: 0 | K9: =IFERROR(VLOOKUP(B9,'Latest available TER'!B12:I131,8,FALSE)/100,0) -> 0 | L9: 0 | M9: 0 | N9: 0 | O9: 0 | P9: 0 | Q9: 0 | R9: 0
C10: 0 | K10: =IFERROR(VLOOKUP(B10,'Latest available TER'!B13:I132,8,FALSE)/100,0) -> 0 | L10: 0 | M10: 0 | N10: 0 | O10: 0 | P10: 0 | Q10: 0 | R10: 0
C11: 0 | K11: =IFERROR(VLOOKUP(B11,'Latest available TER'!B14:I133,8,FALSE)/100,0) -> 0 | L11: 0 | M11: 0 | N11: 0 | O11: 0 | P11: 0 | Q11: 0 | R11: 0
C12: 0 | K12: =IFERROR(VLOOKUP(B12,'Latest available TER'!B15:I134,8,FALSE)/100,0) -> 0 | L12: 0 | M12: 0 | N12: 0 | O12: 0 | P12: 0 | Q12: 0 | R12: 0
A13: Totals | B13: All Funds | C13: =SUM(C3:C12) -> 0 | D13: =SUM(D3:D12) -> 0 | E13: =SUM(E3:E12) -> 0 | F13: =SUM(F3:F12) -> 0 | G13: =IFERROR((SUMPRODUCT(E3:E12,G3:G12)+SUMPRODUCT(F3:F12,G3:G12))/SUM(E3:F12),0) -> 0 | H13: =SUM(H3:H12)-H14*12 -> 0 | I13: =IFERROR(SUMPRODUCT(H3:H12,I3:I12)/SUM(H3:H12),0) -> 0 | J13: =SUM(J3:J12) ->  | K13: =SUMPRODUCT($J$3:$J$12,K3:K12) ->  | N13: =SUMPRODUCT($J$3:$J$12,N3:N12) ->  | Q13: =SUMPRODUCT($J$3:$J$12,Q3:Q12) -> 
E14: Total active regular withdrawals (p.m.) | H14: 0
A16: Adviser Fee Summary
A17: Initial Comm - Lump Sum | B17: Initial Comm - Recurring (p.a) | C17: Ongoing Comm
A18: =N13 ->  | B18: =O13 ->  | C18: =P13 -> 
A21: Recurring Investment Frequency | B21: Monthly
A22: Client age | B22: n/a
A25: Investor name | B25: Ms V Hendricks

Sheet Lump Sum (hidden)
B3: Lump sum - Simplified methodology
B13: All Fees, Costs and EAC components shown Inclusive of VAT
C14: A
B15: Investment amount (Lump sum) | C15: =Input!D13 -> 0
B17: Investment Funds | C17: Allocation | D17: Initial Fund Fee | E17: TIC
B18: =Input!B3 -> Click on cell to select fund from the drop down list | C18: =Input!J3 ->  | D18: =Input!N3 -> 0 | E18: =Input!M3 -> 0
B19: =Input!B4 -> Click on cell to select fund from the drop down list | C19: =Input!J4 ->  | D19: =Input!N4 -> 0 | E19: =Input!M4 -> 0
B20: =Input!B5 -> Click on cell to select fund from the drop down list | C20: =Input!J5 ->  | D20: =Input!N5 -> 0 | E20: =Input!M5 -> 0
B21: =Input!B6 -> 0 | C21: =Input!J6 ->  | D21: =Input!N6 -> 0 | E21: =Input!M6 -> 0
B22: =Input!B7 -> 0 | C22: =Input!J7 ->  | D22: =Input!N7 -> 0 | E22: =Input!M7 -> 0
B23: =Input!B8 -> 0 | C23: =Input!J8 ->  | D23: =Input!N8 -> 0 | E23: =Input!M8 -> 0
B24: =Input!B9 -> 0 | C24: =Input!J9 ->  | D24: =Input!N9 -> 0 | E24: =Input!M9 -> 0
B25: =Input!B10 -> 0 | C25: =Input!J10 ->  | D25: =Input!N10 -> 0 | E25: =Input!M10 -> 0
B26: Weighted Average TER | C26: =SUM(C18:C25) ->  | D26: =SUMPRODUCT(D18:D25,$C$18:$C$25) ->  | E26: =SUMPRODUCT(E18:E25,$C$18:$C$25) -> 
B29: Initial Fees | C29: Percentage
B30: Fund management | C30: =D26 -> 
B31: Administration | C31: =Assumptions!#REF!/'Lump Sum'!C15 -> 
B32: Financial advice | C32: =Input!A18 -> 
B33: Total initial fees | C33: =C31+C32 -> 
B35: Annual Fees | C35: Percentage
B36: Administration fee | C36: ='Admin fee calc'!#REF! -> 
B37: Financial advice fee | C37: =Input!C18 -> 
B38: Total annual fees | C38: =SUM(C36:C37) -> 
C40: Term:
B41: EAC - including VAT | C41: 1 | D41: 3 | E41: 5 | F41: =IF(Input!A3="Retirement Product",MAX(55-Input!B22,10),10) -> 10
C42: 1 Year | D42: 3 Years | E42: 5 Years | F42: Term to maturity
B43: Investment Management Charges | C43: =E26 ->  | D43: =E26 ->  | E43: =E26 ->  | F43: =E26 -> 
B44: Advice Charges1 | C44: =C37+C32/C41 ->  | D44: =C37+C32/D41 ->  | E44: =C37+C32/E41 ->  | F44: =C37+C32/F41 -> 
B45: Administration Charges2 | C45: =C36+C31 ->  | D45: =C36+C31/3 ->  | E45: =C36+C31/5 ->  | F45: =C36+C31/IF(Input!A3="Fixed Bond",5,10) ->  | G45: **Note that admin fee was calculated using the simple methodology.
B46: Other Charges3 | C46: 0 | D46: 0 | E46: 0 | F46: 0
B47: Effective Annual Cost | C47: =SUM(C43:C46) ->  | D47: =SUM(D43:D46) -> 
B49: Notes:
B50: Assume that on-going costs/fees are levied monthly in arrears for this exercise.
B51: Assume recurring investments are made monthly in arrears
B52: The impact of each component must be calculated independently from other components.
B53: The total EAC is the sum of the individual components' contribution to EAC.
B54: Assume that term to maturity is 10 years, except for fixed bonds - remianing term is used.
B55: Assume that the lump sum investment is made at the start of the month. Initial fees are deducted at the start of the month and recurring fees are deducted from the end of the first month.
B56: Assume that fees are charged on the fund value when the fee occurs (rather than an average fund value over the month).
B59: Can we actually apply this Lump Sum methodology on the admin fee given our min & max admin fees and paragraph 4.5 of the document?
B60: If not, we need to apply the RIY calc as per the cashflows tab

Sheet Latest available TER (hidden)
A1: Fund Code | B1: Fund Name | C1: TER Percentage | D1: TER Date | E1: PFC TER Percentage | F1: PFC TER Date | G1: TER Annual Published | H1: Transaction Cost Percentage | I1: Total Cost Percentage
B2: Click on cell to select fund from the drop down list
A3: EIPFD | B3: Engelberg IP Balanced Fund Class A | C3: 2.94 | D3: 2017-09-30 | G3: N/A | H3: 0.24 | I3: 3.18
A4: IPFCA | B4: Engelberg IP Flexible Fund Class A | C4: 1.71 | D4: 2017-09-30 | G4: N/A | H4: 2.12 | I4: 3.83
A5: IPFCB | B5: Engelberg IP Flexible Fund Class B | C5: 3.42 | D5: 2017-09-30 | G5: N/A | H5: 2.12 | I5: 5.54
A6: IPFB1 | B6: Engelberg IP Flexible Fund Class B1 | C6: 3.13 | D6: 2017-09-30 | G6: N/A | H6: 2.12 | I6: 5.25
A7: EIPFC | B7: Engelberg IP Flexible Fund Class C | C7: 0.75 | D7: 2017-09-30 | G7: N/A | H7: 0.32 | I7: 1.07
A8: ENIPF | B8: Engelberg IP Income Fund Class A | C8: 1.42 | D8: 2017-09-30 | G8: N/A | H8: 0.01 | I8: 1.43
A9: EGBFB | B9: Engelberg IP Income Fund Class B | C9: 0.86 | D9: 2017-09-30 | G9: N/A | H9: 0.01 | I9: 0.87
A10: ENWFF | B10: Engelberg IP W/wide Flexible Fund Class A | C10: 1.47 | D10: 2017-09-30 | G10: N/A | H10: 0.15 | I10: 1.62
A11: EIPWC | B11: Engelberg IP W/wide Flexible Fund Class C | C11: 0.68 | D11: 2017-09-30 | G11: N/A | H11: 0.12 | I11: 0.8
A12: FIFFB1 | B12: FG IP International Flexible Fund of Funds Class B1 | C12: 3.28 | D12: 2017-09-30 | G12: N/A | H12: 0 | I12: 3.28
A13: FGIF | B13: FG IP International Flexible Fund of Funds Class A | C13: 1.85 | D13: 2017-09-30 | G13: N/A | H13: 0 | I13: 1.85
A14: FIFFB | B14: FG IP International Flexible Fund of Funds Class B | C14: 3.51 | D14: 2017-09-30 | G14: N/A | H14: 0 | I14: 3.51
A15: FGJI | B15: FG IP Jupiter Income Fund of Funds Class A | C15: 1.03 | D15: 2017-09-30 | G15: N/A | H15: 0.02 | I15: 1.05
A16: FIJFB | B16: FG IP Jupiter Income Fund of Funds Class B | C16: 2.74 | D16: 2017-09-30 | G16: N/A | H16: 0.02 | I16: 2.76
A17: FIJFB1 | B17: FG IP Jupiter Income Fund of Funds Class B1 | C17: 2.46 | D17: 2017-09-30 | G17: N/A | H17: 0.02 | I17: 2.48
A18: FGIM | B18: FG IP Mercury Equity Fund of Funds Class A | C18: 1.41 | D18: 2017-09-30 | G18: N/A | H18: 0.29 | I18: 1.7
A19: FIMFB | B19: FG IP Mercury Equity Fund of Funds Class B | C19: 3.12 | D19: 2017-09-30 | G19: N/A | H19: 0.29 | I19: 3.41
A20: FIMFB1 | B20: FG IP Mercury Equity Fund of Funds Class B1 | C20: 2.84 | D20: 2017-09-30 | G20: N/A | H20: 0.29 | I20: 3.13
A21: FGNGF | B21: FG IP Neptune Growth FOF Class A | C21: 1.36 | D21: 2017-09-30 | G21: N/A | H21: 0.21 | I21: 1.57
A22: FGING | B22: FG IP Neptune Growth FOF Class B | C22: 3.07 | D22: 2017-09-30 | G22: N/A | H22: 0.21 | I22: 3.28
A23: FINGF | B23: FG IP Neptune Growth FOF Class B1 | C23: 2.79 | D23: 2017-09-30 | G23: N/A | H23: 0.21 | I23: 3
A24: FGIS | B24: FG IP Saturn Flexible Funds of Funds Class A | C24: 1.44 | D24: 2017-09-30 | G24: N/A | H24: 0.16 | I24: 1.6
A25: FISFB | B25: FG IP Saturn Flexible Funds of Funds Class B | C25: 3.15 | D25: 2017-09-30 | G25: N/A | H25: 0.16 | I25: 3.31
A26: FISFB1 | B26: FG IP Saturn Flexible Funds of Funds Class B1 | C26: 2.87 | D26: 2017-09-30 | G26: N/A | H26: 0.16 | I26: 3.03
A27: FGIV | B27: FG IP Venus Cautious Fund of Funds Class A | C27: 1.27 | D27: 2017-09-30 | G27: N/A | H27: 0.14 | I27: 1.41
A28: FIVFB | B28: FG IP Venus Cautious Fund of Funds Class B | C28: 2.98 | D28: 2017-09-30 | G28: N/A | H28: 0.14 | I28: 3.12
A29: FIVFB1 | B29: FG IP Venus Cautious Fund of Funds Class B1 | C29: 2.7 | D29: 2017-09-30 | G29: N/A | H29: 0.14 | I29: 2.84
A30: FINBF | B30: Financial Fitness Balanced IP FOF Class A | C30: 1.33 | D30: 2017-09-30 | G30: N/A | H30: 0.34 | I30: 1.67
A31: FINFF | B31: Financial Fitness Flexible IP FOF Class A | C31: 1.48 | D31: 2017-09-30 | G31: N/A | H31: 0.35 | I31: 1.83
A32: FINIP | B32: Financial Fitness Stable IP FOF Class A | C32: 1.23 | D32: 2017-09-30 | G32: N/A | H32: 0.23 | I32: 1.46
A33: FIFA1 | B33: Flagship IP Flexible Value Fund Class A1 | C33: 1.77 | D33: 2017-09-30 | G33: N/A | H33: 0.39 | I33: 2.16
A34: FIFA2 | B34: Flagship IP Flexible Value Fund Class A2 | C34: 2.34 | D34: 2017-09-30 | G34: N/A | H34: 0.39 | I34: 2.73
A35: FIFB3 | B35: Flagship IP Flexible Value Fund Class B3 | C35: 0.51 | D35: 2017-09-30 | G35: N/A | H35: 0.39 | I35: 0.9
A36: FLDF | B36: Flagship IP Prudential Variable Fund | C36: 2.27 | D36: 2017-09-30 | G36: N/A | H36: 0.44 | I36: 2.71
A37: FIPA2 | B37: Flagship IP Prudential Variable Fund Class A2 | C37: 1.41 | D37: 2017-09-30 | G37: N/A | H37: 0.44 | I37: 1.85
A38: FIPCR | B38: Flagship IP Prudential Variable Fund Class R | C38: 1.13 | D38: 2017-09-30 | G38: N/A | H38: 0.44 | I38: 1.57
A39: FLWF | B39: Flagship IP Worldwide Flexible Fund | C39: 2.1 | D39: 2017-09-30 | G39: N/A | H39: 0.47 | I39: 2.57
A40: FLWFR | B40: Flagship IP Worldwide Flexible Fund Class R | C40: 1.52 | D40: 2017-09-30 | G40: N/A | H40: 0.47 | I40: 1.99
A41: FLFF | B41: Flagship IP Worldwide Flexible Fund of Funds | C41: 2.23 | D41: 2017-09-30 | G41: N/A | H41: 0.57 | I41: 2.8
A42: FIWFB | B42: Flagship IP Worldwide Flexible Fund of Funds Class B | C42: 2.1 | D42: 2017-09-30 | G42: N/A | H42: 0.63 | I42: 2.73
A43: GIOF | B43: Global IP Opportunity Fund Class B5 | C43: 1.67 | D43: 2017-09-30 | E43: 0.45 | F43: 2017-09-30 | G43: N/A | H43: 0.09 | I43: 1.76
A44: GIOFC | B44: Global IP Opportunity Fund Class C | C44: 1.24 | D44: 2017-09-30 | G44: N/A | H44: 0.08 | I44: 1.32
A45: GMIPF | B45: Global Marathon IP Fund Class A1 | C45: 1.1 | D45: 2017-09-30 | G45: N/A | H45: 0.06 | I45: 1.16
A46: TREF | B46: IMI IP Equity Fund | C46: 1.53 | D46: 2017-09-30 | G46: N/A | H46: 0.42 | I46: 1.95
A47: MIABF | B47: IP Active Beta Fund | C47: 0.79 | D47: 2017-09-30 | G47: N/A | H47: 0.28 | I47: 1.07
A48: MIDCA | B48: IP Defended Beta Fund Class A | C48: 1.18 | D48: 2017-09-30 | E48: 0.18 | F48: 2017-09-30 | G48: N/A | H48: 0.39 | I48: 1.57
A49: MIDCC | B49: IP Defended Beta Fund Class C | C49: 0.91 | D49: 2017-09-30 | G49: N/A | H49: 0.31 | I49: 1.22
A50: SEDIF | B50: IP Diversified Income Fund of Funds | C50: 2.29 | D50: 2017-09-30 | E50: 0.06 | F50: 2017-09-30 | G50: N/A | H50: 0.08 | I50: 2.37
A51: SEDB2 | B51: IP Diversified Income Fund of Funds Class B2 | C51: 2.01 | D51: 2017-09-30 | E51: 0.06 | F51: 2017-09-30 | G51: N/A | H51: 0.08 | I51: 2.09
A52: IPFXF | B52: IP FLEXIBLE FUND Class A | C52: 0.99 | D52: 2017-09-30 | G52: N/A | H52: 1 | I52: 1.99
A53: IPFFB | B53: IP FLEXIBLE FUND Class B | C53: 1.56 | D53: 2017-09-30 | G53: N/A | H53: 1 | I53: 2.56
A54: SEFFF | B54: IP Flexible Fund of Funds | C54: 2.7 | D54: 2017-09-30 | G54: N/A | H54: 0.19 | I54: 2.89
A55: SEFB2 | B55: IP Flexible Fund of Funds Class B2 | C55: 1.84 | D55: 2017-09-30 | G55: N/A | H55: 0.19 | I55: 2.03
A56: MFFF | B56: IP Foreign Flexible Feeder Fund | C56: 1.29 | D56: 2017-09-30 | G56: N/A | H56: 0 | I56: 1.29
A57: EIGFB | B57: IP Global Momentum Fund Class B | C57: 2.9 | D57: 2017-09-30 | G57: N/A | H57: 0.05 | I57: 2.95
A58: EIGMC | B58: IP Global Momentum Fund Class C | C58: 4.33 | D58: 2017-09-30 | G58: N/A | H58: 0.06 | I58: 4.39
A59: EIGFA | B59: IP Global Momentum Fund Class A | C59: 2.9 | D59: 2017-09-30 | G59: N/A | H59: 0.05 | I59: 2.95
A60: TRCP | B60: IP Interest Plus Fund | C60: 0.74 | D60: 2017-09-30 | G60: N/A | H60: 0 | I60: 0.74
A61: EIMFA | B61: IP Momentum Fund Class A | C61: 2.25 | D61: 2017-09-30 | E61: 0.23 | F61: 2017-09-30 | G61: N/A | H61: 1.63 | I61: 3.88
A62: EIMFB | B62: IP Momentum Fund Class B | C62: 1.63 | D62: 2017-09-30 | E62: 0.23 | F62: 2017-09-30 | G62: N/A | H62: 1.63 | I62: 3.26
A63: EIMFC | B63: IP Momentum Fund Class C | C63: 1.96 | D63: 2017-09-30 | G63: N/A | H63: 1.47 | I63: 3.43
A64: IPEFA | B64: IP Prudential Equity Fund Class A | C64: 1.67 | D64: 2017-09-30 | G64: N/A | H64: 0.45 | I64: 2.12
A65: IPPEB | B65: IP Prudential Equity Fund Class B | C65: 0.6 | D65: 2017-09-30 | G65: N/A | H65: 0.22 | I65: 0.82
A66: SEPFF | B66: IP Prudential Fund of Funds | C66: 2.77 | D66: 2017-09-30 | G66: N/A | H66: 0.12 | I66: 2.89
A67: SEPB2 | B67: IP Prudential Fund of Funds Class B2 | C67: 1.91 | D67: 2017-09-30 | G67: N/A | H67: 0.12 | I67: 2.03
A68: SEWFF | B68: IP Worldwide Flexible Fund of Funds | C68: 2.49 | D68: 2017-09-30 | E68: 0.13 | F68: 2017-09-30 | G68: N/A | H68: 0.2 | I68: 2.69
A69: SEOB2 | B69: IP Worldwide Flexible Fund of Funds Class B2 | C69: 2.2 | D69: 2017-09-30 | E69: 0.13 | F69: 2017-09-30 | G69: N/A | H69: 0.2 | I69: 2.4
A70: MEIB2 | B70: MI-PLAN IP Enhanced Income Fund Class B2 | C70: 0.22 | D70: 2017-09-30 | G70: N/A | H70: 0 | I70: 0.22
A71: PBEA1 | B71: MI-PLAN IP Beta Equity Fund A1 | C71: 1.81 | D71: 2017-09-30 | G71: N/A | H71: 0.07 | I71: 1.88
A72: PBEB2 | B72: MI-PLAN IP Beta Equity Fund B2 | C72: 0.83 | D72: 2017-09-30 | G72: N/A | H72: 0.09 | I72: 0.92
A73: MPBFD | B73: MI-PLAN IP Beta Equity Fund Class D | C73: 0.7 | D73: 2017-09-30 | G73: N/A | H73: 0.04 | I73: 0.74
A74: MIPEI | B74: MI-PLAN IP Enhanced Income Fund | C74: 0.92 | D74: 2017-09-30 | G74: N/A | H74: 0 | I74: 0.92
A75: MGMF | B75: MI-PLAN IP Global Macro Fund B5 | C75: 1.02 | D75: 2017-09-30 | G75: N/A | H75: 0.15 | I75: 1.17
A76: MGMB | B76: MI-PLAN IP Global Macro Fund Class B1 | C76: 0.22 | D76: 2017-09-30 | G76: N/A | H76: 0.15 | I76: 0.37
A77: MGMB6 | B77: MI-PLAN IP Global Macro Fund Class B6 | C77: 0.96 | D77: 2017-09-30 | G77: N/A | H77: 0.14 | I77: 1.1
A78: MIGPB | B78: MI-PLAN IP Global Property Feeder Fund Class B1 | C78: 1.21 | D78: 2017-09-30 | G78: N/A | H78: 0 | I78: 1.21
A79: MISP | B79: MI-PLAN IP Global Property Feeder Fund Class B5 | C79: 1.38 | D79: 2017-09-30 | G79: N/A | H79: 0 | I79: 1.38
A80: PIPA1 | B80: MI-PLAN IP Inflation Plus 3 Class A1 | C80: 1.76 | D80: 2017-09-30 | G80: N/A | H80: 0.06 | I80: 1.82
A81: PIPB2 | B81: MI-PLAN IP Inflation Plus 3 Class B2 | C81: 1.02 | D81: 2017-09-30 | G81: N/A | H81: 0.06 | I81: 1.08
A82: PIPB4 | B82: MI-PLAN IP Inflation Plus 3 Class B4 | C82: 2.9 | D82: 2017-09-30 | G82: N/A | H82: 0.06 | I82: 2.96
A83: PIPB5 | B83: MI-PLAN IP Inflation Plus 3 Class B5 | C83: 1.19 | D83: 2017-09-30 | G83: N/A | H83: 0.06 | I83: 1.25
A84: PEIA1 | B84: MI-PLAN IP Inflation Plus 5 Class A1 | C84: 1.69 | D84: 2017-09-30 | G84: N/A | H84: 0.09 | I84: 1.78
A85: PEIB2 | B85: MI-PLAN IP Inflation Plus 5 Class B2 | C85: 0.94 | D85: 2017-09-30 | G85: N/A | H85: 0.09 | I85: 1.03
A86: PEIB4 | B86: MI-PLAN IP Inflation Plus 5 Class B4 | C86: 2.83 | D86: 2017-09-30 | G86: N/A | H86: 0.09 | I86: 2.92
A87: PEIB5 | B87: MI-PLAN IP Inflation Plus 5 Class B5 | C87: 1.12 | D87: 2017-09-30 | G87: N/A | H87: 0.09 | I87: 1.21
A88: PEIB6 | B88: MI-PLAN IP Inflation Plus 5 Class B6 | C88: 1.22 | D88: 2017-09-30 | E88: 0.16 | F88: 2017-09-30 | G88: N/A | H88: 0.09 | I88: 1.31
A89: PEPA1 | B89: MI-PLAN IP Inflation Plus 7 Class A1 | C89: 1.69 | D89: 2017-09-30 | G89: N/A | H89: 0.16 | I89: 1.85
A90: PEPB2 | B90: MI-PLAN IP Inflation Plus 7 Class B2 | C90: 0.95 | D90: 2017-09-30 | G90: N/A | H90: 0.16 | I90: 1.11
A91: PEPB4 | B91: MI-PLAN IP Inflation Plus 7 Class B4 | C91: 2.83 | D91: 2017-09-30 | G91: N/A | H91: 0.16 | I91: 2.99
A92: PEPB5 | B92: MI-PLAN IP Inflation Plus 7 Class B5 | C92: 1.12 | D92: 2017-09-30 | G92: N/A | H92: 0.16 | I92: 1.28
A93: PSFA1 | B93: MI-PLAN IP Sarasin EquiSar Feeder Fund Class A1 | C93: 2.35 | D93: 2017-09-30 | G93: N/A | H93: 0 | I93: 2.35
A94: PSFB2 | B94: MI-PLAN IP Sarasin EquiSar Feeder Fund Class B2 | C94: 1.33 | D94: 2017-09-30 | G94: N/A | H94: 0 | I94: 1.33
A95: PSFB4 | B95: MI-PLAN IP Sarasin EquiSar Feeder Fund Class B4 | C95: 3.49 | D95: 2017-09-30 | G95: N/A | H95: 0 | I95: 3.49
A96: PSFB5 | B96: MI-PLAN IP Sarasin EquiSar Feeder Fund Class B5 | C96: 1.78 | D96: 2017-09-30 | G96: N/A | H96: 0 | I96: 1.78
A97: PPEB2 | B97: MI-PLAN IP Worldwide Macro Fund Class B2 | C97: 1.26 | D97: 2017-09-30 | G97: N/A | H97: 0.44 | I97: 1.7
A98: MPWB6 | B98: MI-PLAN IP Worldwide Macro Fund Class B6 | C98: 1.23 | D98: 2017-09-30 | G98: N/A | H98: 0.44 | I98: 1.67
A99: MPWCB7 | B99: MI-PLAN IP Worldwide Macro Fund Class B7 | C99: 1.37 | D99: 2017-09-30 | G99: N/A | H99: 0.34 | I99: 1.71
A100: MHCE | B100: IP High Conviction Equity Fund A | C100: 1.12 | D100: 2017-09-30 | E100: 0.21 | F100: 2017-09-30 | G100: N/A | H100: 0.23 | I100: 1.35
A101: MHCFB | B101: IP High Conviction Equity Fund B | C101: 1.46 | D101: 2017-09-30 | E101: 0.28 | F101: 2017-09-30 | G101: N/A | H101: 0.23 | I101: 1.69
A102: MHCFC | B102: IP High Conviction Equity Fund C | C102: 0.9 | D102: 2017-09-30 | G102: N/A | H102: 0.2 | I102: 1.1
A103: MAICA | B103: Multi Asset IP Balanced Defensive Fund A Class | C103: 1.75 | D103: 2017-09-30 | G103: N/A | H103: 0.13 | I103: 1.88
A104: MADB1 | B104: Multi Asset IP Balanced Defensive Fund B1 Class | C104: 1.29 | D104: 2017-09-30 | G104: N/A | H104: 0.13 | I104: 1.42
A105: MAIBA | B105: Multi Asset IP Balanced Fund A Class | C105: 1.84 | D105: 2017-09-30 | G105: N/A | H105: 0.19 | I105: 2.03
A106: MAIB1 | B106: Multi Asset IP Balanced Fund B1 Class | C106: 1.39 | D106: 2017-09-30 | G106: N/A | H106: 0.19 | I106: 1.58
A107: MAIPA | B107: Multi Asset IP Balanced Plus Fund A Class | C107: 1.92 | D107: 2017-09-30 | G107: N/A | H107: 0.26 | I107: 2.18
A108: MUPB1 | B108: Multi Asset IP Balanced Plus Fund B1 Class | C108: 1.47 | D108: 2017-09-30 | G108: N/A | H108: 0.26 | I108: 1.73
A109: MBFCA | B109: Mvunonala IP Balanced Fund Class A | C109: 3.34 | D109: 2017-09-30 | G109: N/A | H109: 0.26 | I109: 3.6
A110: MBFCB | B110: Mvunonala IP Balanced Fund Class B | C110: 2.77 | D110: 2017-09-30 | G110: N/A | H110: 0.26 | I110: 3.03
A111: MBFCC | B111: Mvunonala IP Balanced Fund Class C | C111: 3.31 | D111: 2017-09-30 | G111: N/A | H111: 0.26 | I111: 3.57
A112: MVIPC | B112: Mvunonala IP Flex Income Fund Class C | C112: 1.24 | D112: 2017-09-30 | G112: N/A | H112: 0.02 | I112: 1.26
A113: MVIPA | B113: Mvunonala IP Flexible Income Fund Class A | C113: 1.4 | D113: 2017-09-30 | E113: 0.15 | F113: 2017-09-30 | G113: N/A | H113: 0.04 | I113: 1.44
A114: MVIPB | B114: Mvunonala IP Flexible Income Fund Class B | C114: 1.11 | D114: 2017-09-30 | E114: 0.15 | F114: 2017-09-30 | G114: N/A | H114: 0.04 | I114: 1.15
A115: PAIH | B115: Pan African IP Income Hunter Fund | C115: 0.89 | D115: 2017-09-30 | G115: N/A | H115: 0.07 | I115: 0.96
A116: PIWCA | B116: Prosperity IP W/wide Flexible FOF Class A | C116: 2.77 | D116: 2017-09-30 | E116: 0.52 | F116: 2017-09-30 | G116: N/A | H116: 0.37 | I116: 3.14
A117: PIWCC | B117: Prosperity IP W/wide Flexible FOF Class C | C117: 2.05 | D117: 2017-09-30 | G117: N/A | H117: 0.38 | I117: 2.43
A118: RCICA | B118: Rock Capital IP Top 20 Global Fund Class A | C118: 2.25 | D118: 2017-09-30 | E118: 0.29 | F118: 2017-09-30 | G118: N/A | H118: 0.79 | I118: 3.04
A119: RCICB | B119: Rock Capital IP Top 20 Global Fund Class B | C119: 1.9 | D119: 2017-09-30 | G119: N/A | H119: 0.79 | I119: 2.69
A120: RCICC | B120: Rock Capital IP Top 20 Global Fund Class C | C120: 1.59 | D120: 2017-09-30 | E120: 0.2 | F120: 2017-09-30 | G120: N/A | H120: 0.75 | I120: 2.34
A121: SCOIA | B121: SouthChester IP Optimum Income Fund Class A | C121: 1.53 | D121: 2017-09-30 | G121: N/A | H121: 0 | I121: 1.53
A122: SCOIB | B122: SouthChester IP Optimum Income Fund Class B | C122: 1.2 | D122: 2017-09-30 | G122: N/A | H122: 0 | I122: 1.2
A123: SCOIC | B123: SouthChester IP Optimum Income Fund Class C | C123: 0.68 | D123: 2017-09-30 | G123: N/A | H123: 0 | I123: 0.68
A124: TIFCC | B124: Triathlon IP Fund Class C | C124: 1.05 | D124: 2017-09-30 | G124: N/A | H124: 0.53 | I124: 1.58
A125: TIPFD | B125: Triathlon IP Fund Class D | C125: 0.79 | D125: 2017-09-30 | G125: N/A | H125: 0.49 | I125: 1.28
A126: TNICA | B126: True North IP Enhanced Property Fund Class A | C126: 2.13 | D126: 2017-09-30 | G126: N/A | H126: 0.64 | I126: 2.77
A127: TNICB | B127: True North IP Enhanced Property Fund Class B | C127: 1.56 | D127: 2017-09-30 | G127: N/A | H127: 0.64 | I127: 2.2
A128: TRPB1 | B128: True North IP Enhanced Property Fund Class B1 | C128: 1.56 | D128: 2017-09-30 | G128: N/A | H128: 0.64 | I128: 2.2
A129: TRIFE | B129: True North IP Flexible Equity Fund | C129: 1.82 | D129: 2017-09-30 | G129: N/A | H129: 0.62 | I129: 2.44
A130: TREB1 | B130: True North IP Flexible Equity Fund B1 | C130: 1.25 | D130: 2017-09-30 | G130: N/A | H130: 0.52 | I130: 1.77

Sheet Illustrator
B1: Effective Annual Cost Calculation
B2: The Effective Annual Cost (EAC) is a measure which has been introduced to allow you to compare the charges you incur and their impact on investment returns when you invest in different Financial Products. It is expressed as an annualised percentage. The EAC is made up of four components, which are added together, as shown in the table below. The effect of some of the charges may vary, depending on your investment period. The EAC calculation assumes that an investor terminates his or her investment in the Financial Product at the end of the relevant periods shown in the table.
B6: All Fees,Costs and EAC components shown inclusive of VAT.
B7: Please complete white blocks below.
B10: Investor name | C10: Mr ABC
Q11: Always set to NIL as no fee to manco
B12: Investment Funds | C12: Investment amount (Lump sum) | D12: Monthly recurring investment amount | E12: Debit order annual increase % | F12: Monthly regular withdrawals (negative value) | G12: Regular withdrawal annual increase % | H12: Allocation | I12: Initial Fee % (incl VAT) (Lumpsum) | J12: Initial Fee % (incl VAT) (Recurring) | K12: Ongoing Adviser Fee % (incl VAT) | L12: Net TIC | Q12: Initial administration Fee % (incl VAT) | R12: Ongoing administration Fee % (incl VAT)
B13: Click on cell to select fund from the drop down list | C13: 10000 | D13: 0 | E13: 0 | F13: 0 | G13: 0 | H13: =(D13*12+C13)/($C$18+$D$18*12) -> 1 | I13: 0 | J13: 0 | K13: 0 | L13: =IFERROR(VLOOKUP(B13,'Latest available TER'!$B$3:$I$129,8,FALSE)/100,0) -> 0 | Q13: 0 | R13: 0
B14: Click on cell to select fund from the drop down list | C14: 0 | D14: 0 | E14: 0 | F14: 0 | G14: 0 | H14: =(D14*12+C14)/($C$18+$D$18*12) -> 0 | I14: 0 | J14: 0 | K14: 0 | L14: =IFERROR(VLOOKUP(B14,'Latest available TER'!$B$3:$I$129,8,FALSE)/100,0) -> 0 | Q14: 0 | R14: 0
B15: Click on cell to select fund from the drop down list | C15: 0 | D15: 0 | E15: 0 | F15: 0 | G15: 0 | H15: 0 | I15: 0 | J15: 0 | K15: 0 | L15: =IFERROR(VLOOKUP(B15,'Latest available TER'!$B$3:$I$129,8,FALSE)/100,0) -> 0 | Q15: 0 | R15: 0
B16: Click on cell to select fund from the drop down list | C16: 0 | D16: 0 | E16: 0 | F16: 0 | G16: 0 | H16: =SUM(C16:D16)/SUM($C$18:$D$18) -> 0 | I16: 0 | J16: 0 | K16: 0 | L16: =IFERROR(VLOOKUP(B16,'Latest available TER'!$B$3:$I$129,8,FALSE)/100,0) -> 0 | M16: =IFERROR(VLOOKUP(C16,'Latest available TER'!C6:J128,8,FALSE)/100,0) -> 0 | N16: =IFERROR(VLOOKUP(D16,'Latest available TER'!D6:K128,8,FALSE)/100,0) -> 0 | O16: =IFERROR(VLOOKUP(E16,'Latest available TER'!E6:L128,8,FALSE)/100,0) -> 0 | P16: =IFERROR(VLOOKUP(F16,'Latest available TER'!F6:M128,8,FALSE)/100,0) -> 0 | Q16: =IFERROR(VLOOKUP(G16,'Latest available TER'!G6:N128,8,FALSE)/100,0) -> 0 | R16: =IFERROR(VLOOKUP(H16,'Latest available TER'!H6:O128,8,FALSE)/100,0) -> 0
B17: Click on cell to select fund from the drop down list | C17: 0 | D17: 0 | E17: 0 | F17: 0 | G17: 0 | H17: =SUM(C17:D17)/SUM($C$18:$D$18) -> 0 | I17: 0 | J17: 0 | K17: 0 | L17: =IFERROR(VLOOKUP(B17,'Latest available TER'!$B$3:$I$129,8,FALSE)/100,0) -> 0 | M17: =IFERROR(VLOOKUP(C17,'Latest available TER'!C7:J129,8,FALSE)/100,0) -> 0 | N17: =IFERROR(VLOOKUP(D17,'Latest available TER'!D7:K129,8,FALSE)/100,0) -> 0 | O17: =IFERROR(VLOOKUP(E17,'Latest available TER'!E7:L129,8,FALSE)/100,0) -> 0 | P17: =IFERROR(VLOOKUP(F17,'Latest available TER'!F7:M129,8,FALSE)/100,0) -> 0 | Q17: =IFERROR(VLOOKUP(G17,'Latest available TER'!G7:N129,8,FALSE)/100,0) -> 0 | R17: =IFERROR(VLOOKUP(H17,'Latest available TER'!H7:O129,8,FALSE)/100,0) -> 0
C18: =SUM(C13:C17) -> 10000 | D18: =SUM(D13:D17) -> 0 | E18: =IFERROR((SUMPRODUCT(D13:D17,E13:E17))/SUM(D13:D17),0) -> 0 | F18: =SUM(F13:F17) -> 0 | G18: =IFERROR((SUMPRODUCT(F13:F17,G13:G17))/SUM(F13:F17),0) -> 0 | H18: =SUM(H13:H17) -> 1 | I18: =SUMPRODUCT(I13:I17,$H$13:$H$17) -> 0 | J18: 0 | K18: 0 | L18: =SUMPRODUCT(L13:L17,$H$13:$H$17) -> 0 | M18: 0 | N18: 0 | O18: 0 | P18: 0 | Q18: 0 | R18: 0
B20: Effective Annual Cost Summary
B21: Investment amount (Lump sum) | C21: =C18 -> 10000
B22: Investment amount (Annual recurring) | C22: =D18 -> 0
B23: Debit order annual increase % | C23: =E18 -> 0
B24: Regular withdrawal | C24: =F18 -> 0
B25: Regular withdrawal increase % (p.a.) | C25: =G18 -> 0
B27: Initial Fees | C27: Percentage
B28: Fund management | C28: 0
B29: Administration - below minimum | C29: 0
B30: Financial advice (Lump Sum) | C30: =I18 -> 0
B31: Financial advice fee (Recurring Investment) | C31: =J18 -> 0
B32: Total initial fees | C32: =C29+C28+MAX(C31,C30) -> 0
B34: Annual Fees | C34: Percentage
B35: Fund management fee | C35: 0
B36: less Rebate | C36: 0
B37: Net Fund Management fee | C37: 0
B38: Administration fee | C38: 0
B39: Financial advice fee (ongoing) | C39: =K18 -> 0
B40: Other fees | C40: 0
C41: 1 | D41: 3 | E41: 5 | F41: =IF(Input!A3="Retirement Product",MAX(55-Input!B22,10),10) -> 10
B42: EAC - including VAT | C42: 1 Year | D42: 3 Years | E42: 5 Years | F42: Term to maturity 10 years | O42: Simplified or RIY?
B43: Investment Management Charges1 | C43: =L18 -> 0 | D43: =L18 -> 0 | E43: =L18 -> 0 | F43: =L18 -> 0 | O43: Simplified
B44: Advice Charges2 | C44: =IF($O44="RIY",'RIY Cashflows'!W6,Illustrator!$C39+Illustrator!$C30/Illustrator!C41) -> 0 | D44: =IF($O44="RIY",'RIY Cashflows'!AC6,Illustrator!$C39+Illustrator!$C30/Illustrator!D41) -> 0 | E44: =IF($O44="RIY",'RIY Cashflows'!AI6,Illustrator!$C39+Illustrator!$C30/Illustrator!E41) -> 0 | F44: =IF($O44="RIY",'RIY Cashflows'!AQ6,Illustrator!$C39+Illustrator!$C30/Illustrator!F41) -> 0 | O44: =IF(AND(C22>0,C31>0),"RIY","Simplified") -> Simplified
B45: Administration Charges3 | C45: 0 | D45: 0 | E45: 0 | F45: 0 | O45: =IF(OR(C22<>0,C24<>0),"RIY","Simplified") -> Simplified
B46: Effective Annual Cost | C46: =SUM(C43:C45) -> 0 | D46: =SUM(D43:D45) -> 0 | E46: =SUM(E43:E45) -> 0 | F46: =SUM(F43:F45) -> 0
B48: Notes:
B49: 1. Investment Management Charges is the Total Investment Cost (TIC) associated with the fund including the costs of any underlying funds, less any rebates which you may receive. The TIC is calculated on a quarterly basis over a historical 3 year rolling period.
B50: 2. Advice Charges are the financial planning costs that are paid to your financial adviser on your behalf, including initial and ongoing fees as applicable on both lump-sum and recurring investments. Where the adviser fee is not facilitated by us or where there is no advisor on record, the advice charge will be 0%.
B51: 3. Administration Charges are the costs relating to the administration of financial products. For direct investments, the administration charge is included in the TIC listed above and the Administration Charge will thus be 0%.
B52: 4. Where applicable, inflation has been taken into account when calculating the EAC
B53: 5. The EAC will depend on your fund selection and how the markets perform during the term of your investment. All calculations include value-added tax (VAT) at the prevailing rate, where applicable.
B54: 6. No termination charge or exit penalties will be incurred if the investor terminates investment in the product.
B56: Offices
B57: Name: | C57: IP Management Company (RF) Pty Ltd | E57: Postal address: | F57: PO Box 23271
B58: Physical address: | C58: 1st Floor Mariendahl House | F58: Claremont
C59: Newlands-on-Main | F59: 7735
C60: Newlands
C61: 7700 | E61: Fax number: | F61: 086 557 4848
B62: Telephone number: | C62: (021) 673-1340 | E62: E-mail address: | F62: clientservices@ipmc.co.za
B64: Disclaimer
B65: IP Management Company (RF) Pty Ltd (IP) is an authorized Manager of a Collective Investment Scheme in Securities in terms of the Collective Investment Schemes Control Act, 45 of 2002 (“the Act”) and a member of Association for Savings & Investment SA (ASISA). Collective Investment Schemes are generally medium to long term investments. The value of participatory interests or the investment may go down as well as up. Past performance is not necessarily a guide to future performance. Collective investment schemes are traded at ruling prices and can engage in borrowing and scrip lending. A schedule of fees and charges and maximum commissions is available on request from the manager. The Manager does not provide any guarantee either with respect to the capital or the return of a portfolio. Additional information including the annual report of the Manager and detailed holdings of the portfolio as at the last quarter end are available, free of charge, from clientservices@ipmc.co.za. Although reasonable steps have been taken to ensure validity and accuracy of the information in this document, IP does not accept any responsibility for any claim, damages,loss or expense, however it arises, out of or in connection with the information in this document. This document should not be viewed as an offer to purchase specific product and is not construed as advice or guidance in any form whatsoever.
B73: Investor signature

Sheet Analysis - LA simpl or RIY (hidden)
A1: Testing impact of initial (adviser) fees on contract if there are recurring investments (without initial fees) or an income (like Living Annuity)
A3: I want to find determine if I should use simplified method or RIY for a Living Annuity contract with initial charges.
A4: To determine this I will look at how much the initial fee percentage changes if the contract value stays constant vs contract value decreases vs contract value increases
A5: The argument is that the RIY is a true reflection of the fee. Therefore if the RIY for the intial fee changes a lot for a contract with income vs contract without income, we know that the income has a big impact on the fee. If not, then the income does not have a big impact and it would not matter if we used simplified or RIY.
A7: Testing (1)
A8: R1m investment
A9: 1.71% initial fee | I9: Findings
A10: 0% ongoing comm | I10: 1 | J10: RIY of base case (no income) is 10bps higher than simplified methodology
I11: 2 | J11: RIY of LA with 5% income is 10bps higher than RIY of base case
A12: EAC(Advice) | I12: 3 | J12: RIY of LA with 15% is (10bps - 20bps) higher than LA with 5% income
A13: Recurring CFs | B13: 1Yr | C13: 3Yr | D13: 5Yr | E13: 10Yr | F13: 25Yr | I13: 4 | J13: In other words, by choosing to do simplified we are accepting that the fee shown is 20bps-30bps lower than actual (RIY)
A14: R1m pa | B14: 0.01190854311 | C14: 0.002493232489 | D14: 0.001108759642 | E14: 0.0003529191017 | F14: 8.006691933e-05 | I14: 4.2 | J14: 10bps of the difference is purely due to the difference between simplified and RIY. Therefore, you are accepting a difference of (10bps - 20bps).
A15: R100k pa | B15: 0.01734518409 | C15: 0.005413979292 | D15: 0.003056836128 | E15: 0.00135653019 | F15: 0.0004469275475
A16: R10k pa | B16: 0.01817569137 | C16: 0.006132870913 | D16: 0.003707510233 | E16: 0.001890563965 | F16: 0.0008082389832
A17: 0 | B17: 0.0183 | C17: 0.0062 | D17: 0.0038 | E17: 0.002 | F17: 0.0009
A18: -R10k pa | B18: 0.01837118864 | C18: 0.006319946051 | D18: 0.003892844915 | E18: 0.002074712515 | F18: 0.0009933769703
A19: -R50k pa | B19: 0.01877512932 | C19: 0.00673186779 | D19: 0.004328274727 | E19: 0.002585756779 | F19: 0.001908195019 | G19: Living Annuity @ 5% income
A20: -R150k pa | B20: 0.01986746788 | C20: 0.008043724298 | D20: 0.006013196707 | E20: NA | F20: NA | G20: Living Annuity @ 15% income
A21: -R100k pa | B21: 0.01930581331 | C21: 0.007329320908 | D21: 0.005032646656 | E21: N/A | F21: N/A
A22: -R1m pa | B22: 0.03943755627 | C22: N/A | D22: N/A | E22: N/A | F22: N/A
A25: Simplified
B26: 1Yr | C26: 3Yr | D26: 5Yr | E26: 10Yr | F26: 25Yr
B27: =1.71% -> 0.0171 | C27: =1.71%/3 -> 0.0057 | D27: =1.71%/5 -> 0.00342 | E27: =1.71%/10 -> 0.00171 | F27: =1.71%/25 -> 0.000684
A30: Testing (2)
A31: R3m investment | I31: Findings
A32: 1.71% initial fee | I32: 1 | J32: RIY of base case (no income) is 10bps higher than simplified methodology
A33: 0% ongoing comm | I33: 2 | J33: RIY of LA with 5% income is 10bps higher than RIY of base case
I34: 3 | J34: RIY of LA with 15% is (10bps - 20bps) higher than LA with 5% income
A35: EAC(Advice) | I35: 4 | J35: In other words, by choosing to do simplified we are accepting that the fee shown is 20bps-30bps lower than actual (RIY)
A36: Recurring CFs | B36: 1Yr | C36: 3Yr | D36: 5Yr | E36: 10Yr | F36: 25Yr | I36: 4.2 | J36: 10bps of the difference is purely due to the difference between simplified and RIY. Therefore, you are accepting a difference of (10bps - 20bps).
A37: R1m pa
A38: R100k pa | I38: Recommendation
A39: R10k pa | J39: Majority of LA clients should have income of 5%. Showing simplified results in 10-20bps lower fee of which 10bps is purely due to RIY methodology.
A40: 0 | B40: 0.01825758815 | C40: 0.006213337183 | D40: 0.003786879778 | E40: 0.001967567205 | F40: 0.0008803367615 | J40: Few LA clients have 15%. For them, simplified will result in 20-30bps lower fee of which 10bps is purely due to RIY methodology.
A41: -R150k pa | B41: 0.0187594831 | C41: 0.006729352474 | D41: 0.0043394804 | E41: 0.002646321058 | F41: 0.002638834715 | G41: Living Annuity @ 5% income | J41: Given that: (i) for the majority of LA clients the difference is not small (ii) there is a systems benefit of using the simplified methodology (iii) we keep consistency with how we treat our other products (not having separate logic for living annuity and other vehicles) (iv) we keep consistency with Max, I recommend that we use simplified methodology.
A42: -R450k pa | B42: 0.01985116005 | C42: 0.008070832491 | D42: 0.00612795949 | E42: NA | F42: NA | G42: Living Annuity @ 15% income
A43: -R450k pa | B43: 0.01986746788 | C43: 0.008043724298 | D43: 0.006013196707 | E43: 0.006888008118 | F43: 0.005204331875
A44: -R100k pa | B44: 0.01930581331 | C44: 0.007329320908 | D44: 0.005032646656 | E44: N/A | F44: N/A
A45: -R1m pa | B45: 0.03943755627 | C45: N/A | D45: N/A | E45: N/A | F45: N/A
A48: Simplified
B49: 1Yr | C49: 3Yr | D49: 5Yr | E49: 10Yr | F49: 25Yr
B50: =1.71% -> 0.0171 | C50: =1.71%/3 -> 0.0057 | D50: =1.71%/5 -> 0.00342 | E50: =1.71%/10 -> 0.00171 | F50: =1.71%/25 -> 0.000684

Sheet RIY Cashflows (hidden)
AO1: Term to maturity | AP1: =Illustrator!F41 -> 10
AO2: Last date | AP2: =DATE(YEAR(AO11)+AP1,MONTH(AO11),DAY(AO11)) -> 2010-01-01
A3: Assuming all client cashflows happen at start of month, initial fees at start of month and recurring fees at end of month.
W5: Advice | X5: Admin | Y5: Other | AC5: Advice | AD5: Admin | AE5: Other | AI5: Advice | AJ5: Admin | AK5: Other | AQ5: Advice | AR5: Admin | AS5: Other
V6: RIY | W6: =V10-W10 ->  | X6: =V10-X10 ->  | Y6: =V10-Y10 ->  | AB6: RYI | AC6: =AB10-AC10 ->  | AD6: =AB10-AD10 ->  | AE6: =AB10-AE10 ->  | AH6: RYI | AI6: =AH10-AI10 ->  | AJ6: =AH10-AJ10 ->  | AK6: =AH10-AK10 ->  | AP6: RYI | AQ6: =AP10-AQ10 ->  | AR6: =AP10-AR10 ->  | AS6: =AP10-AS10 -> 
G7: Initial charges | L7: Recurring charges
D8: =Assumptions!B3 -> 0.06 | G8: =Illustrator!C29 -> 0 | H8: =Illustrator!C30 -> 0 | I8: =Illustrator!C31 -> 0 | L8: =Illustrator!L18 -> 0 | R8: =Illustrator!C39 -> 0 | U8: 1-Year term | V8: g | W8: g(reduced advice) | X8: g(reduced admin) | Y8: g(reduced other) | AA8: 3-Year term | AC8: g(reduced advice) | AD8: g(reduced admin) | AE8: g(reduced other) | AH8: 5-Year term | AI8: g(reduced advice) | AJ8: g(reduced admin) | AK8: g(reduced other) | AP8: 10-Year term | AQ8: g(reduced advice) | AR8: g(reduced admin) | AS8: g(reduced other)
G9: Admin | H9: Advice | L9: IMC | Q9: Admin | R9: Advice
A10: Year | B10: Month | C10: Date | D10: Fund value at start of month | E10: Lump sum investment (in advance) | F10: Recurring investment (in advance) | G10: Initial admin fees | H10: Initial adviser fee lump sum | I10: Initial adviser fee recurring investments | J10: Recurring withdrawal | K10: Fund value before recurring fees | L10: Annual IMC | M10: Min fee | N10: Max fee | O10: Annual admin fee | P10: Max | Q10: Ongoing Admin Fee | R10: Annual advisor fee | S10: Fund value after fees | U10: Date | V10: =XIRR(V11:V24,$U11:$U24) ->  | W10: =XIRR(W11:W24,$U11:$U24) ->  | X10: =XIRR(X11:X24,$U11:$U24) ->  | Y10: =XIRR(Y11:Y24,$U11:$U24) ->  | AA10: Date | AB10: =XIRR(AB11:AB48,$AA11:$AA48) ->  | AC10: =XIRR(AC11:AC48,$AA11:$AA48) ->  | AG10: Date | AH10: =XIRR(AH11:AH72,$AG11:$AG72) ->  | AI10: =XIRR(AI11:AI72,$AG11:$AG72) ->  | AM10: Reference date | AN10: Line counter | AO10: Date | AP10: =XIRR(AP11:AP610,$AO11:$AO610) ->  | AQ10: =XIRR(AQ11:AQ610,$AO11:$AO610) -> 
A11: =ROUNDUP(B11/12,0) -> 1 | B11: 1 | C11: 2000-01-01 | D11: =Input!C13 -> 0 | E11: =Illustrator!C18 -> 10000 | F11: =Illustrator!D18 -> 0 | G11: =-SUMPRODUCT(Illustrator!$D$13:$D$17,Illustrator!$Q$13:$Q$17)/SUM(Illustrator!$D$13:$D$17)*F11 ->  | H11: =-E11*Illustrator!$I$18 -> 0 | I11: =-F11*Illustrator!$C$31 -> 0 | J11: =Illustrator!C24 -> 0 | K11: =SUM(D11:J11)*(1+$D$8)^((C12-C11)/365) ->  | L11: =-K11*(Illustrator!$L$18+Illustrator!$C$40)/12 ->  | M11: =IF(Illustrator!C22>=Assumptions!B18,0,Assumptions!B16) -> 0 | N11: =IF((SUM('Admin fee calc'!$B$9:$B$9)*(1+'RIY Cashflows'!$D$8)^('RIY Cashflows'!B11/12)+'RIY Cashflows'!D11)*Assumptions!$B$12>Assumptions!$B$17,Assumptions!$B$17*D11/(D11+SUM('Admin fee calc'!$B$9:$B$9)),Assumptions!$B$12*'RIY Cashflows'!D11) -> 0 | O11: =-MAX(MAX(D11*Assumptions!$B$12/12,N11),M11)-D11*Illustrator!#REF! ->  | P11: =Assumptions!$B$17 -> 99999999999 | Q11: =-K11*(Illustrator!$C$38)/12 ->  | R11: =-K11*(Illustrator!$C$39)/12 ->  | S11: =K11+L11+R11 ->  | U11: 2000-01-01 | V11: =$D11+SUM($E11:$J11) ->  | W11: =$D11+SUM($E11:$J11)-$H11-$I11 ->  | X11: =$D11+SUM($E11:$J11)-$G11-$Q11 ->  | Y11: =$D11+SUM($E11:$J11) ->  | AA11: 2000-01-01 | AB11: =$D11+SUM($E11:$J11) ->  | AC11: =$D11+SUM($E11:$J11)-$H11-$I11 ->  | AD11: =$D11+SUM($E11:$J11)-$G11-$Q11 ->  | AE11: =$D11+SUM($E11:$J11) ->  | AG11: 2000-01-01 | AH11: =$D11+SUM($E11:$J11) ->  | AI11: =$D11+SUM($E11:$J11)-$H11-$I11 ->  | AJ11: =$D11+SUM($E11:$J11)-$G11-$Q11 ->  | AK11: =$D11+SUM($E11:$J11) ->  | AM11: 2000-01-01 | AN11: carry on | AO11: 2000-01-01 | AP11: =$D11+SUM($E11:$J11) ->  | AQ11: =$D11+SUM($E11:$J11)-$H11-$I11 ->  | AR11: =$D11+SUM($E11:$J11)-$G11-$Q11 ->  | AS11: =$D11+SUM($E11:$J11) -> 
A12: =ROUNDUP(B12/12,0) -> 1 | B12: 2 | C12: 2000-02-01 | D12: =S11 ->  | E12: 0 | F12: =IF(A12=A11,F11,F11*(1+Illustrator!$C$23)) -> 0 | G12: =-SUMPRODUCT(Illustrator!$D$13:$D$17,Illustrator!$Q$13:$Q$17)/SUM(Illustrator!$D$13:$D$17)*F12 ->  | H12: =-E12*Illustrator!$I$18 -> 0 | I12: =-F12*Illustrator!$C$31 -> 0 | J12: =IF(A12=A11,J11,J11*(1+Illustrator!$C$25)) -> 0 | K12: =SUM(D12:J12)*(1+$D$8)^((C13-C12)/365) ->  | L12: =-K12*(Illustrator!$L$18+Illustrator!$C$40)/12 ->  | M12: =IF(A12=A11,M11,M11*(1+Assumptions!$C$16)) -> 0 | N12: =IF((SUM('Admin fee calc'!$B$9:$B$9)*(1+'RIY Cashflows'!$D$8)^('RIY Cashflows'!B12/12)+'RIY Cashflows'!D12)*Assumptions!$B$12>Assumptions!$B$17,Assumptions!$B$17*D12/(D12+SUM('Admin fee calc'!$B$9:$B$9)),Assumptions!$B$12*'RIY Cashflows'!D12) ->  | O12: =-MAX(MAX(D12*Assumptions!$B$12/12,N12),M12)-D12*Illustrator!#REF! ->  | P12: =IF(A12=A11,P11,P11*(1+Assumptions!$C$17)) -> 99999999999 | Q12: =-K12*(Illustrator!$C$38)/12 ->  | R12: =-K12*(Illustrator!$C$39)/12 ->  | S12: =K12+L12+R12 ->  | U12: 2000-02-01 | V12: =$L11+$R11+SUM($E12:$J12) ->  | W12: =$L11+$R11+SUM($E12:$J12)-$H12-$I12-$R11 ->  | X12: =$L11+$R11+SUM($E12:$J12)-$G12-$Q12 ->  | Y12: =$L11+$R11+SUM($E12:$J12) ->  | AA12: 2000-02-01 | AB12: =$L11+$R11+SUM($E12:$J12) ->  | AC12: =$L11+$R11+SUM($E12:$J12)-$H12-$I12-$R11 ->  | AD12: =$L11+$R11+SUM($E12:$J12)-$G12-$Q12 ->  | AE12: =$L11+$R11+SUM($E12:$J12) ->  | AG12: 2000-02-01 | AH12: =$L11+$R11+SUM($E12:$J12) ->  | AI12: =$L11+$R11+SUM($E12:$J12)-$H12-$I12-$R11 ->  | AJ12: =$L11+$R11+SUM($E12:$J12)-$G12-$Q12 ->  | AK12: =$L11+$R11+SUM($E12:$J12) ->  | AM12: 2000-02-01 | AN12: =IF(AM12<$AP$2,"carry on",IF(AN11="carry on","2nd last line",IF(AN11="2nd last line","last line",""))) -> carry on | AO12: =IF(AN12="carry on",AM12,IF(AN12="2nd last line",AM12-1,IF(AN12="last line",AO11,0))) -> 2000-02-01 | AP12: =$L11+$R11+SUM($E12:$J12) ->  | AQ12: =$L11+$R11+SUM($E12:$J12)-$H12-$I12-$R11 ->  | AR12: =$L11+$R11+SUM($E12:$J12)-$G12-$Q12 ->  | AS12: =$L11+$R11+SUM($E12:$J12) -> 
A13: 1 | B13: 3 | C13: 2000-03-01 | D13: =S12 ->  | E13: 0 | F13: =IF(A13=A12,F12,F12*(1+Illustrator!$C$23)) -> 0 | G13: =-SUMPRODUCT(Illustrator!$D$13:$D$17,Illustrator!$Q$13:$Q$17)/SUM(Illustrator!$D$13:$D$17)*F13 ->  | H13: =-E13*Illustrator!$I$18 -> 0 | I13: =-F13*Illustrator!$C$31 -> 0 | J13: =IF(A13=A12,J12,J12*(1+Illustrator!$C$25)) -> 0 | L13: =-K13*(Illustrator!$L$18+Illustrator!$C$40)/12 ->  | M13: =IF(A13=A12,M12,M12*(1+Assumptions!$C$16)) -> 0 | N13: =IF((SUM('Admin fee calc'!$B$9:$B$9)*(1+'RIY Cashflows'!$D$8)^('RIY Cashflows'!B13/12)+'RIY Cashflows'!D13)*Assumptions!$B$12>Assumptions!$B$17,Assumptions!$B$17*D13/(D13+SUM('Admin fee calc'!$B$9:$B$9)),Assumptions!$B$12*'RIY Cashflows'!D13) ->  | O13: =-MAX(MAX(D13*Assumptions!$B$12/12,N13),M13)-D13*Illustrator!#REF! ->  | P13: =IF(A13=A12,P12,P12*(1+Assumptions!$C$17)) -> 99999999999 | Q13: =-K13*(Illustrator!$C$38)/12 ->  | R13: =-K13*(Illustrator!$C$39)/12 ->  | U13: 2000-03-01 | V13: =$L12+$R12+SUM($E13:$J13) ->  | W13: =$L12+$R12+SUM($E13:$J13)-$H13-$I13-$R12 ->  | X13: =$L12+$R12+SUM($E13:$J13)-$G13-$Q13 ->  | AA13: 2000-03-01 | AG13: 2000-03-01 | AM13: 2000-03-01 | AN13: =IF(AM13<$AP$2,"carry on",IF(AN12="carry on","2nd last line",IF(AN12="2nd last line","last line",""))) -> carry on | AO13: =IF(AN13="carry on",AM13,IF(AN13="2nd last line",AM13-1,IF(AN13="last line",AO12,0))) -> 2000-03-01
A14: 1 | B14: 4 | C14: 2000-04-01 | E14: 0 | F14: =IF(A14=A13,F13,F13*(1+Illustrator!$C$23)) -> 0 | G14: =-SUMPRODUCT(Illustrator!$D$13:$D$17,Illustrator!$Q$13:$Q$17)/SUM(Illustrator!$D$13:$D$17)*F14 ->  | H14: =-E14*Illustrator!$I$18 -> 0 | I14: =-F14*Illustrator!$C$31 -> 0 | J14: =IF(A14=A13,J13,J13*(1+Illustrator!$C$25)) -> 0 | L14: =-K14*(Illustrator!$L$18+Illustrator!$C$40)/12 ->  | M14: =IF(A14=A13,M13,M13*(1+Assumptions!$C$16)) -> 0 | N14: =IF((SUM('Admin fee calc'!$B$9:$B$9)*(1+'RIY Cashflows'!$D$8)^('RIY Cashflows'!B14/12)+'RIY Cashflows'!D14)*Assumptions!$B$12>Assumptions!$B$17,Assumptions!$B$17*D14/(D14+SUM('Admin fee calc'!$B$9:$B$9)),Assumptions!$B$12*'RIY Cashflows'!D14) ->  | O14: =-MAX(MAX(D14*Assumptions!$B$12/12,N14),M14)-D14*Illustrator!#REF! ->  | P14: =IF(A14=A13,P13,P13*(1+Assumptions!$C$17)) -> 99999999999 | Q14: =-K14*(Illustrator!$C$38)/12 ->  | R14: =-K14*(Illustrator!$C$39)/12 ->  | U14: 2000-04-01 | AA14: 2000-04-01 | AG14: 2000-04-01 | AM14: 2000-04-01 | AN14: carry on | AO14: 2000-04-01
A15: 1 | B15: 5 | C15: 2000-05-01 | E15: 0 | F15: =IF(A15=A14,F14,F14*(1+Illustrator!$C$23)) -> 0 | G15: =-SUMPRODUCT(Illustrator!$D$13:$D$17,Illustrator!$Q$13:$Q$17)/SUM(Illustrator!$D$13:$D$17)*F15 ->  | H15: =-E15*Illustrator!$I$18 -> 0 | I15: =-F15*Illustrator!$C$31 -> 0 | J15: =IF(A15=A14,J14,J14*(1+Illustrator!$C$25)) -> 0 | L15: =-K15*(Illustrator!$L$18+Illustrator!$C$40)/12 ->  | M15: =IF(A15=A14,M14,M14*(1+Assumptions!$C$16)) -> 0 | N15: =IF((SUM('Admin fee calc'!$B$9:$B$9)*(1+'RIY Cashflows'!$D$8)^('RIY Cashflows'!B15/12)+'RIY Cashflows'!D15)*Assumptions!$B$12>Assumptions!$B$17,Assumptions!$B$17*D15/(D15+SUM('Admin fee calc'!$B$9:$B$9)),Assumptions!$B$12*'RIY Cashflows'!D15) ->  | O15: =-MAX(MAX(D15*Assumptions!$B$12/12,N15),M15)-D15*Illustrator!#REF! ->  | P15: =IF(A15=A14,P14,P14*(1+Assumptions!$C$17)) -> 99999999999 | Q15: =-K15*(Illustrator!$C$38)/12 ->  | R15: =-K15*(Illustrator!$C$39)/12 ->  | U15: 2000-05-01 | AA15: 2000-05-01 | AG15: 2000-05-01 | AM15: 2000-05-01 | AN15: carry on | AO15: 2000-05-01
A16: 1 | B16: 6 | C16: 2000-06-01 | E16: 0 | F16: =IF(A16=A15,F15,F15*(1+Illustrator!$C$23)) -> 0 | G16: =-SUMPRODUCT(Illustrator!$D$13:$D$17,Illustrator!$Q$13:$Q$17)/SUM(Illustrator!$D$13:$D$17)*F16 ->  | H16: =-E16*Illustrator!$I$18 -> 0 | I16: =-F16*Illustrator!$C$31 -> 0 | J16: =IF(A16=A15,J15,J15*(1+Illustrator!$C$25)) -> 0 | L16: =-K16*(Illustrator!$L$18+Illustrator!$C$40)/12 ->  | M16: =IF(A16=A15,M15,M15*(1+Assumptions!$C$16)) -> 0 | N16: =IF((SUM('Admin fee calc'!$B$9:$B$9)*(1+'RIY Cashflows'!$D$8)^('RIY Cashflows'!B16/12)+'RIY Cashflows'!D16)*Assumptions!$B$12>Assumptions!$B$17,Assumptions!$B$17*D16/(D16+SUM('Admin fee calc'!$B$9:$B$9)),Assumptions!$B$12*'RIY Cashflows'!D16) ->  | O16: =-MAX(MAX(D16*Assumptions!$B$12/12,N16),M16)-D16*Illustrator!#REF! ->  | P16: =IF(A16=A15,P15,P15*(1+Assumptions!$C$17)) -> 99999999999 | Q16: =-K16*(Illustrator!$C$38)/12 ->  | R16: =-K16*(Illustrator!$C$39)/12 ->  | U16: 2000-06-01 | AA16: 2000-06-01 | AG16: 2000-06-01 | AM16: 2000-06-01 | AN16: carry on | AO16: 2000-06-01
A17: 1 | B17: 7 | C17: 2000-07-01 | E17: 0 | F17: =IF(A17=A16,F16,F16*(1+Illustrator!$C$23)) -> 0 | G17: =-SUMPRODUCT(Illustrator!$D$13:$D$17,Illustrator!$Q$13:$Q$17)/SUM(Illustrator!$D$13:$D$17)*F17 ->  | H17: =-E17*Illustrator!$I$18 -> 0 | I17: =-F17*Illustrator!$C$31 -> 0 | J17: =IF(A17=A16,J16,J16*(1+Illustrator!$C$25)) -> 0 | L17: =-K17*(Illustrator!$L$18+Illustrator!$C$40)/12 ->  | M17: =IF(A17=A16,M16,M16*(1+Assumptions!$C$16)) -> 0 | N17: =IF((SUM('Admin fee calc'!$B$9:$B$9)*(1+'RIY Cashflows'!$D$8)^('RIY Cashflows'!B17/12)+'RIY Cashflows'!D17)*Assumptions!$B$12>Assumptions!$B$17,Assumptions!$B$17*D17/(D17+SUM('Admin fee calc'!$B$9:$B$9)),Assumptions!$B$12*'RIY Cashflows'!D17) ->  | O17: =-MAX(MAX(D17*Assumptions!$B$12/12,N17),M17)-D17*Illustrator!#REF! ->  | P17: =IF(A17=A16,P16,P16*(1+Assumptions!$C$17)) -> 99999999999 | Q17: =-K17*(Illustrator!$C$38)/12 ->  | R17: =-K17*(Illustrator!$C$39)/12 ->  | U17: 2000-07-01 | AA17: 2000-07-01 | AG17: 2000-07-01 | AM17: 2000-07-01 | AN17: carry on | AO17: 2000-07-01
A18: 1 | B18: 8 | C18: 2000-08-01 | E18: 0 | F18: =IF(A18=A17,F17,F17*(1+Illustrator!$C$23)) -> 0 | G18: =-SUMPRODUCT(Illustrator!$D$13:$D$17,Illustrator!$Q$13:$Q$17)/SUM(Illustrator!$D$13:$D$17)*F18 ->  | H18: =-E18*Illustrator!$I$18 -> 0 | I18: =-F18*Illustrator!$C$31 -> 0 | J18: =IF(A18=A17,J17,J17*(1+Illustrator!$C$25)) -> 0 | L18: =-K18*(Illustrator!$L$18+Illustrator!$C$40)/12 ->  | M18: =IF(A18=A17,M17,M17*(1+Assumptions!$C$16)) -> 0 | N18: =IF((SUM('Admin fee calc'!$B$9:$B$9)*(1+'RIY Cashflows'!$D$8)^('RIY Cashflows'!B18/12)+'RIY Cashflows'!D18)*Assumptions!$B$12>Assumptions!$B$17,Assumptions!$B$17*D18/(D18+SUM('Admin fee calc'!$B$9:$B$9)),Assumptions!$B$12*'RIY Cashflows'!D18) ->  | O18: =-MAX(MAX(D18*Assumptions!$B$12/12,N18),M18)-D18*Illustrator!#REF! ->  | P18: =IF(A18=A17,P17,P17*(1+Assumptions!$C$17)) -> 99999999999 | Q18: =-K18*(Illustrator!$C$38)/12 ->  | R18: =-K18*(Illustrator!$C$39)/12 ->  | U18: 2000-08-01 | AA18: 2000-08-01 | AG18: 2000-08-01 | AM18: 2000-08-01 | AN18: carry on | AO18: 2000-08-01
A19: 1 | B19: 9 | C19: 2000-09-01 | E19: 0 | F19: =IF(A19=A18,F18,F18*(1+Illustrator!$C$23)) -> 0 | G19: =-SUMPRODUCT(Illustrator!$D$13:$D$17,Illustrator!$Q$13:$Q$17)/SUM(Illustrator!$D$13:$D$17)*F19 ->  | H19: =-E19*Illustrator!$I$18 -> 0 | I19: =-F19*Illustrator!$C$31 -> 0 | J19: =IF(A19=A18,J18,J18*(1+Illustrator!$C$25)) -> 0 | L19: =-K19*(Illustrator!$L$18+Illustrator!$C$40)/12 ->  | M19: =IF(A19=A18,M18,M18*(1+Assumptions!$C$16)) -> 0 | N19: =IF((SUM('Admin fee calc'!$B$9:$B$9)*(1+'RIY Cashflows'!$D$8)^('RIY Cashflows'!B19/12)+'RIY Cashflows'!D19)*Assumptions!$B$12>Assumptions!$B$17,Assumptions!$B$17*D19/(D19+SUM('Admin fee calc'!$B$9:$B$9)),Assumptions!$B$12*'RIY Cashflows'!D19) ->  | O19: =-MAX(MAX(D19*Assumptions!$B$12/12,N19),M19)-D19*Illustrator!#REF! ->  | P19: =IF(A19=A18,P18,P18*(1+Assumptions!$C$17)) -> 99999999999 | Q19: =-K19*(Illustrator!$C$38)/12 ->  | R19: =-K19*(Illustrator!$C$39)/12 ->  | U19: 2000-09-01 | AA19: 2000-09-01 | AG19: 2000-09-01 | AM19: 2000-09-01 | AN19: carry on | AO19: 2000-09-01
A20: 1 | B20: 10 | C20: 2000-10-01 | E20: 0 | F20: =IF(A20=A19,F19,F19*(1+Illustrator!$C$23)) -> 0 | G20: =-SUMPRODUCT(Illustrator!$D$13:$D$17,Illustrator!$Q$13:$Q$17)/SUM(Illustrator!$D$13:$D$17)*F20 ->  | H20: =-E20*Illustrator!$I$18 -> 0 | I20: =-F20*Illustrator!$C$31 -> 0 | J20: =IF(A20=A19,J19,J19*(1+Illustrator!$C$25)) -> 0 | L20: =-K20*(Illustrator!$L$18+Illustrator!$C$40)/12 ->  | M20: =IF(A20=A19,M19,M19*(1+Assumptions!$C$16)) -> 0 | N20: =IF((SUM('Admin fee calc'!$B$9:$B$9)*(1+'RIY Cashflows'!$D$8)^('RIY Cashflows'!B20/12)+'RIY Cashflows'!D20)*Assumptions!$B$12>Assumptions!$B$17,Assumptions!$B$17*D20/(D20+SUM('Admin fee calc'!$B$9:$B$9)),Assumptions!$B$12*'RIY Cashflows'!D20) ->  | O20: =-MAX(MAX(D20*Assumptions!$B$12/12,N20),M20)-D20*Illustrator!#REF! ->  | P20: =IF(A20=A19,P19,P19*(1+Assumptions!$C$17)) -> 99999999999 | Q20: =-K20*(Illustrator!$C$38)/12 ->  | R20: =-K20*(Illustrator!$C$39)/12 ->  | U20: 2000-10-01 | AA20: 2000-10-01 | AG20: 2000-10-01 | AM20: 2000-10-01 | AN20: carry on | AO20: 2000-10-01
A21: 1 | B21: 11 | C21: 2000-11-01 | E21: 0 | F21: =IF(A21=A20,F20,F20*(1+Illustrator!$C$23)) -> 0 | G21: =-SUMPRODUCT(Illustrator!$D$13:$D$17,Illustrator!$Q$13:$Q$17)/SUM(Illustrator!$D$13:$D$17)*F21 ->  | H21: =-E21*Illustrator!$I$18 -> 0 | I21: =-F21*Illustrator!$C$31 -> 0 | J21: =IF(A21=A20,J20,J20*(1+Illustrator!$C$25)) -> 0 | L21: =-K21*(Illustrator!$L$18+Illustrator!$C$40)/12 ->  | M21: =IF(A21=A20,M20,M20*(1+Assumptions!$C$16)) -> 0 | N21: =IF((SUM('Admin fee calc'!$B$9:$B$9)*(1+'RIY Cashflows'!$D$8)^('RIY Cashflows'!B21/12)+'RIY Cashflows'!D21)*Assumptions!$B$12>Assumptions!$B$17,Assumptions!$B$17*D21/(D21+SUM('Admin fee calc'!$B$9:$B$9)),Assumptions!$B$12*'RIY Cashflows'!D21) ->  | O21: =-MAX(MAX(D21*Assumptions!$B$12/12,N21),M21)-D21*Illustrator!#REF! ->  | P21: =IF(A21=A20,P20,P20*(1+Assumptions!$C$17)) -> 99999999999 | Q21: =-K21*(Illustrator!$C$38)/12 ->  | R21: =-K21*(Illustrator!$C$39)/12 ->  | U21: 2000-11-01 | AA21: 2000-11-01 | AG21: 2000-11-01 | AM21: 2000-11-01 | AN21: carry on | AO21: 2000-11-01
A22: 1 | B22: 12 | C22: 2000-12-01 | E22: 0 | F22: =IF(A22=A21,F21,F21*(1+Illustrator!$C$23)) -> 0 | G22: =-SUMPRODUCT(Illustrator!$D$13:$D$17,Illustrator!$Q$13:$Q$17)/SUM(Illustrator!$D$13:$D$17)*F22 ->  | H22: =-E22*Illustrator!$I$18 -> 0 | I22: =-F22*Illustrator!$C$31 -> 0 | J22: =IF(A22=A21,J21,J21*(1+Illustrator!$C$25)) -> 0 | L22: =-K22*(Illustrator!$L$18+Illustrator!$C$40)/12 ->  | M22: =IF(A22=A21,M21,M21*(1+Assumptions!$C$16)) -> 0 | N22: =IF((SUM('Admin fee calc'!$B$9:$B$9)*(1+'RIY Cashflows'!$D$8)^('RIY Cashflows'!B22/12)+'RIY Cashflows'!D22)*Assumptions!$B$12>Assumptions!$B$17,Assumptions!$B$17*D22/(D22+SUM('Admin fee calc'!$B$9:$B$9)),Assumptions!$B$12*'RIY Cashflows'!D22) ->  | O22: =-MAX(MAX(D22*Assumptions!$B$12/12,N22),M22)-D22*Illustrator!#REF! ->  | P22: =IF(A22=A21,P21,P21*(1+Assumptions!$C$17)) -> 99999999999 | Q22: =-K22*(Illustrator!$C$38)/12 ->  | R22: =-K22*(Illustrator!$C$39)/12 ->  | U22: 2000-12-01 | V22: =$L21+$R21+SUM($E22:$J22) ->  | AA22: 2000-12-01 | AG22: 2000-12-01 | AM22: 2000-12-01 | AN22: carry on | AO22: 2000-12-01
A23: 2 | B23: 13 | C23: 2001-01-01 | E23: 0 | F23: =IF(A23=A22,F22,F22*(1+Illustrator!$C$23)) -> 0 | G23: =-SUMPRODUCT(Illustrator!$D$13:$D$17,Illustrator!$Q$13:$Q$17)/SUM(Illustrator!$D$13:$D$17)*F23 ->  | H23: =-E23*Illustrator!$I$18 -> 0 | I23: =-F23*Illustrator!$C$31 -> 0 | J23: =IF(A23=A22,J22,J22*(1+Illustrator!$C$25)) -> 0 | L23: =-K23*(Illustrator!$L$18+Illustrator!$C$40)/12 ->  | M23: =IF(A23=A22,M22,M22*(1+Assumptions!$C$16)) -> 0 | N23: =IF((SUM('Admin fee calc'!$B$9:$B$9)*(1+'RIY Cashflows'!$D$8)^('RIY Cashflows'!B23/12)+'RIY Cashflows'!D23)*Assumptions!$B$12>Assumptions!$B$17,Assumptions!$B$17*D23/(D23+SUM('Admin fee calc'!$B$9:$B$9)),Assumptions!$B$12*'RIY Cashflows'!D23) ->  | O23: =-MAX(MAX(D23*Assumptions!$B$12/12,N23),M23)-D23*Illustrator!#REF! ->  | P23: =IF(A23=A22,P22,P22*(1+Assumptions!$C$17)) -> 1.06e+11 | Q23: =-K23*(Illustrator!$C$38)/12 ->  | R23: =-K23*(Illustrator!$C$39)/12 ->  | U23: 2000-12-31 | V23: =$L22+$R22 ->  | W23: =$L22+$R22-$R22 ->  | X23: =$L22+$R22-$Q22 ->  | Y23: =$L22+$R22 ->  | AA23: 2001-01-01 | AG23: 2001-01-01 | AM23: 2001-01-01 | AN23: carry on | AO23: 2001-01-01
A24: 2 | B24: 14 | C24: 2001-02-01 | E24: 0 | F24: =IF(A24=A23,F23,F23*(1+Illustrator!$C$23)) -> 0 | G24: =-SUMPRODUCT(Illustrator!$D$13:$D$17,Illustrator!$Q$13:$Q$17)/SUM(Illustrator!$D$13:$D$17)*F24 ->  | H24: =-E24*Illustrator!$I$18 -> 0 | I24: =-F24*Illustrator!$C$31 -> 0 | J24: =IF(A24=A23,J23,J23*(1+Illustrator!$C$25)) -> 0 | L24: =-K24*(Illustrator!$L$18+Illustrator!$C$40)/12 ->  | M24: =IF(A24=A23,M23,M23*(1+Assumptions!$C$16)) -> 0 | N24: =IF((SUM('Admin fee calc'!$B$9:$B$9)*(1+'RIY Cashflows'!$D$8)^('RIY Cashflows'!B24/12)+'RIY Cashflows'!D24)*Assumptions!$B$12>Assumptions!$B$17,Assumptions!$B$17*D24/(D24+SUM('Admin fee calc'!$B$9:$B$9)),Assumptions!$B$12*'RIY Cashflows'!D24) ->  | O24: =-MAX(MAX(D24*Assumptions!$B$12/12,N24),M24)-D24*Illustrator!#REF! ->  | P24: =IF(A24=A23,P23,P23*(1+Assumptions!$C$17)) -> 1.06e+11 | Q24: =-K24*(Illustrator!$C$38)/12 ->  | R24: =-K24*(Illustrator!$C$39)/12 ->  | U24: 2000-12-31 | V24: =-$S22 ->  | W24: =-$S22 ->  | Y24: =-$S22 ->  | AA24: 2001-02-01 | AG24: 2001-02-01 | AM24: 2001-02-01 | AN24: carry on | AO24: 2001-02-01
A25: 2 | B25: 15 | C25: 2001-03-01 | E25: 0 | F25: =IF(A25=A24,F24,F24*(1+Illustrator!$C$23)) -> 0 | G25: =-SUMPRODUCT(Illustrator!$D$13:$D$17,Illustrator!$Q$13:$Q$17)/SUM(Illustrator!$D$13:$D$17)*F25 ->  | H25: =-E25*Illustrator!$I$18 -> 0 | I25: =-F25*Illustrator!$C$31 -> 0 | J25: =IF(A25=A24,J24,J24*(1+Illustrator!$C$25)) -> 0 | L25: =-K25*(Illustrator!$L$18+Illustrator!$C$40)/12 ->  | M25: =IF(A25=A24,M24,M24*(1+Assumptions!$C$16)) -> 0 | N25: =IF((SUM('Admin fee calc'!$B$9:$B$9)*(1+'RIY Cashflows'!$D$8)^('RIY Cashflows'!B25/12)+'RIY Cashflows'!D25)*Assumptions!$B$12>Assumptions!$B$17,Assumptions!$B$17*D25/(D25+SUM('Admin fee calc'!$B$9:$B$9)),Assumptions!$B$12*'RIY Cashflows'!D25) ->  | O25: =-MAX(MAX(D25*Assumptions!$B$12/12,N25),M25)-D25*Illustrator!#REF! ->  | P25: =IF(A25=A24,P24,P24*(1+Assumptions!$C$17)) -> 1.06e+11 | Q25: =-K25*(Illustrator!$C$38)/12 ->  | R25: =-K25*(Illustrator!$C$39)/12 ->  | AA25: 2001-03-01 | AG25: 2001-03-01 | AM25: 2001-03-01 | AN25: carry on | AO25: 2001-03-01
A26: 2 | B26: 16 | C26: 2001-04-01 | E26: 0 | F26: =IF(A26=A25,F25,F25*(1+Illustrator!$C$23)) -> 0 | G26: =-SUMPRODUCT(Illustrator!$D$13:$D$17,Illustrator!$Q$13:$Q$17)/SUM(Illustrator!$D$13:$D$17)*F26 ->  | H26: =-E26*Illustrator!$I$18 -> 0 | I26: =-F26*Illustrator!$C$31 -> 0 | J26: =IF(A26=A25,J25,J25*(1+Illustrator!$C$25)) -> 0 | L26: =-K26*(Illustrator!$L$18+Illustrator!$C$40)/12 ->  | M26: =IF(A26=A25,M25,M25*(1+Assumptions!$C$16)) -> 0 | N26: =IF((SUM('Admin fee calc'!$B$9:$B$9)*(1+'RIY Cashflows'!$D$8)^('RIY Cashflows'!B26/12)+'RIY Cashflows'!D26)*Assumptions!$B$12>Assumptions!$B$17,Assumptions!$B$17*D26/(D26+SUM('Admin fee calc'!$B$9:$B$9)),Assumptions!$B$12*'RIY Cashflows'!D26) ->  | O26: =-MAX(MAX(D26*Assumptions!$B$12/12,N26),M26)-D26*Illustrator!#REF! ->  | P26: =IF(A26=A25,P25,P25*(1+Assumptions!$C$17)) -> 1.06e+11 | Q26: =-K26*(Illustrator!$C$38)/12 ->  | R26: =-K26*(Illustrator!$C$39)/12 ->  | AA26: 2001-04-01 | AG26: 2001-04-01 | AM26: 2001-04-01 | AN26: carry on | AO26: 2001-04-01
A27: 2 | B27: 17 | C27: 2001-05-01 | E27: 0 | F27: =IF(A27=A26,F26,F26*(1+Illustrator!$C$23)) -> 0 | G27: =-SUMPRODUCT(Illustrator!$D$13:$D$17,Illustrator!$Q$13:$Q$17)/SUM(Illustrator!$D$13:$D$17)*F27 ->  | H27: =-E27*Illustrator!$I$18 -> 0 | I27: =-F27*Illustrator!$C$31 -> 0 | J27: =IF(A27=A26,J26,J26*(1+Illustrator!$C$25)) -> 0 | L27: =-K27*(Illustrator!$L$18+Illustrator!$C$40)/12 ->  | M27: =IF(A27=A26,M26,M26*(1+Assumptions!$C$16)) -> 0 | N27: =IF((SUM('Admin fee calc'!$B$9:$B$9)*(1+'RIY Cashflows'!$D$8)^('RIY Cashflows'!B27/12)+'RIY Cashflows'!D27)*Assumptions!$B$12>Assumptions!$B$17,Assumptions!$B$17*D27/(D27+SUM('Admin fee calc'!$B$9:$B$9)),Assumptions!$B$12*'RIY Cashflows'!D27) ->  | O27: =-MAX(MAX(D27*Assumptions!$B$12/12,N27),M27)-D27*Illustrator!#REF! ->  | P27: =IF(A27=A26,P26,P26*(1+Assumptions!$C$17)) -> 1.06e+11 | Q27: =-K27*(Illustrator!$C$38)/12 ->  | R27: =-K27*(Illustrator!$C$39)/12 ->  | AA27: 2001-05-01 | AG27: 2001-05-01 | AM27: 2001-05-01 | AN27: carry on | AO27: 2001-05-01
A28: 2 | B28: 18 | C28: 2001-06-01 | E28: 0 | F28: =IF(A28=A27,F27,F27*(1+Illustrator!$C$23)) -> 0 | G28: =-SUMPRODUCT(Illustrator!$D$13:$D$17,Illustrator!$Q$13:$Q$17)/SUM(Illustrator!$D$13:$D$17)*F28 ->  | H28: =-E28*Illustrator!$I$18 -> 0 | I28: =-F28*Illustrator!$C$31 -> 0 | J28: =IF(A28=A27,J27,J27*(1+Illustrator!$C$25)) -> 0 | L28: =-K28*(Illustrator!$L$18+Illustrator!$C$40)/12 ->  | M28: =IF(A28=A27,M27,M27*(1+Assumptions!$C$16)) -> 0 | N28: =IF((SUM('Admin fee calc'!$B$9:$B$9)*(1+'RIY Cashflows'!$D$8)^('RIY Cashflows'!B28/12)+'RIY Cashflows'!D28)*Assumptions!$B$12>Assumptions!$B$17,Assumptions!$B$17*D28/(D28+SUM('Admin fee calc'!$B$9:$B$9)),Assumptions!$B$12*'RIY Cashflows'!D28) ->  | O28: =-MAX(MAX(D28*Assumptions!$B$12/12,N28),M28)-D28*Illustrator!#REF! ->  | P28: =IF(A28=A27,P27,P27*(1+Assumptions!$C$17)) -> 1.06e+11 | Q28: =-K28*(Illustrator!$C$38)/12 ->  | R28: =-K28*(Illustrator!$C$39)/12 ->  | AA28: 2001-06-01 | AG28: 2001-06-01 | AM28: 2001-06-01 | AN28: carry on | AO28: 2001-06-01
A29: 2 | B29: 19 | C29: 2001-07-01 | E29: 0 | F29: =IF(A29=A28,F28,F28*(1+Illustrator!$C$23)) -> 0 | G29: =-SUMPRODUCT(Illustrator!$D$13:$D$17,Illustrator!$Q$13:$Q$17)/SUM(Illustrator!$D$13:$D$17)*F29 ->  | H29: =-E29*Illustrator!$I$18 -> 0 | I29: =-F29*Illustrator!$C$31 -> 0 | J29: =IF(A29=A28,J28,J28*(1+Illustrator!$C$25)) -> 0 | L29: =-K29*(Illustrator!$L$18+Illustrator!$C$40)/12 ->  | M29: =IF(A29=A28,M28,M28*(1+Assumptions!$C$16)) -> 0 | N29: =IF((SUM('Admin fee calc'!$B$9:$B$9)*(1+'RIY Cashflows'!$D$8)^('RIY Cashflows'!B29/12)+'RIY Cashflows'!D29)*Assumptions!$B$12>Assumptions!$B$17,Assumptions!$B$17*D29/(D29+SUM('Admin fee calc'!$B$9:$B$9)),Assumptions!$B$12*'RIY Cashflows'!D29) ->  | O29: =-MAX(MAX(D29*Assumptions!$B$12/12,N29),M29)-D29*Illustrator!#REF! ->  | P29: =IF(A29=A28,P28,P28*(1+Assumptions!$C$17)) -> 1.06e+11 | Q29: =-K29*(Illustrator!$C$38)/12 ->  | R29: =-K29*(Illustrator!$C$39)/12 ->  | AA29: 2001-07-01 | AG29: 2001-07-01 | AM29: 2001-07-01 | AN29: carry on | AO29: 2001-07-01
A30: 2 | B30: 20 | C30: 2001-08-01 | E30: 0 | F30: =IF(A30=A29,F29,F29*(1+Illustrator!$C$23)) -> 0 | G30: =-SUMPRODUCT(Illustrator!$D$13:$D$17,Illustrator!$Q$13:$Q$17)/SUM(Illustrator!$D$13:$D$17)*F30 ->  | H30: =-E30*Illustrator!$I$18 -> 0 | I30: =-F30*Illustrator!$C$31 -> 0 | J30: =IF(A30=A29,J29,J29*(1+Illustrator!$C$25)) -> 0 | L30: =-K30*(Illustrator!$L$18+Illustrator!$C$40)/12 ->  | M30: =IF(A30=A29,M29,M29*(1+Assumptions!$C$16)) -> 0 | N30: =IF((SUM('Admin fee calc'!$B$9:$B$9)*(1+'RIY Cashflows'!$D$8)^('RIY Cashflows'!B30/12)+'RIY Cashflows'!D30)*Assumptions!$B$12>Assumptions!$B$17,Assumptions!$B$17*D30/(D30+SUM('Admin fee calc'!$B$9:$B$9)),Assumptions!$B$12*'RIY Cashflows'!D30) ->  | O30: =-MAX(MAX(D30*Assumptions!$B$12/12,N30),M30)-D30*Illustrator!#REF! ->  | P30: =IF(A30=A29,P29,P29*(1+Assumptions!$C$17)) -> 1.06e+11 | Q30: =-K30*(Illustrator!$C$38)/12 ->  | R30: =-K30*(Illustrator!$C$39)/12 ->  | AA30: 2001-08-01 | AG30: 2001-08-01 | AM30: 2001-08-01 | AN30: carry on | AO30: 2001-08-01
A31: 2 | B31: 21 | C31: 2001-09-01 | E31: 0 | F31: =IF(A31=A30,F30,F30*(1+Illustrator!$C$23)) -> 0 | G31: =-SUMPRODUCT(Illustrator!$D$13:$D$17,Illustrator!$Q$13:$Q$17)/SUM(Illustrator!$D$13:$D$17)*F31 ->  | H31: =-E31*Illustrator!$I$18 -> 0 | I31: =-F31*Illustrator!$C$31 -> 0 | J31: =IF(A31=A30,J30,J30*(1+Illustrator!$C$25)) -> 0 | L31: =-K31*(Illustrator!$L$18+Illustrator!$C$40)/12 ->  | M31: =IF(A31=A30,M30,M30*(1+Assumptions!$C$16)) -> 0 | N31: =IF((SUM('Admin fee calc'!$B$9:$B$9)*(1+'RIY Cashflows'!$D$8)^('RIY Cashflows'!B31/12)+'RIY Cashflows'!D31)*Assumptions!$B$12>Assumptions!$B$17,Assumptions!$B$17*D31/(D31+SUM('Admin fee calc'!$B$9:$B$9)),Assumptions!$B$12*'RIY Cashflows'!D31) ->  | O31: =-MAX(MAX(D31*Assumptions!$B$12/12,N31),M31)-D31*Illustrator!#REF! ->  | P31: =IF(A31=A30,P30,P30*(1+Assumptions!$C$17)) -> 1.06e+11 | Q31: =-K31*(Illustrator!$C$38)/12 ->  | R31: =-K31*(Illustrator!$C$39)/12 ->  | AA31: 2001-09-01 | AG31: 2001-09-01 | AM31: 2001-09-01 | AN31: carry on | AO31: 2001-09-01
A32: 2 | B32: 22 | C32: 2001-10-01 | E32: 0 | F32: =IF(A32=A31,F31,F31*(1+Illustrator!$C$23)) -> 0 | G32: =-SUMPRODUCT(Illustrator!$D$13:$D$17,Illustrator!$Q$13:$Q$17)/SUM(Illustrator!$D$13:$D$17)*F32 ->  | H32: =-E32*Illustrator!$I$18 -> 0 | I32: =-F32*Illustrator!$C$31 -> 0 | J32: =IF(A32=A31,J31,J31*(1+Illustrator!$C$25)) -> 0 | L32: =-K32*(Illustrator!$L$18+Illustrator!$C$40)/12 ->  | M32: =IF(A32=A31,M31,M31*(1+Assumptions!$C$16)) -> 0 | N32: =IF((SUM('Admin fee calc'!$B$9:$B$9)*(1+'RIY Cashflows'!$D$8)^('RIY Cashflows'!B32/12)+'RIY Cashflows'!D32)*Assumptions!$B$12>Assumptions!$B$17,Assumptions!$B$17*D32/(D32+SUM('Admin fee calc'!$B$9:$B$9)),Assumptions!$B$12*'RIY Cashflows'!D32) ->  | O32: =-MAX(MAX(D32*Assumptions!$B$12/12,N32),M32)-D32*Illustrator!#REF! ->  | P32: =IF(A32=A31,P31,P31*(1+Assumptions!$C$17)) -> 1.06e+11 | Q32: =-K32*(Illustrator!$C$38)/12 ->  | R32: =-K32*(Illustrator!$C$39)/12 ->  | AA32: 2001-10-01 | AG32: 2001-10-01 | AM32: 2001-10-01 | AN32: carry on | AO32: 2001-10-01
A33: 2 | B33: 23 | C33: 2001-11-01 | E33: 0 | F33: =IF(A33=A32,F32,F32*(1+Illustrator!$C$23)) -> 0 | G33: =-SUMPRODUCT(Illustrator!$D$13:$D$17,Illustrator!$Q$13:$Q$17)/SUM(Illustrator!$D$13:$D$17)*F33 ->  | H33: =-E33*Illustrator!$I$18 -> 0 | I33: =-F33*Illustrator!$C$31 -> 0 | J33: =IF(A33=A32,J32,J32*(1+Illustrator!$C$25)) -> 0 | L33: =-K33*(Illustrator!$L$18+Illustrator!$C$40)/12 ->  | M33: =IF(A33=A32,M32,M32*(1+Assumptions!$C$16)) -> 0 | N33: =IF((SUM('Admin fee calc'!$B$9:$B$9)*(1+'RIY Cashflows'!$D$8)^('RIY Cashflows'!B33/12)+'RIY Cashflows'!D33)*Assumptions!$B$12>Assumptions!$B$17,Assumptions!$B$17*D33/(D33+SUM('Admin fee calc'!$B$9:$B$9)),Assumptions!$B$12*'RIY Cashflows'!D33) ->  | O33: =-MAX(MAX(D33*Assumptions!$B$12/12,N33),M33)-D33*Illustrator!#REF! ->  | P33: =IF(A33=A32,P32,P32*(1+Assumptions!$C$17)) -> 1.06e+11 | Q33: =-K33*(Illustrator!$C$38)/12 ->  | R33: =-K33*(Illustrator!$C$39)/12 ->  | AA33: 2001-11-01 | AG33: 2001-11-01 | AM33: 2001-11-01 | AN33: carry on | AO33: 2001-11-01
A34: 2 | B34: 24 | C34: 2001-12-01 | E34: 0 | F34: =IF(A34=A33,F33,F33*(1+Illustrator!$C$23)) -> 0 | G34: =-SUMPRODUCT(Illustrator!$D$13:$D$17,Illustrator!$Q$13:$Q$17)/SUM(Illustrator!$D$13:$D$17)*F34 ->  | H34: =-E34*Illustrator!$I$18 -> 0 | I34: =-F34*Illustrator!$C$31 -> 0 | J34: =IF(A34=A33,J33,J33*(1+Illustrator!$C$25)) -> 0 | L34: =-K34*(Illustrator!$L$18+Illustrator!$C$40)/12 ->  | M34: =IF(A34=A33,M33,M33*(1+Assumptions!$C$16)) -> 0 | N34: =IF((SUM('Admin fee calc'!$B$9:$B$9)*(1+'RIY Cashflows'!$D$8)^('RIY Cashflows'!B34/12)+'RIY Cashflows'!D34)*Assumptions!$B$12>Assumptions!$B$17,Assumptions!$B$17*D34/(D34+SUM('Admin fee calc'!$B$9:$B$9)),Assumptions!$B$12*'RIY Cashflows'!D34) ->  | O34: =-MAX(MAX(D34*Assumptions!$B$12/12,N34),M34)-D34*Illustrator!#REF! ->  | P34: =IF(A34=A33,P33,P33*(1+Assumptions!$C$17)) -> 1.06e+11 | Q34: =-K34*(Illustrator!$C$38)/12 ->  | R34: =-K34*(Illustrator!$C$39)/12 ->  | AA34: 2001-12-01 | AG34: 2001-12-01 | AM34: 2001-12-01 | AN34: carry on | AO34: 2001-12-01
A35: 3 | B35: 25 | C35: 2002-01-01 | E35: 0 | F35: =IF(A35=A34,F34,F34*(1+Illustrator!$C$23)) -> 0 | G35: =-SUMPRODUCT(Illustrator!$D$13:$D$17,Illustrator!$Q$13:$Q$17)/SUM(Illustrator!$D$13:$D$17)*F35 ->  | H35: =-E35*Illustrator!$I$18 -> 0 | I35: =-F35*Illustrator!$C$31 -> 0 | J35: =IF(A35=A34,J34,J34*(1+Illustrator!$C$25)) -> 0 | L35: =-K35*(Illustrator!$L$18+Illustrator!$C$40)/12 ->  | M35: =IF(A35=A34,M34,M34*(1+Assumptions!$C$16)) -> 0 | N35: =IF((SUM('Admin fee calc'!$B$9:$B$9)*(1+'RIY Cashflows'!$D$8)^('RIY Cashflows'!B35/12)+'RIY Cashflows'!D35)*Assumptions!$B$12>Assumptions!$B$17,Assumptions!$B$17*D35/(D35+SUM('Admin fee calc'!$B$9:$B$9)),Assumptions!$B$12*'RIY Cashflows'!D35) ->  | O35: =-MAX(MAX(D35*Assumptions!$B$12/12,N35),M35)-D35*Illustrator!#REF! ->  | P35: =IF(A35=A34,P34,P34*(1+Assumptions!$C$17)) -> 1.1236e+11 | Q35: =-K35*(Illustrator!$C$38)/12 ->  | R35: =-K35*(Illustrator!$C$39)/12 ->  | AA35: 2002-01-01 | AG35: 2002-01-01 | AM35: 2002-01-01 | AN35: carry on | AO35: 2002-01-01
A36: 3 | B36: 26 | C36: 2002-02-01 | E36: 0 | F36: =IF(A36=A35,F35,F35*(1+Illustrator!$C$23)) -> 0 | G36: =-SUMPRODUCT(Illustrator!$D$13:$D$17,Illustrator!$Q$13:$Q$17)/SUM(Illustrator!$D$13:$D$17)*F36 ->  | H36: =-E36*Illustrator!$I$18 -> 0 | I36: =-F36*Illustrator!$C$31 -> 0 | J36: =IF(A36=A35,J35,J35*(1+Illustrator!$C$25)) -> 0 | L36: =-K36*(Illustrator!$L$18+Illustrator!$C$40)/12 ->  | M36: =IF(A36=A35,M35,M35*(1+Assumptions!$C$16)) -> 0 | N36: =IF((SUM('Admin fee calc'!$B$9:$B$9)*(1+'RIY Cashflows'!$D$8)^('RIY Cashflows'!B36/12)+'RIY Cashflows'!D36)*Assumptions!$B$12>Assumptions!$B$17,Assumptions!$B$17*D36/(D36+SUM('Admin fee calc'!$B$9:$B$9)),Assumptions!$B$12*'RIY Cashflows'!D36) ->  | O36: =-MAX(MAX(D36*Assumptions!$B$12/12,N36),M36)-D36*Illustrator!#REF! ->  | P36: =IF(A36=A35,P35,P35*(1+Assumptions!$C$17)) -> 1.1236e+11 | Q36: =-K36*(Illustrator!$C$38)/12 ->  | R36: =-K36*(Illustrator!$C$39)/12 ->  | AA36: 2002-02-01 | AG36: 2002-02-01 | AM36: 2002-02-01 | AN36: carry on | AO36: 2002-02-01
A37: 3 | B37: 27 | C37: 2002-03-01 | E37: 0 | F37: =IF(A37=A36,F36,F36*(1+Illustrator!$C$23)) -> 0 | G37: =-SUMPRODUCT(Illustrator!$D$13:$D$17,Illustrator!$Q$13:$Q$17)/SUM(Illustrator!$D$13:$D$17)*F37 ->  | H37: =-E37*Illustrator!$I$18 -> 0 | I37: =-F37*Illustrator!$C$31 -> 0 | J37: =IF(A37=A36,J36,J36*(1+Illustrator!$C$25)) -> 0 | L37: =-K37*(Illustrator!$L$18+Illustrator!$C$40)/12 ->  | M37: =IF(A37=A36,M36,M36*(1+Assumptions!$C$16)) -> 0 | N37: =IF((SUM('Admin fee calc'!$B$9:$B$9)*(1+'RIY Cashflows'!$D$8)^('RIY Cashflows'!B37/12)+'RIY Cashflows'!D37)*Assumptions!$B$12>Assumptions!$B$17,Assumptions!$B$17*D37/(D37+SUM('Admin fee calc'!$B$9:$B$9)),Assumptions!$B$12*'RIY Cashflows'!D37) ->  | O37: =-MAX(MAX(D37*Assumptions!$B$12/12,N37),M37)-D37*Illustrator!#REF! ->  | P37: =IF(A37=A36,P36,P36*(1+Assumptions!$C$17)) -> 1.1236e+11 | Q37: =-K37*(Illustrator!$C$38)/12 ->  | R37: =-K37*(Illustrator!$C$39)/12 ->  | AA37: 2002-03-01 | AG37: 2002-03-01 | AM37: 2002-03-01 | AN37: carry on | AO37: 2002-03-01
A38: 3 | B38: 28 | C38: 2002-04-01 | E38: 0 | F38: =IF(A38=A37,F37,F37*(1+Illustrator!$C$23)) -> 0 | G38: =-SUMPRODUCT(Illustrator!$D$13:$D$17,Illustrator!$Q$13:$Q$17)/SUM(Illustrator!$D$13:$D$17)*F38 ->  | H38: =-E38*Illustrator!$I$18 -> 0 | I38: =-F38*Illustrator!$C$31 -> 0 | J38: =IF(A38=A37,J37,J37*(1+Illustrator!$C$25)) -> 0 | L38: =-K38*(Illustrator!$L$18+Illustrator!$C$40)/12 ->  | M38: =IF(A38=A37,M37,M37*(1+Assumptions!$C$16)) -> 0 | N38: =IF((SUM('Admin fee calc'!$B$9:$B$9)*(1+'RIY Cashflows'!$D$8)^('RIY Cashflows'!B38/12)+'RIY Cashflows'!D38)*Assumptions!$B$12>Assumptions!$B$17,Assumptions!$B$17*D38/(D38+SUM('Admin fee calc'!$B$9:$B$9)),Assumptions!$B$12*'RIY Cashflows'!D38) ->  | O38: =-MAX(MAX(D38*Assumptions!$B$12/12,N38),M38)-D38*Illustrator!#REF! ->  | P38: =IF(A38=A37,P37,P37*(1+Assumptions!$C$17)) -> 1.1236e+11 | Q38: =-K38*(Illustrator!$C$38)/12 ->  | R38: =-K38*(Illustrator!$C$39)/12 ->  | AA38: 2002-04-01 | AG38: 2002-04-01 | AM38: 2002-04-01 | AN38: carry on | AO38: 2002-04-01
A39: 3 | B39: 29 | C39: 2002-05-01 | E39: 0 | F39: =IF(A39=A38,F38,F38*(1+Illustrator!$C$23)) -> 0 | G39: =-SUMPRODUCT(Illustrator!$D$13:$D$17,Illustrator!$Q$13:$Q$17)/SUM(Illustrator!$D$13:$D$17)*F39 ->  | H39: =-E39*Illustrator!$I$18 -> 0 | I39: =-F39*Illustrator!$C$31 -> 0 | J39: =IF(A39=A38,J38,J38*(1+Illustrator!$C$25)) -> 0 | L39: =-K39*(Illustrator!$L$18+Illustrator!$C$40)/12 ->  | M39: =IF(A39=A38,M38,M38*(1+Assumptions!$C$16)) -> 0 | N39: =IF((SUM('Admin fee calc'!$B$9:$B$9)*(1+'RIY Cashflows'!$D$8)^('RIY Cashflows'!B39/12)+'RIY Cashflows'!D39)*Assumptions!$B$12>Assumptions!$B$17,Assumptions!$B$17*D39/(D39+SUM('Admin fee calc'!$B$9:$B$9)),Assumptions!$B$12*'RIY Cashflows'!D39) ->  | O39: =-MAX(MAX(D39*Assumptions!$B$12/12,N39),M39)-D39*Illustrator!#REF! ->  | P39: =IF(A39=A38,P38,P38*(1+Assumptions!$C$17)) -> 1.1236e+11 | Q39: =-K39*(Illustrator!$C$38)/12 ->  | R39: =-K39*(Illustrator!$C$39)/12 ->  | AA39: 2002-05-01 | AG39: 2002-05-01 | AM39: 2002-05-01 | AN39: carry on | AO39: 2002-05-01
A40: 3 | B40: 30 | C40: 2002-06-01 | E40: 0 | F40: =IF(A40=A39,F39,F39*(1+Illustrator!$C$23)) -> 0 | G40: =-SUMPRODUCT(Illustrator!$D$13:$D$17,Illustrator!$Q$13:$Q$17)/SUM(Illustrator!$D$13:$D$17)*F40 ->  | H40: =-E40*Illustrator!$I$18 -> 0 | I40: =-F40*Illustrator!$C$31 -> 0 | J40: =IF(A40=A39,J39,J39*(1+Illustrator!$C$25)) -> 0 | L40: =-K40*(Illustrator!$L$18+Illustrator!$C$40)/12 ->  | M40: =IF(A40=A39,M39,M39*(1+Assumptions!$C$16)) -> 0 | N40: =IF((SUM('Admin fee calc'!$B$9:$B$9)*(1+'RIY Cashflows'!$D$8)^('RIY Cashflows'!B40/12)+'RIY Cashflows'!D40)*Assumptions!$B$12>Assumptions!$B$17,Assumptions!$B$17*D40/(D40+SUM('Admin fee calc'!$B$9:$B$9)),Assumptions!$B$12*'RIY Cashflows'!D40) ->  | O40: =-MAX(MAX(D40*Assumptions!$B$12/12,N40),M40)-D40*Illustrator!#REF! ->  | P40: =IF(A40=A39,P39,P39*(1+Assumptions!$C$17)) -> 1.1236e+11 | Q40: =-K40*(Illustrator!$C$38)/12 ->  | R40: =-K40*(Illustrator!$C$39)/12 ->  | AA40: 2002-06-01 | AG40: 2002-06-01 | AM40: 2002-06-01 | AN40: carry on | AO40: 2002-06-01
A41: 3 | B41: 31 | C41: 2002-07-01 | E41: 0 | F41: =IF(A41=A40,F40,F40*(1+Illustrator!$C$23)) -> 0 | G41: =-SUMPRODUCT(Illustrator!$D$13:$D$17,Illustrator!$Q$13:$Q$17)/SUM(Illustrator!$D$13:$D$17)*F41 ->  | H41: =-E41*Illustrator!$I$18 -> 0 | I41: =-F41*Illustrator!$C$31 -> 0 | J41: =IF(A41=A40,J40,J40*(1+Illustrator!$C$25)) -> 0 | L41: =-K41*(Illustrator!$L$18+Illustrator!$C$40)/12 ->  | M41: =IF(A41=A40,M40,M40*(1+Assumptions!$C$16)) -> 0 | N41: =IF((SUM('Admin fee calc'!$B$9:$B$9)*(1+'RIY Cashflows'!$D$8)^('RIY Cashflows'!B41/12)+'RIY Cashflows'!D41)*Assumptions!$B$12>Assumptions!$B$17,Assumptions!$B$17*D41/(D41+SUM('Admin fee calc'!$B$9:$B$9)),Assumptions!$B$12*'RIY Cashflows'!D41) ->  | O41: =-MAX(MAX(D41*Assumptions!$B$12/12,N41),M41)-D41*Illustrator!#REF! ->  | P41: =IF(A41=A40,P40,P40*(1+Assumptions!$C$17)) -> 1.1236e+11 | Q41: =-K41*(Illustrator!$C$38)/12 ->  | R41: =-K41*(Illustrator!$C$39)/12 ->  | AA41: 2002-07-01 | AG41: 2002-07-01 | AM41: 2002-07-01 | AN41: carry on | AO41: 2002-07-01
A42: 3 | B42: 32 | C42: 2002-08-01 | E42: 0 | F42: =IF(A42=A41,F41,F41*(1+Illustrator!$C$23)) -> 0 | G42: =-SUMPRODUCT(Illustrator!$D$13:$D$17,Illustrator!$Q$13:$Q$17)/SUM(Illustrator!$D$13:$D$17)*F42 ->  | H42: =-E42*Illustrator!$I$18 -> 0 | I42: =-F42*Illustrator!$C$31 -> 0 | J42: =IF(A42=A41,J41,J41*(1+Illustrator!$C$25)) -> 0 | L42: =-K42*(Illustrator!$L$18+Illustrator!$C$40)/12 ->  | M42: =IF(A42=A41,M41,M41*(1+Assumptions!$C$16)) -> 0 | N42: =IF((SUM('Admin fee calc'!$B$9:$B$9)*(1+'RIY Cashflows'!$D$8)^('RIY Cashflows'!B42/12)+'RIY Cashflows'!D42)*Assumptions!$B$12>Assumptions!$B$17,Assumptions!$B$17*D42/(D42+SUM('Admin fee calc'!$B$9:$B$9)),Assumptions!$B$12*'RIY Cashflows'!D42) ->  | O42: =-MAX(MAX(D42*Assumptions!$B$12/12,N42),M42)-D42*Illustrator!#REF! ->  | P42: =IF(A42=A41,P41,P41*(1+Assumptions!$C$17)) -> 1.1236e+11 | Q42: =-K42*(Illustrator!$C$38)/12 ->  | R42: =-K42*(Illustrator!$C$39)/12 ->  | AA42: 2002-08-01 | AG42: 2002-08-01 | AM42: 2002-08-01 | AN42: carry on | AO42: 2002-08-01
A43: 3 | B43: 33 | C43: 2002-09-01 | E43: 0 | F43: =IF(A43=A42,F42,F42*(1+Illustrator!$C$23)) -> 0 | G43: =-SUMPRODUCT(Illustrator!$D$13:$D$17,Illustrator!$Q$13:$Q$17)/SUM(Illustrator!$D$13:$D$17)*F43 ->  | H43: =-E43*Illustrator!$I$18 -> 0 | I43: =-F43*Illustrator!$C$31 -> 0 | J43: =IF(A43=A42,J42,J42*(1+Illustrator!$C$25)) -> 0 | L43: =-K43*(Illustrator!$L$18+Illustrator!$C$40)/12 ->  | M43: =IF(A43=A42,M42,M42*(1+Assumptions!$C$16)) -> 0 | N43: =IF((SUM('Admin fee calc'!$B$9:$B$9)*(1+'RIY Cashflows'!$D$8)^('RIY Cashflows'!B43/12)+'RIY Cashflows'!D43)*Assumptions!$B$12>Assumptions!$B$17,Assumptions!$B$17*D43/(D43+SUM('Admin fee calc'!$B$9:$B$9)),Assumptions!$B$12*'RIY Cashflows'!D43) ->  | O43: =-MAX(MAX(D43*Assumptions!$B$12/12,N43),M43)-D43*Illustrator!#REF! ->  | P43: =IF(A43=A42,P42,P42*(1+Assumptions!$C$17)) -> 1.1236e+11 | Q43: =-K43*(Illustrator!$C$38)/12 ->  | R43: =-K43*(Illustrator!$C$39)/12 ->  | AA43: 2002-09-01 | AG43: 2002-09-01 | AM43: 2002-09-01 | AN43: carry on | AO43: 2002-09-01
A44: 3 | B44: 34 | C44: 2002-10-01 | E44: 0 | F44: =IF(A44=A43,F43,F43*(1+Illustrator!$C$23)) -> 0 | G44: =-SUMPRODUCT(Illustrator!$D$13:$D$17,Illustrator!$Q$13:$Q$17)/SUM(Illustrator!$D$13:$D$17)*F44 ->  | H44: =-E44*Illustrator!$I$18 -> 0 | I44: =-F44*Illustrator!$C$31 -> 0 | J44: =IF(A44=A43,J43,J43*(1+Illustrator!$C$25)) -> 0 | L44: =-K44*(Illustrator!$L$18+Illustrator!$C$40)/12 ->  | M44: =IF(A44=A43,M43,M43*(1+Assumptions!$C$16)) -> 0 | N44: =IF((SUM('Admin fee calc'!$B$9:$B$9)*(1+'RIY Cashflows'!$D$8)^('RIY Cashflows'!B44/12)+'RIY Cashflows'!D44)*Assumptions!$B$12>Assumptions!$B$17,Assumptions!$B$17*D44/(D44+SUM('Admin fee calc'!$B$9:$B$9)),Assumptions!$B$12*'RIY Cashflows'!D44) ->  | O44: =-MAX(MAX(D44*Assumptions!$B$12/12,N44),M44)-D44*Illustrator!#REF! ->  | P44: =IF(A44=A43,P43,P43*(1+Assumptions!$C$17)) -> 1.1236e+11 | Q44: =-K44*(Illustrator!$C$38)/12 ->  | R44: =-K44*(Illustrator!$C$39)/12 ->  | AA44: 2002-10-01 | AG44: 2002-10-01 | AH44: =$L43+$R43+SUM($E44:$J44) ->  | AI44: =$L43+$R43+SUM($E44:$J44)-$H44-$I44-$R43 ->  | AJ44: =$L43+$R43+SUM($E44:$J44)-$G44-$Q44 ->  | AK44: =$L43+$R43+SUM($E44:$J44) ->  | AM44: 2002-10-01 | AN44: carry on | AO44: 2002-10-01 | AP44: =$L43+$R43+SUM($E44:$J44) ->  | AQ44: =$L43+$R43+SUM($E44:$J44)-$H44-$I44-$R43 ->  | AR44: =$L43+$R43+SUM($E44:$J44)-$G44-$Q44 ->  | AS44: =$L43+$R43+SUM($E44:$J44) -> 
A45: 3 | B45: 35 | C45: 2002-11-01 | E45: 0 | F45: =IF(A45=A44,F44,F44*(1+Illustrator!$C$23)) -> 0 | G45: =-SUMPRODUCT(Illustrator!$D$13:$D$17,Illustrator!$Q$13:$Q$17)/SUM(Illustrator!$D$13:$D$17)*F45 ->  | H45: =-E45*Illustrator!$I$18 -> 0 | I45: =-F45*Illustrator!$C$31 -> 0 | J45: =IF(A45=A44,J44,J44*(1+Illustrator!$C$25)) -> 0 | L45: =-K45*(Illustrator!$L$18+Illustrator!$C$40)/12 ->  | M45: =IF(A45=A44,M44,M44*(1+Assumptions!$C$16)) -> 0 | N45: =IF((SUM('Admin fee calc'!$B$9:$B$9)*(1+'RIY Cashflows'!$D$8)^('RIY Cashflows'!B45/12)+'RIY Cashflows'!D45)*Assumptions!$B$12>Assumptions!$B$17,Assumptions!$B$17*D45/(D45+SUM('Admin fee calc'!$B$9:$B$9)),Assumptions!$B$12*'RIY Cashflows'!D45) ->  | O45: =-MAX(MAX(D45*Assumptions!$B$12/12,N45),M45)-D45*Illustrator!#REF! ->  | P45: =IF(A45=A44,P44,P44*(1+Assumptions!$C$17)) -> 1.1236e+11 | Q45: =-K45*(Illustrator!$C$38)/12 ->  | R45: =-K45*(Illustrator!$C$39)/12 ->  | AA45: 2002-11-01 | AG45: 2002-11-01 | AM45: 2002-11-01 | AN45: carry on | AO45: 2002-11-01
A46: 3 | B46: 36 | C46: 2002-12-01 | E46: 0 | F46: =IF(A46=A45,F45,F45*(1+Illustrator!$C$23)) -> 0 | G46: =-SUMPRODUCT(Illustrator!$D$13:$D$17,Illustrator!$Q$13:$Q$17)/SUM(Illustrator!$D$13:$D$17)*F46 ->  | H46: =-E46*Illustrator!$I$18 -> 0 | I46: =-F46*Illustrator!$C$31 -> 0 | J46: =IF(A46=A45,J45,J45*(1+Illustrator!$C$25)) -> 0 | L46: =-K46*(Illustrator!$L$18+Illustrator!$C$40)/12 ->  | M46: =IF(A46=A45,M45,M45*(1+Assumptions!$C$16)) -> 0 | N46: =IF((SUM('Admin fee calc'!$B$9:$B$9)*(1+'RIY Cashflows'!$D$8)^('RIY Cashflows'!B46/12)+'RIY Cashflows'!D46)*Assumptions!$B$12>Assumptions!$B$17,Assumptions!$B$17*D46/(D46+SUM('Admin fee calc'!$B$9:$B$9)),Assumptions!$B$12*'RIY Cashflows'!D46) ->  | O46: =-MAX(MAX(D46*Assumptions!$B$12/12,N46),M46)-D46*Illustrator!#REF! ->  | P46: =IF(A46=A45,P45,P45*(1+Assumptions!$C$17)) -> 1.1236e+11 | Q46: =-K46*(Illustrator!$C$38)/12 ->  | R46: =-K46*(Illustrator!$C$39)/12 ->  | T46: 3 | AA46: 2002-12-01 | AG46: 2002-12-01 | AM46: 2002-12-01 | AN46: carry on | AO46: 2002-12-01
A47: 4 | B47: 37 | C47: 2003-01-01 | E47: 0 | F47: =IF(A47=A46,F46,F46*(1+Illustrator!$C$23)) -> 0 | G47: =-SUMPRODUCT(Illustrator!$D$13:$D$17,Illustrator!$Q$13:$Q$17)/SUM(Illustrator!$D$13:$D$17)*F47 ->  | H47: =-E47*Illustrator!$I$18 -> 0 | I47: =-F47*Illustrator!$C$31 -> 0 | J47: =IF(A47=A46,J46,J46*(1+Illustrator!$C$25)) -> 0 | L47: =-K47*(Illustrator!$L$18+Illustrator!$C$40)/12 ->  | M47: =IF(A47=A46,M46,M46*(1+Assumptions!$C$16)) -> 0 | N47: =IF((SUM('Admin fee calc'!$B$9:$B$9)*(1+'RIY Cashflows'!$D$8)^('RIY Cashflows'!B47/12)+'RIY Cashflows'!D47)*Assumptions!$B$12>Assumptions!$B$17,Assumptions!$B$17*D47/(D47+SUM('Admin fee calc'!$B$9:$B$9)),Assumptions!$B$12*'RIY Cashflows'!D47) ->  | O47: =-MAX(MAX(D47*Assumptions!$B$12/12,N47),M47)-D47*Illustrator!#REF! ->  | P47: =IF(A47=A46,P46,P46*(1+Assumptions!$C$17)) -> 1.191016e+11 | Q47: =-K47*(Illustrator!$C$38)/12 ->  | R47: =-K47*(Illustrator!$C$39)/12 ->  | AA47: 2002-12-31 | AB47: =$L46+$R46 ->  | AC47: =$L46+$R46-$R46 ->  | AD47: =$L46+$R46-$Q46 ->  | AE47: =$L46+$R46 ->  | AG47: 2003-01-01 | AM47: 2003-01-01 | AN47: carry on | AO47: 2003-01-01
A48: 4 | B48: 38 | C48: 2003-02-01 | E48: 0 | F48: =IF(A48=A47,F47,F47*(1+Illustrator!$C$23)) -> 0 | G48: =-SUMPRODUCT(Illustrator!$D$13:$D$17,Illustrator!$Q$13:$Q$17)/SUM(Illustrator!$D$13:$D$17)*F48 ->  | H48: =-E48*Illustrator!$I$18 -> 0 | I48: =-F48*Illustrator!$C$31 -> 0 | J48: =IF(A48=A47,J47,J47*(1+Illustrator!$C$25)) -> 0 | L48: =-K48*(Illustrator!$L$18+Illustrator!$C$40)/12 ->  | M48: =IF(A48=A47,M47,M47*(1+Assumptions!$C$16)) -> 0 | N48: =IF((SUM('Admin fee calc'!$B$9:$B$9)*(1+'RIY Cashflows'!$D$8)^('RIY Cashflows'!B48/12)+'RIY Cashflows'!D48)*Assumptions!$B$12>Assumptions!$B$17,Assumptions!$B$17*D48/(D48+SUM('Admin fee calc'!$B$9:$B$9)),Assumptions!$B$12*'RIY Cashflows'!D48) ->  | O48: =-MAX(MAX(D48*Assumptions!$B$12/12,N48),M48)-D48*Illustrator!#REF! ->  | P48: =IF(A48=A47,P47,P47*(1+Assumptions!$C$17)) -> 1.191016e+11 | Q48: =-K48*(Illustrator!$C$38)/12 ->  | R48: =-K48*(Illustrator!$C$39)/12 ->  | AA48: 2002-12-31 | AB48: =-$S46 ->  | AC48: =-$S46 ->  | AG48: 2003-02-01 | AM48: 2003-02-01 | AN48: carry on | AO48: 2003-02-01
A49: 4 | B49: 39 | C49: 2003-03-01 | E49: 0 | F49: =IF(A49=A48,F48,F48*(1+Illustrator!$C$23)) -> 0 | G49: =-SUMPRODUCT(Illustrator!$D$13:$D$17,Illustrator!$Q$13:$Q$17)/SUM(Illustrator!$D$13:$D$17)*F49 ->  | H49: =-E49*Illustrator!$I$18 -> 0 | I49: =-F49*Illustrator!$C$31 -> 0 | J49: =IF(A49=A48,J48,J48*(1+Illustrator!$C$25)) -> 0 | L49: =-K49*(Illustrator!$L$18+Illustrator!$C$40)/12 ->  | M49: =IF(A49=A48,M48,M48*(1+Assumptions!$C$16)) -> 0 | N49: =IF((SUM('Admin fee calc'!$B$9:$B$9)*(1+'RIY Cashflows'!$D$8)^('RIY Cashflows'!B49/12)+'RIY Cashflows'!D49)*Assumptions!$B$12>Assumptions!$B$17,Assumptions!$B$17*D49/(D49+SUM('Admin fee calc'!$B$9:$B$9)),Assumptions!$B$12*'RIY Cashflows'!D49) ->  | O49: =-MAX(MAX(D49*Assumptions!$B$12/12,N49),M49)-D49*Illustrator!#REF! ->  | P49: =IF(A49=A48,P48,P48*(1+Assumptions!$C$17)) -> 1.191016e+11 | Q49: =-K49*(Illustrator!$C$38)/12 ->  | R49: =-K49*(Illustrator!$C$39)/12 ->  | AG49: 2003-03-01 | AM49: 2003-03-01 | AN49: carry on | AO49: 2003-03-01
A50: 4 | B50: 40 | C50: 2003-04-01 | E50: 0 | F50: =IF(A50=A49,F49,F49*(1+Illustrator!$C$23)) -> 0 | G50: =-SUMPRODUCT(Illustrator!$D$13:$D$17,Illustrator!$Q$13:$Q$17)/SUM(Illustrator!$D$13:$D$17)*F50 ->  | H50: =-E50*Illustrator!$I$18 -> 0 | I50: =-F50*Illustrator!$C$31 -> 0 | J50: =IF(A50=A49,J49,J49*(1+Illustrator!$C$25)) -> 0 | L50: =-K50*(Illustrator!$L$18+Illustrator!$C$40)/12 ->  | M50: =IF(A50=A49,M49,M49*(1+Assumptions!$C$16)) -> 0 | N50: =IF((SUM('Admin fee calc'!$B$9:$B$9)*(1+'RIY Cashflows'!$D$8)^('RIY Cashflows'!B50/12)+'RIY Cashflows'!D50)*Assumptions!$B$12>Assumptions!$B$17,Assumptions!$B$17*D50/(D50+SUM('Admin fee calc'!$B$9:$B$9)),Assumptions!$B$12*'RIY Cashflows'!D50) ->  | O50: =-MAX(MAX(D50*Assumptions!$B$12/12,N50),M50)-D50*Illustrator!#REF! ->  | P50: =IF(A50=A49,P49,P49*(1+Assumptions!$C$17)) -> 1.191016e+11 | Q50: =-K50*(Illustrator!$C$38)/12 ->  | R50: =-K50*(Illustrator!$C$39)/12 ->  | AG50: 2003-04-01 | AM50: 2003-04-01 | AN50: carry on | AO50: 2003-04-01
A51: 4 | B51: 41 | C51: 2003-05-01 | E51: 0 | F51: =IF(A51=A50,F50,F50*(1+Illustrator!$C$23)) -> 0 | G51: =-SUMPRODUCT(Illustrator!$D$13:$D$17,Illustrator!$Q$13:$Q$17)/SUM(Illustrator!$D$13:$D$17)*F51 ->  | H51: =-E51*Illustrator!$I$18 -> 0 | I51: =-F51*Illustrator!$C$31 -> 0 | J51: =IF(A51=A50,J50,J50*(1+Illustrator!$C$25)) -> 0 | L51: =-K51*(Illustrator!$L$18+Illustrator!$C$40)/12 ->  | M51: =IF(A51=A50,M50,M50*(1+Assumptions!$C$16)) -> 0 | N51: =IF((SUM('Admin fee calc'!$B$9:$B$9)*(1+'RIY Cashflows'!$D$8)^('RIY Cashflows'!B51/12)+'RIY Cashflows'!D51)*Assumptions!$B$12>Assumptions!$B$17,Assumptions!$B$17*D51/(D51+SUM('Admin fee calc'!$B$9:$B$9)),Assumptions!$B$12*'RIY Cashflows'!D51) ->  | O51: =-MAX(MAX(D51*Assumptions!$B$12/12,N51),M51)-D51*Illustrator!#REF! ->  | P51: =IF(A51=A50,P50,P50*(1+Assumptions!$C$17)) -> 1.191016e+11 | Q51: =-K51*(Illustrator!$C$38)/12 ->  | R51: =-K51*(Illustrator!$C$39)/12 ->  | AG51: 2003-05-01 | AM51: 2003-05-01 | AN51: carry on | AO51: 2003-05-01
A52: 4 | B52: 42 | C52: 2003-06-01 | E52: 0 | F52: =IF(A52=A51,F51,F51*(1+Illustrator!$C$23)) -> 0 | G52: =-SUMPRODUCT(Illustrator!$D$13:$D$17,Illustrator!$Q$13:$Q$17)/SUM(Illustrator!$D$13:$D$17)*F52 ->  | H52: =-E52*Illustrator!$I$18 -> 0 | I52: =-F52*Illustrator!$C$31 -> 0 | J52: =IF(A52=A51,J51,J51*(1+Illustrator!$C$25)) -> 0 | L52: =-K52*(Illustrator!$L$18+Illustrator!$C$40)/12 ->  | M52: =IF(A52=A51,M51,M51*(1+Assumptions!$C$16)) -> 0 | N52: =IF((SUM('Admin fee calc'!$B$9:$B$9)*(1+'RIY Cashflows'!$D$8)^('RIY Cashflows'!B52/12)+'RIY Cashflows'!D52)*Assumptions!$B$12>Assumptions!$B$17,Assumptions!$B$17*D52/(D52+SUM('Admin fee calc'!$B$9:$B$9)),Assumptions!$B$12*'RIY Cashflows'!D52) ->  | O52: =-MAX(MAX(D52*Assumptions!$B$12/12,N52),M52)-D52*Illustrator!#REF! ->  | P52: =IF(A52=A51,P51,P51*(1+Assumptions!$C$17)) -> 1.191016e+11 | Q52: =-K52*(Illustrator!$C$38)/12 ->  | R52: =-K52*(Illustrator!$C$39)/12 ->  | AG52: 2003-06-01 | AM52: 2003-06-01 | AN52: carry on | AO52: 2003-06-01
A53: 4 | B53: 43 | C53: 2003-07-01 | E53: 0 | F53: =IF(A53=A52,F52,F52*(1+Illustrator!$C$23)) -> 0 | G53: =-SUMPRODUCT(Illustrator!$D$13:$D$17,Illustrator!$Q$13:$Q$17)/SUM(Illustrator!$D$13:$D$17)*F53 ->  | H53: =-E53*Illustrator!$I$18 -> 0 | I53: =-F53*Illustrator!$C$31 -> 0 | J53: =IF(A53=A52,J52,J52*(1+Illustrator!$C$25)) -> 0 | L53: =-K53*(Illustrator!$L$18+Illustrator!$C$40)/12 ->  | M53: =IF(A53=A52,M52,M52*(1+Assumptions!$C$16)) -> 0 | N53: =IF((SUM('Admin fee calc'!$B$9:$B$9)*(1+'RIY Cashflows'!$D$8)^('RIY Cashflows'!B53/12)+'RIY Cashflows'!D53)*Assumptions!$B$12>Assumptions!$B$17,Assumptions!$B$17*D53/(D53+SUM('Admin fee calc'!$B$9:$B$9)),Assumptions!$B$12*'RIY Cashflows'!D53) ->  | O53: =-MAX(MAX(D53*Assumptions!$B$12/12,N53),M53)-D53*Illustrator!#REF! ->  | P53: =IF(A53=A52,P52,P52*(1+Assumptions!$C$17)) -> 1.191016e+11 | Q53: =-K53*(Illustrator!$C$38)/12 ->  | R53: =-K53*(Illustrator!$C$39)/12 ->  | AG53: 2003-07-01 | AM53: 2003-07-01 | AN53: carry on | AO53: 2003-07-01
A54: 4 | B54: 44 | C54: 2003-08-01 | E54: 0 | F54: =IF(A54=A53,F53,F53*(1+Illustrator!$C$23)) -> 0 | G54: =-SUMPRODUCT(Illustrator!$D$13:$D$17,Illustrator!$Q$13:$Q$17)/SUM(Illustrator!$D$13:$D$17)*F54 ->  | H54: =-E54*Illustrator!$I$18 -> 0 | I54: =-F54*Illustrator!$C$31 -> 0 | J54: =IF(A54=A53,J53,J53*(1+Illustrator!$C$25)) -> 0 | L54: =-K54*(Illustrator!$L$18+Illustrator!$C$40)/12 ->  | M54: =IF(A54=A53,M53,M53*(1+Assumptions!$C$16)) -> 0 | N54: =IF((SUM('Admin fee calc'!$B$9:$B$9)*(1+'RIY Cashflows'!$D$8)^('RIY Cashflows'!B54/12)+'RIY Cashflows'!D54)*Assumptions!$B$12>Assumptions!$B$17,Assumptions!$B$17*D54/(D54+SUM('Admin fee calc'!$B$9:$B$9)),Assumptions!$B$12*'RIY Cashflows'!D54) ->  | O54: =-MAX(MAX(D54*Assumptions!$B$12/12,N54),M54)-D54*Illustrator!#REF! ->  | P54: =IF(A54=A53,P53,P53*(1+Assumptions!$C$17)) -> 1.191016e+11 | Q54: =-K54*(Illustrator!$C$38)/12 ->  | R54: =-K54*(Illustrator!$C$39)/12 ->  | AG54: 2003-08-01 | AM54: 2003-08-01 | AN54: carry on | AO54: 2003-08-01
A55: 4 | B55: 45 | C55: 2003-09-01 | E55: 0 | F55: =IF(A55=A54,F54,F54*(1+Illustrator!$C$23)) -> 0 | G55: =-SUMPRODUCT(Illustrator!$D$13:$D$17,Illustrator!$Q$13:$Q$17)/SUM(Illustrator!$D$13:$D$17)*F55 ->  | H55: =-E55*Illustrator!$I$18 -> 0 | I55: =-F55*Illustrator!$C$31 -> 0 | J55: =IF(A55=A54,J54,J54*(1+Illustrator!$C$25)) -> 0 | L55: =-K55*(Illustrator!$L$18+Illustrator!$C$40)/12 ->  | M55: =IF(A55=A54,M54,M54*(1+Assumptions!$C$16)) -> 0 | N55: =IF((SUM('Admin fee calc'!$B$9:$B$9)*(1+'RIY Cashflows'!$D$8)^('RIY Cashflows'!B55/12)+'RIY Cashflows'!D55)*Assumptions!$B$12>Assumptions!$B$17,Assumptions!$B$17*D55/(D55+SUM('Admin fee calc'!$B$9:$B$9)),Assumptions!$B$12*'RIY Cashflows'!D55) ->  | O55: =-MAX(MAX(D55*Assumptions!$B$12/12,N55),M55)-D55*Illustrator!#REF! ->  | P55: =IF(A55=A54,P54,P54*(1+Assumptions!$C$17)) -> 1.191016e+11 | Q55: =-K55*(Illustrator!$C$38)/12 ->  | R55: =-K55*(Illustrator!$C$39)/12 ->  | AG55: 2003-09-01 | AM55: 2003-09-01 | AN55: carry on | AO55: 2003-09-01
A56: 4 | B56: 46 | C56: 2003-10-01 | E56: 0 | F56: =IF(A56=A55,F55,F55*(1+Illustrator!$C$23)) -> 0 | G56: =-SUMPRODUCT(Illustrator!$D$13:$D$17,Illustrator!$Q$13:$Q$17)/SUM(Illustrator!$D$13:$D$17)*F56 ->  | H56: =-E56*Illustrator!$I$18 -> 0 | I56: =-F56*Illustrator!$C$31 -> 0 | J56: =IF(A56=A55,J55,J55*(1+Illustrator!$C$25)) -> 0 | L56: =-K56*(Illustrator!$L$18+Illustrator!$C$40)/12 ->  | M56: =IF(A56=A55,M55,M55*(1+Assumptions!$C$16)) -> 0 | N56: =IF((SUM('Admin fee calc'!$B$9:$B$9)*(1+'RIY Cashflows'!$D$8)^('RIY Cashflows'!B56/12)+'RIY Cashflows'!D56)*Assumptions!$B$12>Assumptions!$B$17,Assumptions!$B$17*D56/(D56+SUM('Admin fee calc'!$B$9:$B$9)),Assumptions!$B$12*'RIY Cashflows'!D56) ->  | O56: =-MAX(MAX(D56*Assumptions!$B$12/12,N56),M56)-D56*Illustrator!#REF! ->  | P56: =IF(A56=A55,P55,P55*(1+Assumptions!$C$17)) -> 1.191016e+11 | Q56: =-K56*(Illustrator!$C$38)/12 ->  | R56: =-K56*(Illustrator!$C$39)/12 ->  | AG56: 2003-10-01 | AM56: 2003-10-01 | AN56: carry on | AO56: 2003-10-01
A57: 4 | B57: 47 | C57: 2003-11-01 | E57: 0 | F57: =IF(A57=A56,F56,F56*(1+Illustrator!$C$23)) -> 0 | G57: =-SUMPRODUCT(Illustrator!$D$13:$D$17,Illustrator!$Q$13:$Q$17)/SUM(Illustrator!$D$13:$D$17)*F57 ->  | H57: =-E57*Illustrator!$I$18 -> 0 | I57: =-F57*Illustrator!$C$31 -> 0 | J57: =IF(A57=A56,J56,J56*(1+Illustrator!$C$25)) -> 0 | L57: =-K57*(Illustrator!$L$18+Illustrator!$C$40)/12 ->  | M57: =IF(A57=A56,M56,M56*(1+Assumptions!$C$16)) -> 0 | N57: =IF((SUM('Admin fee calc'!$B$9:$B$9)*(1+'RIY Cashflows'!$D$8)^('RIY Cashflows'!B57/12)+'RIY Cashflows'!D57)*Assumptions!$B$12>Assumptions!$B$17,Assumptions!$B$17*D57/(D57+SUM('Admin fee calc'!$B$9:$B$9)),Assumptions!$B$12*'RIY Cashflows'!D57) ->  | O57: =-MAX(MAX(D57*Assumptions!$B$12/12,N57),M57)-D57*Illustrator!#REF! ->  | P57: =IF(A57=A56,P56,P56*(1+Assumptions!$C$17)) -> 1.191016e+11 | Q57: =-K57*(Illustrator!$C$38)/12 ->  | R57: =-K57*(Illustrator!$C$39)/12 ->  | AG57: 2003-11-01 | AM57: 2003-11-01 | AN57: carry on | AO57: 2003-11-01
A58: 4 | B58: 48 | C58: 2003-12-01 | E58: 0 | F58: =IF(A58=A57,F57,F57*(1+Illustrator!$C$23)) -> 0 | G58: =-SUMPRODUCT(Illustrator!$D$13:$D$17,Illustrator!$Q$13:$Q$17)/SUM(Illustrator!$D$13:$D$17)*F58 ->  | H58: =-E58*Illustrator!$I$18 -> 0 | I58: =-F58*Illustrator!$C$31 -> 0 | J58: =IF(A58=A57,J57,J57*(1+Illustrator!$C$25)) -> 0 | L58: =-K58*(Illustrator!$L$18+Illustrator!$C$40)/12 ->  | M58: =IF(A58=A57,M57,M57*(1+Assumptions!$C$16)) -> 0 | N58: =IF((SUM('Admin fee calc'!$B$9:$B$9)*(1+'RIY Cashflows'!$D$8)^('RIY Cashflows'!B58/12)+'RIY Cashflows'!D58)*Assumptions!$B$12>Assumptions!$B$17,Assumptions!$B$17*D58/(D58+SUM('Admin fee calc'!$B$9:$B$9)),Assumptions!$B$12*'RIY Cashflows'!D58) ->  | O58: =-MAX(MAX(D58*Assumptions!$B$12/12,N58),M58)-D58*Illustrator!#REF! ->  | P58: =IF(A58=A57,P57,P57*(1+Assumptions!$C$17)) -> 1.191016e+11 | Q58: =-K58*(Illustrator!$C$38)/12 ->  | R58: =-K58*(Illustrator!$C$39)/12 ->  | AG58: 2003-12-01 | AM58: 2003-12-01 | AN58: carry on | AO58: 2003-12-01
A59: 5 | B59: 49 | C59: 2004-01-01 | E59: 0 | F59: =IF(A59=A58,F58,F58*(1+Illustrator!$C$23)) -> 0 | G59: =-SUMPRODUCT(Illustrator!$D$13:$D$17,Illustrator!$Q$13:$Q$17)/SUM(Illustrator!$D$13:$D$17)*F59 ->  | H59: =-E59*Illustrator!$I$18 -> 0 | I59: =-F59*Illustrator!$C$31 -> 0 | J59: =IF(A59=A58,J58,J58*(1+Illustrator!$C$25)) -> 0 | L59: =-K59*(Illustrator!$L$18+Illustrator!$C$40)/12 ->  | M59: =IF(A59=A58,M58,M58*(1+Assumptions!$C$16)) -> 0 | N59: =IF((SUM('Admin fee calc'!$B$9:$B$9)*(1+'RIY Cashflows'!$D$8)^('RIY Cashflows'!B59/12)+'RIY Cashflows'!D59)*Assumptions!$B$12>Assumptions!$B$17,Assumptions!$B$17*D59/(D59+SUM('Admin fee calc'!$B$9:$B$9)),Assumptions!$B$12*'RIY Cashflows'!D59) ->  | O59: =-MAX(MAX(D59*Assumptions!$B$12/12,N59),M59)-D59*Illustrator!#REF! ->  | P59: =IF(A59=A58,P58,P58*(1+Assumptions!$C$17)) -> 1.26247696e+11 | Q59: =-K59*(Illustrator!$C$38)/12 ->  | R59: =-K59*(Illustrator!$C$39)/12 ->  | AG59: 2004-01-01 | AM59: 2004-01-01 | AN59: carry on | AO59: 2004-01-01
A60: 5 | B60: 50 | C60: 2004-02-01 | E60: 0 | F60: =IF(A60=A59,F59,F59*(1+Illustrator!$C$23)) -> 0 | G60: =-SUMPRODUCT(Illustrator!$D$13:$D$17,Illustrator!$Q$13:$Q$17)/SUM(Illustrator!$D$13:$D$17)*F60 ->  | H60: =-E60*Illustrator!$I$18 -> 0 | I60: =-F60*Illustrator!$C$31 -> 0 | J60: =IF(A60=A59,J59,J59*(1+Illustrator!$C$25)) -> 0 | L60: =-K60*(Illustrator!$L$18+Illustrator!$C$40)/12 ->  | M60: =IF(A60=A59,M59,M59*(1+Assumptions!$C$16)) -> 0 | N60: =IF((SUM('Admin fee calc'!$B$9:$B$9)*(1+'RIY Cashflows'!$D$8)^('RIY Cashflows'!B60/12)+'RIY Cashflows'!D60)*Assumptions!$B$12>Assumptions!$B$17,Assumptions!$B$17*D60/(D60+SUM('Admin fee calc'!$B$9:$B$9)),Assumptions!$B$12*'RIY Cashflows'!D60) ->  | O60: =-MAX(MAX(D60*Assumptions!$B$12/12,N60),M60)-D60*Illustrator!#REF! ->  | P60: =IF(A60=A59,P59,P59*(1+Assumptions!$C$17)) -> 1.26247696e+11 | Q60: =-K60*(Illustrator!$C$38)/12 ->  | R60: =-K60*(Illustrator!$C$39)/12 ->  | AG60: 2004-02-01 | AM60: 2004-02-01 | AN60: carry on | AO60: 2004-02-01
A61: 5 | B61: 51 | C61: 2004-03-01 | E61: 0 | F61: =IF(A61=A60,F60,F60*(1+Illustrator!$C$23)) -> 0 | G61: =-SUMPRODUCT(Illustrator!$D$13:$D$17,Illustrator!$Q$13:$Q$17)/SUM(Illustrator!$D$13:$D$17)*F61 ->  | H61: =-E61*Illustrator!$I$18 -> 0 | I61: =-F61*Illustrator!$C$31 -> 0 | J61: =IF(A61=A60,J60,J60*(1+Illustrator!$C$25)) -> 0 | L61: =-K61*(Illustrator!$L$18+Illustrator!$C$40)/12 ->  | M61: =IF(A61=A60,M60,M60*(1+Assumptions!$C$16)) -> 0 | N61: =IF((SUM('Admin fee calc'!$B$9:$B$9)*(1+'RIY Cashflows'!$D$8)^('RIY Cashflows'!B61/12)+'RIY Cashflows'!D61)*Assumptions!$B$12>Assumptions!$B$17,Assumptions!$B$17*D61/(D61+SUM('Admin fee calc'!$B$9:$B$9)),Assumptions!$B$12*'RIY Cashflows'!D61) ->  | O61: =-MAX(MAX(D61*Assumptions!$B$12/12,N61),M61)-D61*Illustrator!#REF! ->  | P61: =IF(A61=A60,P60,P60*(1+Assumptions!$C$17)) -> 1.26247696e+11 | Q61: =-K61*(Illustrator!$C$38)/12 ->  | R61: =-K61*(Illustrator!$C$39)/12 ->  | AG61: 2004-03-01 | AM61: 2004-03-01 | AN61: carry on | AO61: 2004-03-01
A62: 5 | B62: 52 | C62: 2004-04-01 | E62: 0 | F62: =IF(A62=A61,F61,F61*(1+Illustrator!$C$23)) -> 0 | G62: =-SUMPRODUCT(Illustrator!$D$13:$D$17,Illustrator!$Q$13:$Q$17)/SUM(Illustrator!$D$13:$D$17)*F62 ->  | H62: =-E62*Illustrator!$I$18 -> 0 | I62: =-F62*Illustrator!$C$31 -> 0 | J62: =IF(A62=A61,J61,J61*(1+Illustrator!$C$25)) -> 0 | L62: =-K62*(Illustrator!$L$18+Illustrator!$C$40)/12 ->  | M62: =IF(A62=A61,M61,M61*(1+Assumptions!$C$16)) -> 0 | N62: =IF((SUM('Admin fee calc'!$B$9:$B$9)*(1+'RIY Cashflows'!$D$8)^('RIY Cashflows'!B62/12)+'RIY Cashflows'!D62)*Assumptions!$B$12>Assumptions!$B$17,Assumptions!$B$17*D62/(D62+SUM('Admin fee calc'!$B$9:$B$9)),Assumptions!$B$12*'RIY Cashflows'!D62) ->  | O62: =-MAX(MAX(D62*Assumptions!$B$12/12,N62),M62)-D62*Illustrator!#REF! ->  | P62: =IF(A62=A61,P61,P61*(1+Assumptions!$C$17)) -> 1.26247696e+11 | Q62: =-K62*(Illustrator!$C$38)/12 ->  | R62: =-K62*(Illustrator!$C$39)/12 ->  | AG62: 2004-04-01 | AM62: 2004-04-01 | AN62: carry on | AO62: 2004-04-01
A63: 5 | B63: 53 | C63: 2004-05-01 | E63: 0 | F63: =IF(A63=A62,F62,F62*(1+Illustrator!$C$23)) -> 0 | G63: =-SUMPRODUCT(Illustrator!$D$13:$D$17,Illustrator!$Q$13:$Q$17)/SUM(Illustrator!$D$13:$D$17)*F63 ->  | H63: =-E63*Illustrator!$I$18 -> 0 | I63: =-F63*Illustrator!$C$31 -> 0 | J63: =IF(A63=A62,J62,J62*(1+Illustrator!$C$25)) -> 0 | L63: =-K63*(Illustrator!$L$18+Illustrator!$C$40)/12 ->  | M63: =IF(A63=A62,M62,M62*(1+Assumptions!$C$16)) -> 0 | N63: =IF((SUM('Admin fee calc'!$B$9:$B$9)*(1+'RIY Cashflows'!$D$8)^('RIY Cashflows'!B63/12)+'RIY Cashflows'!D63)*Assumptions!$B$12>Assumptions!$B$17,Assumptions!$B$17*D63/(D63+SUM('Admin fee calc'!$B$9:$B$9)),Assumptions!$B$12*'RIY Cashflows'!D63) ->  | O63: =-MAX(MAX(D63*Assumptions!$B$12/12,N63),M63)-D63*Illustrator!#REF! ->  | P63: =IF(A63=A62,P62,P62*(1+Assumptions!$C$17)) -> 1.26247696e+11 | Q63: =-K63*(Illustrator!$C$38)/12 ->  | R63: =-K63*(Illustrator!$C$39)/12 ->  | AG63: 2004-05-01 | AM63: 2004-05-01 | AN63: carry on | AO63: 2004-05-01
A64: 5 | B64: 54 | C64: 2004-06-01 | E64: 0 | F64: =IF(A64=A63,F63,F63*(1+Illustrator!$C$23)) -> 0 | G64: =-SUMPRODUCT(Illustrator!$D$13:$D$17,Illustrator!$Q$13:$Q$17)/SUM(Illustrator!$D$13:$D$17)*F64 ->  | H64: =-E64*Illustrator!$I$18 -> 0 | I64: =-F64*Illustrator!$C$31 -> 0 | J64: =IF(A64=A63,J63,J63*(1+Illustrator!$C$25)) -> 0 | L64: =-K64*(Illustrator!$L$18+Illustrator!$C$40)/12 ->  | M64: =IF(A64=A63,M63,M63*(1+Assumptions!$C$16)) -> 0 | N64: =IF((SUM('Admin fee calc'!$B$9:$B$9)*(1+'RIY Cashflows'!$D$8)^('RIY Cashflows'!B64/12)+'RIY Cashflows'!D64)*Assumptions!$B$12>Assumptions!$B$17,Assumptions!$B$17*D64/(D64+SUM('Admin fee calc'!$B$9:$B$9)),Assumptions!$B$12*'RIY Cashflows'!D64) ->  | O64: =-MAX(MAX(D64*Assumptions!$B$12/12,N64),M64)-D64*Illustrator!#REF! ->  | P64: =IF(A64=A63,P63,P63*(1+Assumptions!$C$17)) -> 1.26247696e+11 | Q64: =-K64*(Illustrator!$C$38)/12 ->  | R64: =-K64*(Illustrator!$C$39)/12 ->  | AG64: 2004-06-01 | AM64: 2004-06-01 | AN64: carry on | AO64: 2004-06-01
A65: 5 | B65: 55 | C65: 2004-07-01 | E65: 0 | F65: =IF(A65=A64,F64,F64*(1+Illustrator!$C$23)) -> 0 | G65: =-SUMPRODUCT(Illustrator!$D$13:$D$17,Illustrator!$Q$13:$Q$17)/SUM(Illustrator!$D$13:$D$17)*F65 ->  | H65: =-E65*Illustrator!$I$18 -> 0 | I65: =-F65*Illustrator!$C$31 -> 0 | J65: =IF(A65=A64,J64,J64*(1+Illustrator!$C$25)) -> 0 | L65: =-K65*(Illustrator!$L$18+Illustrator!$C$40)/12 ->  | M65: =IF(A65=A64,M64,M64*(1+Assumptions!$C$16)) -> 0 | N65: =IF((SUM('Admin fee calc'!$B$9:$B$9)*(1+'RIY Cashflows'!$D$8)^('RIY Cashflows'!B65/12)+'RIY Cashflows'!D65)*Assumptions!$B$12>Assumptions!$B$17,Assumptions!$B$17*D65/(D65+SUM('Admin fee calc'!$B$9:$B$9)),Assumptions!$B$12*'RIY Cashflows'!D65) ->  | O65: =-MAX(MAX(D65*Assumptions!$B$12/12,N65),M65)-D65*Illustrator!#REF! ->  | P65: =IF(A65=A64,P64,P64*(1+Assumptions!$C$17)) -> 1.26247696e+11 | Q65: =-K65*(Illustrator!$C$38)/12 ->  | R65: =-K65*(Illustrator!$C$39)/12 ->  | AG65: 2004-07-01 | AM65: 2004-07-01 | AN65: carry on | AO65: 2004-07-01
A66: 5 | B66: 56 | C66: 2004-08-01 | E66: 0 | F66: =IF(A66=A65,F65,F65*(1+Illustrator!$C$23)) -> 0 | G66: =-SUMPRODUCT(Illustrator!$D$13:$D$17,Illustrator!$Q$13:$Q$17)/SUM(Illustrator!$D$13:$D$17)*F66 ->  | H66: =-E66*Illustrator!$I$18 -> 0 | I66: =-F66*Illustrator!$C$31 -> 0 | J66: =IF(A66=A65,J65,J65*(1+Illustrator!$C$25)) -> 0 | L66: =-K66*(Illustrator!$L$18+Illustrator!$C$40)/12 ->  | M66: =IF(A66=A65,M65,M65*(1+Assumptions!$C$16)) -> 0 | N66: =IF((SUM('Admin fee calc'!$B$9:$B$9)*(1+'RIY Cashflows'!$D$8)^('RIY Cashflows'!B66/12)+'RIY Cashflows'!D66)*Assumptions!$B$12>Assumptions!$B$17,Assumptions!$B$17*D66/(D66+SUM('Admin fee calc'!$B$9:$B$9)),Assumptions!$B$12*'RIY Cashflows'!D66) ->  | O66: =-MAX(MAX(D66*Assumptions!$B$12/12,N66),M66)-D66*Illustrator!#REF! ->  | P66: =IF(A66=A65,P65,P65*(1+Assumptions!$C$17)) -> 1.26247696e+11 | Q66: =-K66*(Illustrator!$C$38)/12 ->  | R66: =-K66*(Illustrator!$C$39)/12 ->  | AG66: 2004-08-01 | AM66: 2004-08-01 | AN66: carry on | AO66: 2004-08-01
A67: 5 | B67: 57 | C67: 2004-09-01 | E67: 0 | F67: =IF(A67=A66,F66,F66*(1+Illustrator!$C$23)) -> 0 | G67: =-SUMPRODUCT(Illustrator!$D$13:$D$17,Illustrator!$Q$13:$Q$17)/SUM(Illustrator!$D$13:$D$17)*F67 ->  | H67: =-E67*Illustrator!$I$18 -> 0 | I67: =-F67*Illustrator!$C$31 -> 0 | J67: =IF(A67=A66,J66,J66*(1+Illustrator!$C$25)) -> 0 | L67: =-K67*(Illustrator!$L$18+Illustrator!$C$40)/12 ->  | M67: =IF(A67=A66,M66,M66*(1+Assumptions!$C$16)) -> 0 | N67: =IF((SUM('Admin fee calc'!$B$9:$B$9)*(1+'RIY Cashflows'!$D$8)^('RIY Cashflows'!B67/12)+'RIY Cashflows'!D67)*Assumptions!$B$12>Assumptions!$B$17,Assumptions!$B$17*D67/(D67+SUM('Admin fee calc'!$B$9:$B$9)),Assumptions!$B$12*'RIY Cashflows'!D67) ->  | O67: =-MAX(MAX(D67*Assumptions!$B$12/12,N67),M67)-D67*Illustrator!#REF! ->  | P67: =IF(A67=A66,P66,P66*(1+Assumptions!$C$17)) -> 1.26247696e+11 | Q67: =-K67*(Illustrator!$C$38)/12 ->  | R67: =-K67*(Illustrator!$C$39)/12 ->  | AG67: 2004-09-01 | AM67: 2004-09-01 | AN67: carry on | AO67: 2004-09-01
A68: 5 | B68: 58 | C68: 2004-10-01 | E68: 0 | F68: =IF(A68=A67,F67,F67*(1+Illustrator!$C$23)) -> 0 | G68: =-SUMPRODUCT(Illustrator!$D$13:$D$17,Illustrator!$Q$13:$Q$17)/SUM(Illustrator!$D$13:$D$17)*F68 ->  | H68: =-E68*Illustrator!$I$18 -> 0 | I68: =-F68*Illustrator!$C$31 -> 0 | J68: =IF(A68=A67,J67,J67*(1+Illustrator!$C$25)) -> 0 | L68: =-K68*(Illustrator!$L$18+Illustrator!$C$40)/12 ->  | M68: =IF(A68=A67,M67,M67*(1+Assumptions!$C$16)) -> 0 | N68: =IF((SUM('Admin fee calc'!$B$9:$B$9)*(1+'RIY Cashflows'!$D$8)^('RIY Cashflows'!B68/12)+'RIY Cashflows'!D68)*Assumptions!$B$12>Assumptions!$B$17,Assumptions!$B$17*D68/(D68+SUM('Admin fee calc'!$B$9:$B$9)),Assumptions!$B$12*'RIY Cashflows'!D68) ->  | O68: =-MAX(MAX(D68*Assumptions!$B$12/12,N68),M68)-D68*Illustrator!#REF! ->  | P68: =IF(A68=A67,P67,P67*(1+Assumptions!$C$17)) -> 1.26247696e+11 | Q68: =-K68*(Illustrator!$C$38)/12 ->  | R68: =-K68*(Illustrator!$C$39)/12 ->  | AG68: 2004-10-01 | AM68: 2004-10-01 | AN68: carry on | AO68: 2004-10-01
A69: 5 | B69: 59 | C69: 2004-11-01 | E69: 0 | F69: =IF(A69=A68,F68,F68*(1+Illustrator!$C$23)) -> 0 | G69: =-SUMPRODUCT(Illustrator!$D$13:$D$17,Illustrator!$Q$13:$Q$17)/SUM(Illustrator!$D$13:$D$17)*F69 ->  | H69: =-E69*Illustrator!$I$18 -> 0 | I69: =-F69*Illustrator!$C$31 -> 0 | J69: =IF(A69=A68,J68,J68*(1+Illustrator!$C$25)) -> 0 | L69: =-K69*(Illustrator!$L$18+Illustrator!$C$40)/12 ->  | M69: =IF(A69=A68,M68,M68*(1+Assumptions!$C$16)) -> 0 | N69: =IF((SUM('Admin fee calc'!$B$9:$B$9)*(1+'RIY Cashflows'!$D$8)^('RIY Cashflows'!B69/12)+'RIY Cashflows'!D69)*Assumptions!$B$12>Assumptions!$B$17,Assumptions!$B$17*D69/(D69+SUM('Admin fee calc'!$B$9:$B$9)),Assumptions!$B$12*'RIY Cashflows'!D69) ->  | O69: =-MAX(MAX(D69*Assumptions!$B$12/12,N69),M69)-D69*Illustrator!#REF! ->  | P69: =IF(A69=A68,P68,P68*(1+Assumptions!$C$17)) -> 1.26247696e+11 | Q69: =-K69*(Illustrator!$C$38)/12 ->  | R69: =-K69*(Illustrator!$C$39)/12 ->  | AG69: 2004-11-01 | AM69: 2004-11-01 | AN69: carry on | AO69: 2004-11-01
A70: 5 | B70: 60 | C70: 2004-12-01 | E70: 0 | F70: =IF(A70=A69,F69,F69*(1+Illustrator!$C$23)) -> 0 | G70: =-SUMPRODUCT(Illustrator!$D$13:$D$17,Illustrator!$Q$13:$Q$17)/SUM(Illustrator!$D$13:$D$17)*F70 ->  | H70: =-E70*Illustrator!$I$18 -> 0 | I70: =-F70*Illustrator!$C$31 -> 0 | J70: =IF(A70=A69,J69,J69*(1+Illustrator!$C$25)) -> 0 | L70: =-K70*(Illustrator!$L$18+Illustrator!$C$40)/12 ->  | M70: =IF(A70=A69,M69,M69*(1+Assumptions!$C$16)) -> 0 | N70: =IF((SUM('Admin fee calc'!$B$9:$B$9)*(1+'RIY Cashflows'!$D$8)^('RIY Cashflows'!B70/12)+'RIY Cashflows'!D70)*Assumptions!$B$12>Assumptions!$B$17,Assumptions!$B$17*D70/(D70+SUM('Admin fee calc'!$B$9:$B$9)),Assumptions!$B$12*'RIY Cashflows'!D70) ->  | O70: =-MAX(MAX(D70*Assumptions!$B$12/12,N70),M70)-D70*Illustrator!#REF! ->  | P70: =IF(A70=A69,P69,P69*(1+Assumptions!$C$17)) -> 1.26247696e+11 | Q70: =-K70*(Illustrator!$C$38)/12 ->  | R70: =-K70*(Illustrator!$C$39)/12 ->  | T70: 5 | AG70: 2004-12-01 | AM70: 2004-12-01 | AN70: carry on | AO70: 2004-12-01
A71: 6 | B71: 61 | C71: 2005-01-01 | E71: 0 | F71: =IF(A71=A70,F70,F70*(1+Illustrator!$C$23)) -> 0 | G71: =-SUMPRODUCT(Illustrator!$D$13:$D$17,Illustrator!$Q$13:$Q$17)/SUM(Illustrator!$D$13:$D$17)*F71 ->  | H71: =-E71*Illustrator!$I$18 -> 0 | I71: =-F71*Illustrator!$C$31 -> 0 | J71: =IF(A71=A70,J70,J70*(1+Illustrator!$C$25)) -> 0 | L71: =-K71*(Illustrator!$L$18+Illustrator!$C$40)/12 ->  | M71: =IF(A71=A70,M70,M70*(1+Assumptions!$C$16)) -> 0 | N71: =IF((SUM('Admin fee calc'!$B$9:$B$9)*(1+'RIY Cashflows'!$D$8)^('RIY Cashflows'!B71/12)+'RIY Cashflows'!D71)*Assumptions!$B$12>Assumptions!$B$17,Assumptions!$B$17*D71/(D71+SUM('Admin fee calc'!$B$9:$B$9)),Assumptions!$B$12*'RIY Cashflows'!D71) ->  | O71: =-MAX(MAX(D71*Assumptions!$B$12/12,N71),M71)-D71*Illustrator!#REF! ->  | P71: =IF(A71=A70,P70,P70*(1+Assumptions!$C$17)) -> 1.338225578e+11 | Q71: =-K71*(Illustrator!$C$38)/12 ->  | R71: =-K71*(Illustrator!$C$39)/12 ->  | AG71: 2004-12-31 | AH71: =$L70+$R70 ->  | AI71: =$L70+$R70-$R70 ->  | AJ71: =$L70+$R70-$Q70 ->  | AK71: =$L70+$R70 ->  | AM71: 2005-01-01 | AN71: carry on | AO71: 2005-01-01
A72: 6 | B72: 62 | C72: 2005-02-01 | E72: 0 | F72: =IF(A72=A71,F71,F71*(1+Illustrator!$C$23)) -> 0 | G72: =-SUMPRODUCT(Illustrator!$D$13:$D$17,Illustrator!$Q$13:$Q$17)/SUM(Illustrator!$D$13:$D$17)*F72 ->  | H72: =-E72*Illustrator!$I$18 -> 0 | I72: =-F72*Illustrator!$C$31 -> 0 | J72: =IF(A72=A71,J71,J71*(1+Illustrator!$C$25)) -> 0 | L72: =-K72*(Illustrator!$L$18+Illustrator!$C$40)/12 ->  | M72: =IF(A72=A71,M71,M71*(1+Assumptions!$C$16)) -> 0 | N72: =IF((SUM('Admin fee calc'!$B$9:$B$9)*(1+'RIY Cashflows'!$D$8)^('RIY Cashflows'!B72/12)+'RIY Cashflows'!D72)*Assumptions!$B$12>Assumptions!$B$17,Assumptions!$B$17*D72/(D72+SUM('Admin fee calc'!$B$9:$B$9)),Assumptions!$B$12*'RIY Cashflows'!D72) ->  | O72: =-MAX(MAX(D72*Assumptions!$B$12/12,N72),M72)-D72*Illustrator!#REF! ->  | P72: =IF(A72=A71,P71,P71*(1+Assumptions!$C$17)) -> 1.338225578e+11 | Q72: =-K72*(Illustrator!$C$38)/12 ->  | R72: =-K72*(Illustrator!$C$39)/12 ->  | AG72: 2004-12-31 | AH72: =-$S70 ->  | AI72: =-$S70 ->  | AM72: 2005-02-01 | AN72: carry on | AO72: 2005-02-01
A73: 6 | B73: 63 | C73: 2005-03-01 | E73: 0 | F73: =IF(A73=A72,F72,F72*(1+Illustrator!$C$23)) -> 0 | G73: =-SUMPRODUCT(Illustrator!$D$13:$D$17,Illustrator!$Q$13:$Q$17)/SUM(Illustrator!$D$13:$D$17)*F73 ->  | H73: =-E73*Illustrator!$I$18 -> 0 | I73: =-F73*Illustrator!$C$31 -> 0 | J73: =IF(A73=A72,J72,J72*(1+Illustrator!$C$25)) -> 0 | L73: =-K73*(Illustrator!$L$18+Illustrator!$C$40)/12 ->  | M73: =IF(A73=A72,M72,M72*(1+Assumptions!$C$16)) -> 0 | N73: =IF((SUM('Admin fee calc'!$B$9:$B$9)*(1+'RIY Cashflows'!$D$8)^('RIY Cashflows'!B73/12)+'RIY Cashflows'!D73)*Assumptions!$B$12>Assumptions!$B$17,Assumptions!$B$17*D73/(D73+SUM('Admin fee calc'!$B$9:$B$9)),Assumptions!$B$12*'RIY Cashflows'!D73) ->  | O73: =-MAX(MAX(D73*Assumptions!$B$12/12,N73),M73)-D73*Illustrator!#REF! ->  | P73: =IF(A73=A72,P72,P72*(1+Assumptions!$C$17)) -> 1.338225578e+11 | Q73: =-K73*(Illustrator!$C$38)/12 ->  | R73: =-K73*(Illustrator!$C$39)/12 ->  | AM73: 2005-03-01 | AN73: carry on | AO73: 2005-03-01
A74: 6 | B74: 64 | C74: 2005-04-01 | E74: 0 | F74: =IF(A74=A73,F73,F73*(1+Illustrator!$C$23)) -> 0 | G74: =-SUMPRODUCT(Illustrator!$D$13:$D$17,Illustrator!$Q$13:$Q$17)/SUM(Illustrator!$D$13:$D$17)*F74 ->  | H74: =-E74*Illustrator!$I$18 -> 0 | I74: =-F74*Illustrator!$C$31 -> 0 | J74: =IF(A74=A73,J73,J73*(1+Illustrator!$C$25)) -> 0 | L74: =-K74*(Illustrator!$L$18+Illustrator!$C$40)/12 ->  | M74: =IF(A74=A73,M73,M73*(1+Assumptions!$C$16)) -> 0 | N74: =IF((SUM('Admin fee calc'!$B$9:$B$9)*(1+'RIY Cashflows'!$D$8)^('RIY Cashflows'!B74/12)+'RIY Cashflows'!D74)*Assumptions!$B$12>Assumptions!$B$17,Assumptions!$B$17*D74/(D74+SUM('Admin fee calc'!$B$9:$B$9)),Assumptions!$B$12*'RIY Cashflows'!D74) ->  | O74: =-MAX(MAX(D74*Assumptions!$B$12/12,N74),M74)-D74*Illustrator!#REF! ->  | P74: =IF(A74=A73,P73,P73*(1+Assumptions!$C$17)) -> 1.338225578e+11 | Q74: =-K74*(Illustrator!$C$38)/12 ->  | R74: =-K74*(Illustrator!$C$39)/12 ->  | AM74: 2005-04-01 | AN74: carry on | AO74: 2005-04-01
A75: 6 | B75: 65 | C75: 2005-05-01 | E75: 0 | F75: =IF(A75=A74,F74,F74*(1+Illustrator!$C$23)) -> 0 | G75: =-SUMPRODUCT(Illustrator!$D$13:$D$17,Illustrator!$Q$13:$Q$17)/SUM(Illustrator!$D$13:$D$17)*F75 ->  | H75: =-E75*Illustrator!$I$18 -> 0 | I75: =-F75*Illustrator!$C$31 -> 0 | J75: =IF(A75=A74,J74,J74*(1+Illustrator!$C$25)) -> 0 | L75: =-K75*(Illustrator!$L$18+Illustrator!$C$40)/12 ->  | M75: =IF(A75=A74,M74,M74*(1+Assumptions!$C$16)) -> 0 | N75: =IF((SUM('Admin fee calc'!$B$9:$B$9)*(1+'RIY Cashflows'!$D$8)^('RIY Cashflows'!B75/12)+'RIY Cashflows'!D75)*Assumptions!$B$12>Assumptions!$B$17,Assumptions!$B$17*D75/(D75+SUM('Admin fee calc'!$B$9:$B$9)),Assumptions!$B$12*'RIY Cashflows'!D75) ->  | O75: =-MAX(MAX(D75*Assumptions!$B$12/12,N75),M75)-D75*Illustrator!#REF! ->  | P75: =IF(A75=A74,P74,P74*(1+Assumptions!$C$17)) -> 1.338225578e+11 | Q75: =-K75*(Illustrator!$C$38)/12 ->  | R75: =-K75*(Illustrator!$C$39)/12 ->  | S75: =K75+L75+R75 ->  | AM75: 2005-05-01 | AN75: carry on | AO75: 2005-05-01
A76: =ROUNDUP(B76/12,0) -> 6 | B76: 66 | C76: 2005-06-01 | E76: 0 | F76: =IF(A76=A75,F75,F75*(1+Illustrator!$C$23)) -> 0 | G76: =-SUMPRODUCT(Illustrator!$D$13:$D$17,Illustrator!$Q$13:$Q$17)/SUM(Illustrator!$D$13:$D$17)*F76 ->  | H76: =-E76*Illustrator!$I$18 -> 0 | I76: =-F76*Illustrator!$C$31 -> 0 | J76: =IF(A76=A75,J75,J75*(1+Illustrator!$C$25)) -> 0 | K76: =SUM(D76:J76)*(1+$D$8)^((C77-C76)/365) ->  | L76: =-K76*(Illustrator!$L$18+Illustrator!$C$40)/12 ->  | M76: =IF(A76=A75,M75,M75*(1+Assumptions!$C$16)) -> 0 | N76: =IF((SUM('Admin fee calc'!$B$9:$B$9)*(1+'RIY Cashflows'!$D$8)^('RIY Cashflows'!B76/12)+'RIY Cashflows'!D76)*Assumptions!$B$12>Assumptions!$B$17,Assumptions!$B$17*D76/(D76+SUM('Admin fee calc'!$B$9:$B$9)),Assumptions!$B$12*'RIY Cashflows'!D76) ->  | O76: =-MAX(MAX(D76*Assumptions!$B$12/12,N76),M76)-D76*Illustrator!#REF! ->  | P76: =IF(A76=A75,P75,P75*(1+Assumptions!$C$17)) -> 1.338225578e+11 | Q76: =-K76*(Illustrator!$C$38)/12 ->  | R76: =-K76*(Illustrator!$C$39)/12 ->  | AM76: 2005-06-01 | AN76: carry on | AO76: 2005-06-01 | AP76: =$L75+$R75+SUM($E76:$J76) ->  | AQ76: =$L75+$R75+SUM($E76:$J76)-$H76-$I76-$R75 ->  | AR76: =$L75+$R75+SUM($E76:$J76)-$G76-$Q76 ->  | AS76: =$L75+$R75+SUM($E76:$J76) -> 
A77: 6 | B77: 67 | C77: 2005-07-01 | D77: =S76 ->  | E77: 0 | F77: =IF(A77=A76,F76,F76*(1+Illustrator!$C$23)) -> 0 | G77: =-SUMPRODUCT(Illustrator!$D$13:$D$17,Illustrator!$Q$13:$Q$17)/SUM(Illustrator!$D$13:$D$17)*F77 ->  | H77: =-E77*Illustrator!$I$18 -> 0 | I77: =-F77*Illustrator!$C$31 -> 0 | J77: =IF(A77=A76,J76,J76*(1+Illustrator!$C$25)) -> 0 | L77: =-K77*(Illustrator!$L$18+Illustrator!$C$40)/12 ->  | M77: =IF(A77=A76,M76,M76*(1+Assumptions!$C$16)) -> 0 | N77: =IF((SUM('Admin fee calc'!$B$9:$B$9)*(1+'RIY Cashflows'!$D$8)^('RIY Cashflows'!B77/12)+'RIY Cashflows'!D77)*Assumptions!$B$12>Assumptions!$B$17,Assumptions!$B$17*D77/(D77+SUM('Admin fee calc'!$B$9:$B$9)),Assumptions!$B$12*'RIY Cashflows'!D77) ->  | O77: =-MAX(MAX(D77*Assumptions!$B$12/12,N77),M77)-D77*Illustrator!#REF! ->  | P77: =IF(A77=A76,P76,P76*(1+Assumptions!$C$17)) -> 1.338225578e+11 | Q77: =-K77*(Illustrator!$C$38)/12 ->  | R77: =-K77*(Illustrator!$C$39)/12 ->  | AM77: 2005-07-01 | AN77: =IF(AM77<$AP$2,"carry on",IF(AN76="carry on","2nd last line",IF(AN76="2nd last line","last line",""))) -> carry on | AO77: =IF(AN77="carry on",AM77,IF(AN77="2nd last line",AM77-1,IF(AN77="last line",AO76,0))) -> 2005-07-01
A78: 6 | B78: 68 | C78: 2005-08-01 | E78: 0 | F78: =IF(A78=A77,F77,F77*(1+Illustrator!$C$23)) -> 0 | G78: =-SUMPRODUCT(Illustrator!$D$13:$D$17,Illustrator!$Q$13:$Q$17)/SUM(Illustrator!$D$13:$D$17)*F78 ->  | H78: =-E78*Illustrator!$I$18 -> 0 | I78: =-F78*Illustrator!$C$31 -> 0 | J78: =IF(A78=A77,J77,J77*(1+Illustrator!$C$25)) -> 0 | L78: =-K78*(Illustrator!$L$18+Illustrator!$C$40)/12 ->  | M78: =IF(A78=A77,M77,M77*(1+Assumptions!$C$16)) -> 0 | N78: =IF((SUM('Admin fee calc'!$B$9:$B$9)*(1+'RIY Cashflows'!$D$8)^('RIY Cashflows'!B78/12)+'RIY Cashflows'!D78)*Assumptions!$B$12>Assumptions!$B$17,Assumptions!$B$17*D78/(D78+SUM('Admin fee calc'!$B$9:$B$9)),Assumptions!$B$12*'RIY Cashflows'!D78) ->  | O78: =-MAX(MAX(D78*Assumptions!$B$12/12,N78),M78)-D78*Illustrator!#REF! ->  | P78: =IF(A78=A77,P77,P77*(1+Assumptions!$C$17)) -> 1.338225578e+11 | Q78: =-K78*(Illustrator!$C$38)/12 ->  | R78: =-K78*(Illustrator!$C$39)/12 ->  | AM78: 2005-08-01 | AN78: carry on | AO78: 2005-08-01
A79: 6 | B79: 69 | C79: 2005-09-01 | E79: 0 | F79: =IF(A79=A78,F78,F78*(1+Illustrator!$C$23)) -> 0 | G79: =-SUMPRODUCT(Illustrator!$D$13:$D$17,Illustrator!$Q$13:$Q$17)/SUM(Illustrator!$D$13:$D$17)*F79 ->  | H79: =-E79*Illustrator!$I$18 -> 0 | I79: =-F79*Illustrator!$C$31 -> 0 | J79: =IF(A79=A78,J78,J78*(1+Illustrator!$C$25)) -> 0 | L79: =-K79*(Illustrator!$L$18+Illustrator!$C$40)/12 ->  | M79: =IF(A79=A78,M78,M78*(1+Assumptions!$C$16)) -> 0 | N79: =IF((SUM('Admin fee calc'!$B$9:$B$9)*(1+'RIY Cashflows'!$D$8)^('RIY Cashflows'!B79/12)+'RIY Cashflows'!D79)*Assumptions!$B$12>Assumptions!$B$17,Assumptions!$B$17*D79/(D79+SUM('Admin fee calc'!$B$9:$B$9)),Assumptions!$B$12*'RIY Cashflows'!D79) ->  | O79: =-MAX(MAX(D79*Assumptions!$B$12/12,N79),M79)-D79*Illustrator!#REF! ->  | P79: =IF(A79=A78,P78,P78*(1+Assumptions!$C$17)) -> 1.338225578e+11 | Q79: =-K79*(Illustrator!$C$38)/12 ->  | R79: =-K79*(Illustrator!$C$39)/12 ->  | AM79: 2005-09-01 | AN79: carry on | AO79: 2005-09-01
A80: 6 | B80: 70 | C80: 2005-10-01 | E80: 0 | F80: =IF(A80=A79,F79,F79*(1+Illustrator!$C$23)) -> 0 | G80: =-SUMPRODUCT(Illustrator!$D$13:$D$17,Illustrator!$Q$13:$Q$17)/SUM(Illustrator!$D$13:$D$17)*F80 ->  | H80: =-E80*Illustrator!$I$18 -> 0 | I80: =-F80*Illustrator!$C$31 -> 0 | J80: =IF(A80=A79,J79,J79*(1+Illustrator!$C$25)) -> 0 | L80: =-K80*(Illustrator!$L$18+Illustrator!$C$40)/12 ->  | M80: =IF(A80=A79,M79,M79*(1+Assumptions!$C$16)) -> 0 | N80: =IF((SUM('Admin fee calc'!$B$9:$B$9)*(1+'RIY Cashflows'!$D$8)^('RIY Cashflows'!B80/12)+'RIY Cashflows'!D80)*Assumptions!$B$12>Assumptions!$B$17,Assumptions!$B$17*D80/(D80+SUM('Admin fee calc'!$B$9:$B$9)),Assumptions!$B$12*'RIY Cashflows'!D80) ->  | O80: =-MAX(MAX(D80*Assumptions!$B$12/12,N80),M80)-D80*Illustrator!#REF! ->  | P80: =IF(A80=A79,P79,P79*(1+Assumptions!$C$17)) -> 1.338225578e+11 | Q80: =-K80*(Illustrator!$C$38)/12 ->  | R80: =-K80*(Illustrator!$C$39)/12 ->  | AM80: 2005-10-01 | AN80: carry on | AO80: 2005-10-01
A81: 6 | B81: 71 | C81: 2005-11-01 | E81: 0 | F81: =IF(A81=A80,F80,F80*(1+Illustrator!$C$23)) -> 0 | G81: =-SUMPRODUCT(Illustrator!$D$13:$D$17,Illustrator!$Q$13:$Q$17)/SUM(Illustrator!$D$13:$D$17)*F81 ->  | H81: =-E81*Illustrator!$I$18 -> 0 | I81: =-F81*Illustrator!$C$31 -> 0 | J81: =IF(A81=A80,J80,J80*(1+Illustrator!$C$25)) -> 0 | L81: =-K81*(Illustrator!$L$18+Illustrator!$C$40)/12 ->  | M81: =IF(A81=A80,M80,M80*(1+Assumptions!$C$16)) -> 0 | N81: =IF((SUM('Admin fee calc'!$B$9:$B$9)*(1+'RIY Cashflows'!$D$8)^('RIY Cashflows'!B81/12)+'RIY Cashflows'!D81)*Assumptions!$B$12>Assumptions!$B$17,Assumptions!$B$17*D81/(D81+SUM('Admin fee calc'!$B$9:$B$9)),Assumptions!$B$12*'RIY Cashflows'!D81) ->  | O81: =-MAX(MAX(D81*Assumptions!$B$12/12,N81),M81)-D81*Illustrator!#REF! ->  | P81: =IF(A81=A80,P80,P80*(1+Assumptions!$C$17)) -> 1.338225578e+11 | Q81: =-K81*(Illustrator!$C$38)/12 ->  | R81: =-K81*(Illustrator!$C$39)/12 ->  | AM81: 2005-11-01 | AN81: carry on | AO81: 2005-11-01
A82: 6 | B82: 72 | C82: 2005-12-01 | E82: 0 | F82: =IF(A82=A81,F81,F81*(1+Illustrator!$C$23)) -> 0 | G82: =-SUMPRODUCT(Illustrator!$D$13:$D$17,Illustrator!$Q$13:$Q$17)/SUM(Illustrator!$D$13:$D$17)*F82 ->  | H82: =-E82*Illustrator!$I$18 -> 0 | I82: =-F82*Illustrator!$C$31 -> 0 | J82: =IF(A82=A81,J81,J81*(1+Illustrator!$C$25)) -> 0 | L82: =-K82*(Illustrator!$L$18+Illustrator!$C$40)/12 ->  | M82: =IF(A82=A81,M81,M81*(1+Assumptions!$C$16)) -> 0 | N82: =IF((SUM('Admin fee calc'!$B$9:$B$9)*(1+'RIY Cashflows'!$D$8)^('RIY Cashflows'!B82/12)+'RIY Cashflows'!D82)*Assumptions!$B$12>Assumptions!$B$17,Assumptions!$B$17*D82/(D82+SUM('Admin fee calc'!$B$9:$B$9)),Assumptions!$B$12*'RIY Cashflows'!D82) ->  | O82: =-MAX(MAX(D82*Assumptions!$B$12/12,N82),M82)-D82*Illustrator!#REF! ->  | P82: =IF(A82=A81,P81,P81*(1+Assumptions!$C$17)) -> 1.338225578e+11 | Q82: =-K82*(Illustrator!$C$38)/12 ->  | R82: =-K82*(Illustrator!$C$39)/12 ->  | AM82: 2005-12-01 | AN82: carry on | AO82: 2005-12-01
A83: 7 | B83: 73 | C83: 2006-01-01 | E83: 0 | F83: =IF(A83=A82,F82,F82*(1+Illustrator!$C$23)) -> 0 | G83: =-SUMPRODUCT(Illustrator!$D$13:$D$17,Illustrator!$Q$13:$Q$17)/SUM(Illustrator!$D$13:$D$17)*F83 ->  | H83: =-E83*Illustrator!$I$18 -> 0 | I83: =-F83*Illustrator!$C$31 -> 0 | J83: =IF(A83=A82,J82,J82*(1+Illustrator!$C$25)) -> 0 | L83: =-K83*(Illustrator!$L$18+Illustrator!$C$40)/12 ->  | M83: =IF(A83=A82,M82,M82*(1+Assumptions!$C$16)) -> 0 | N83: =IF((SUM('Admin fee calc'!$B$9:$B$9)*(1+'RIY Cashflows'!$D$8)^('RIY Cashflows'!B83/12)+'RIY Cashflows'!D83)*Assumptions!$B$12>Assumptions!$B$17,Assumptions!$B$17*D83/(D83+SUM('Admin fee calc'!$B$9:$B$9)),Assumptions!$B$12*'RIY Cashflows'!D83) ->  | O83: =-MAX(MAX(D83*Assumptions!$B$12/12,N83),M83)-D83*Illustrator!#REF! ->  | P83: =IF(A83=A82,P82,P82*(1+Assumptions!$C$17)) -> 1.418519112e+11 | Q83: =-K83*(Illustrator!$C$38)/12 ->  | R83: =-K83*(Illustrator!$C$39)/12 ->  | AM83: 2006-01-01 | AN83: carry on | AO83: 2006-01-01
A84: 7 | B84: 74 | C84: 2006-02-01 | E84: 0 | F84: =IF(A84=A83,F83,F83*(1+Illustrator!$C$23)) -> 0 | G84: =-SUMPRODUCT(Illustrator!$D$13:$D$17,Illustrator!$Q$13:$Q$17)/SUM(Illustrator!$D$13:$D$17)*F84 ->  | H84: =-E84*Illustrator!$I$18 -> 0 | I84: =-F84*Illustrator!$C$31 -> 0 | J84: =IF(A84=A83,J83,J83*(1+Illustrator!$C$25)) -> 0 | L84: =-K84*(Illustrator!$L$18+Illustrator!$C$40)/12 ->  | M84: =IF(A84=A83,M83,M83*(1+Assumptions!$C$16)) -> 0 | N84: =IF((SUM('Admin fee calc'!$B$9:$B$9)*(1+'RIY Cashflows'!$D$8)^('RIY Cashflows'!B84/12)+'RIY Cashflows'!D84)*Assumptions!$B$12>Assumptions!$B$17,Assumptions!$B$17*D84/(D84+SUM('Admin fee calc'!$B$9:$B$9)),Assumptions!$B$12*'RIY Cashflows'!D84) ->  | O84: =-MAX(MAX(D84*Assumptions!$B$12/12,N84),M84)-D84*Illustrator!#REF! ->  | P84: =IF(A84=A83,P83,P83*(1+Assumptions!$C$17)) -> 1.418519112e+11 | Q84: =-K84*(Illustrator!$C$38)/12 ->  | R84: =-K84*(Illustrator!$C$39)/12 ->  | AM84: 2006-02-01 | AN84: carry on | AO84: 2006-02-01
A85: 7 | B85: 75 | C85: 2006-03-01 | E85: 0 | F85: =IF(A85=A84,F84,F84*(1+Illustrator!$C$23)) -> 0 | G85: =-SUMPRODUCT(Illustrator!$D$13:$D$17,Illustrator!$Q$13:$Q$17)/SUM(Illustrator!$D$13:$D$17)*F85 ->  | H85: =-E85*Illustrator!$I$18 -> 0 | I85: =-F85*Illustrator!$C$31 -> 0 | J85: =IF(A85=A84,J84,J84*(1+Illustrator!$C$25)) -> 0 | L85: =-K85*(Illustrator!$L$18+Illustrator!$C$40)/12 ->  | M85: =IF(A85=A84,M84,M84*(1+Assumptions!$C$16)) -> 0 | N85: =IF((SUM('Admin fee calc'!$B$9:$B$9)*(1+'RIY Cashflows'!$D$8)^('RIY Cashflows'!B85/12)+'RIY Cashflows'!D85)*Assumptions!$B$12>Assumptions!$B$17,Assumptions!$B$17*D85/(D85+SUM('Admin fee calc'!$B$9:$B$9)),Assumptions!$B$12*'RIY Cashflows'!D85) ->  | O85: =-MAX(MAX(D85*Assumptions!$B$12/12,N85),M85)-D85*Illustrator!#REF! ->  | P85: =IF(A85=A84,P84,P84*(1+Assumptions!$C$17)) -> 1.418519112e+11 | Q85: =-K85*(Illustrator!$C$38)/12 ->  | R85: =-K85*(Illustrator!$C$39)/12 ->  | AM85: 2006-03-01 | AN85: carry on | AO85: 2006-03-01
A86: 7 | B86: 76 | C86: 2006-04-01 | E86: 0 | F86: =IF(A86=A85,F85,F85*(1+Illustrator!$C$23)) -> 0 | G86: =-SUMPRODUCT(Illustrator!$D$13:$D$17,Illustrator!$Q$13:$Q$17)/SUM(Illustrator!$D$13:$D$17)*F86 ->  | H86: =-E86*Illustrator!$I$18 -> 0 | I86: =-F86*Illustrator!$C$31 -> 0 | J86: =IF(A86=A85,J85,J85*(1+Illustrator!$C$25)) -> 0 | L86: =-K86*(Illustrator!$L$18+Illustrator!$C$40)/12 ->  | M86: =IF(A86=A85,M85,M85*(1+Assumptions!$C$16)) -> 0 | N86: =IF((SUM('Admin fee calc'!$B$9:$B$9)*(1+'RIY Cashflows'!$D$8)^('RIY Cashflows'!B86/12)+'RIY Cashflows'!D86)*Assumptions!$B$12>Assumptions!$B$17,Assumptions!$B$17*D86/(D86+SUM('Admin fee calc'!$B$9:$B$9)),Assumptions!$B$12*'RIY Cashflows'!D86) ->  | O86: =-MAX(MAX(D86*Assumptions!$B$12/12,N86),M86)-D86*Illustrator!#REF! ->  | P86: =IF(A86=A85,P85,P85*(1+Assumptions!$C$17)) -> 1.418519112e+11 | Q86: =-K86*(Illustrator!$C$38)/12 ->  | R86: =-K86*(Illustrator!$C$39)/12 ->  | AM86: 2006-04-01 | AN86: carry on | AO86: 2006-04-01
A87: 7 | B87: 77 | C87: 2006-05-01 | E87: 0 | F87: =IF(A87=A86,F86,F86*(1+Illustrator!$C$23)) -> 0 | G87: =-SUMPRODUCT(Illustrator!$D$13:$D$17,Illustrator!$Q$13:$Q$17)/SUM(Illustrator!$D$13:$D$17)*F87 ->  | H87: =-E87*Illustrator!$I$18 -> 0 | I87: =-F87*Illustrator!$C$31 -> 0 | J87: =IF(A87=A86,J86,J86*(1+Illustrator!$C$25)) -> 0 | L87: =-K87*(Illustrator!$L$18+Illustrator!$C$40)/12 ->  | M87: =IF(A87=A86,M86,M86*(1+Assumptions!$C$16)) -> 0 | N87: =IF((SUM('Admin fee calc'!$B$9:$B$9)*(1+'RIY Cashflows'!$D$8)^('RIY Cashflows'!B87/12)+'RIY Cashflows'!D87)*Assumptions!$B$12>Assumptions!$B$17,Assumptions!$B$17*D87/(D87+SUM('Admin fee calc'!$B$9:$B$9)),Assumptions!$B$12*'RIY Cashflows'!D87) ->  | O87: =-MAX(MAX(D87*Assumptions!$B$12/12,N87),M87)-D87*Illustrator!#REF! ->  | P87: =IF(A87=A86,P86,P86*(1+Assumptions!$C$17)) -> 1.418519112e+11 | Q87: =-K87*(Illustrator!$C$38)/12 ->  | R87: =-K87*(Illustrator!$C$39)/12 ->  | AM87: 2006-05-01 | AN87: carry on | AO87: 2006-05-01
A88: 7 | B88: 78 | C88: 2006-06-01 | E88: 0 | F88: =IF(A88=A87,F87,F87*(1+Illustrator!$C$23)) -> 0 | G88: =-SUMPRODUCT(Illustrator!$D$13:$D$17,Illustrator!$Q$13:$Q$17)/SUM(Illustrator!$D$13:$D$17)*F88 ->  | H88: =-E88*Illustrator!$I$18 -> 0 | I88: =-F88*Illustrator!$C$31 -> 0 | J88: =IF(A88=A87,J87,J87*(1+Illustrator!$C$25)) -> 0 | L88: =-K88*(Illustrator!$L$18+Illustrator!$C$40)/12 ->  | M88: =IF(A88=A87,M87,M87*(1+Assumptions!$C$16)) -> 0 | N88: =IF((SUM('Admin fee calc'!$B$9:$B$9)*(1+'RIY Cashflows'!$D$8)^('RIY Cashflows'!B88/12)+'RIY Cashflows'!D88)*Assumptions!$B$12>Assumptions!$B$17,Assumptions!$B$17*D88/(D88+SUM('Admin fee calc'!$B$9:$B$9)),Assumptions!$B$12*'RIY Cashflows'!D88) ->  | O88: =-MAX(MAX(D88*Assumptions!$B$12/12,N88),M88)-D88*Illustrator!#REF! ->  | P88: =IF(A88=A87,P87,P87*(1+Assumptions!$C$17)) -> 1.418519112e+11 | Q88: =-K88*(Illustrator!$C$38)/12 ->  | R88: =-K88*(Illustrator!$C$39)/12 ->  | AM88: 2006-06-01 | AN88: carry on | AO88: 2006-06-01
A89: 7 | B89: 79 | C89: 2006-07-01 | E89: 0 | F89: =IF(A89=A88,F88,F88*(1+Illustrator!$C$23)) -> 0 | G89: =-SUMPRODUCT(Illustrator!$D$13:$D$17,Illustrator!$Q$13:$Q$17)/SUM(Illustrator!$D$13:$D$17)*F89 ->  | H89: =-E89*Illustrator!$I$18 -> 0 | I89: =-F89*Illustrator!$C$31 -> 0 | J89: =IF(A89=A88,J88,J88*(1+Illustrator!$C$25)) -> 0 | L89: =-K89*(Illustrator!$L$18+Illustrator!$C$40)/12 ->  | M89: =IF(A89=A88,M88,M88*(1+Assumptions!$C$16)) -> 0 | N89: =IF((SUM('Admin fee calc'!$B$9:$B$9)*(1+'RIY Cashflows'!$D$8)^('RIY Cashflows'!B89/12)+'RIY Cashflows'!D89)*Assumptions!$B$12>Assumptions!$B$17,Assumptions!$B$17*D89/(D89+SUM('Admin fee calc'!$B$9:$B$9)),Assumptions!$B$12*'RIY Cashflows'!D89) ->  | O89: =-MAX(MAX(D89*Assumptions!$B$12/12,N89),M89)-D89*Illustrator!#REF! ->  | P89: =IF(A89=A88,P88,P88*(1+Assumptions!$C$17)) -> 1.418519112e+11 | Q89: =-K89*(Illustrator!$C$38)/12 ->  | R89: =-K89*(Illustrator!$C$39)/12 ->  | AM89: 2006-07-01 | AN89: carry on | AO89: 2006-07-01
A90: 7 | B90: 80 | C90: 2006-08-01 | E90: 0 | F90: =IF(A90=A89,F89,F89*(1+Illustrator!$C$23)) -> 0 | G90: =-SUMPRODUCT(Illustrator!$D$13:$D$17,Illustrator!$Q$13:$Q$17)/SUM(Illustrator!$D$13:$D$17)*F90 ->  | H90: =-E90*Illustrator!$I$18 -> 0 | I90: =-F90*Illustrator!$C$31 -> 0 | J90: =IF(A90=A89,J89,J89*(1+Illustrator!$C$25)) -> 0 | L90: =-K90*(Illustrator!$L$18+Illustrator!$C$40)/12 ->  | M90: =IF(A90=A89,M89,M89*(1+Assumptions!$C$16)) -> 0 | N90: =IF((SUM('Admin fee calc'!$B$9:$B$9)*(1+'RIY Cashflows'!$D$8)^('RIY Cashflows'!B90/12)+'RIY Cashflows'!D90)*Assumptions!$B$12>Assumptions!$B$17,Assumptions!$B$17*D90/(D90+SUM('Admin fee calc'!$B$9:$B$9)),Assumptions!$B$12*'RIY Cashflows'!D90) ->  | O90: =-MAX(MAX(D90*Assumptions!$B$12/12,N90),M90)-D90*Illustrator!#REF! ->  | P90: =IF(A90=A89,P89,P89*(1+Assumptions!$C$17)) -> 1.418519112e+11 | Q90: =-K90*(Illustrator!$C$38)/12 ->  | R90: =-K90*(Illustrator!$C$39)/12 ->  | AM90: 2006-08-01 | AN90: carry on | AO90: 2006-08-01
A91: 7 | B91: 81 | C91: 2006-09-01 | E91: 0 | F91: =IF(A91=A90,F90,F90*(1+Illustrator!$C$23)) -> 0 | G91: =-SUMPRODUCT(Illustrator!$D$13:$D$17,Illustrator!$Q$13:$Q$17)/SUM(Illustrator!$D$13:$D$17)*F91 ->  | H91: =-E91*Illustrator!$I$18 -> 0 | I91: =-F91*Illustrator!$C$31 -> 0 | J91: =IF(A91=A90,J90,J90*(1+Illustrator!$C$25)) -> 0 | L91: =-K91*(Illustrator!$L$18+Illustrator!$C$40)/12 ->  | M91: =IF(A91=A90,M90,M90*(1+Assumptions!$C$16)) -> 0 | N91: =IF((SUM('Admin fee calc'!$B$9:$B$9)*(1+'RIY Cashflows'!$D$8)^('RIY Cashflows'!B91/12)+'RIY Cashflows'!D91)*Assumptions!$B$12>Assumptions!$B$17,Assumptions!$B$17*D91/(D91+SUM('Admin fee calc'!$B$9:$B$9)),Assumptions!$B$12*'RIY Cashflows'!D91) ->  | O91: =-MAX(MAX(D91*Assumptions!$B$12/12,N91),M91)-D91*Illustrator!#REF! ->  | P91: =IF(A91=A90,P90,P90*(1+Assumptions!$C$17)) -> 1.418519112e+11 | Q91: =-K91*(Illustrator!$C$38)/12 ->  | R91: =-K91*(Illustrator!$C$39)/12 ->  | AM91: 2006-09-01 | AN91: carry on | AO91: 2006-09-01
A92: 7 | B92: 82 | C92: 2006-10-01 | E92: 0 | F92: =IF(A92=A91,F91,F91*(1+Illustrator!$C$23)) -> 0 | G92: =-SUMPRODUCT(Illustrator!$D$13:$D$17,Illustrator!$Q$13:$Q$17)/SUM(Illustrator!$D$13:$D$17)*F92 ->  | H92: =-E92*Illustrator!$I$18 -> 0 | I92: =-F92*Illustrator!$C$31 -> 0 | J92: =IF(A92=A91,J91,J91*(1+Illustrator!$C$25)) -> 0 | L92: =-K92*(Illustrator!$L$18+Illustrator!$C$40)/12 ->  | M92: =IF(A92=A91,M91,M91*(1+Assumptions!$C$16)) -> 0 | N92: =IF((SUM('Admin fee calc'!$B$9:$B$9)*(1+'RIY Cashflows'!$D$8)^('RIY Cashflows'!B92/12)+'RIY Cashflows'!D92)*Assumptions!$B$12>Assumptions!$B$17,Assumptions!$B$17*D92/(D92+SUM('Admin fee calc'!$B$9:$B$9)),Assumptions!$B$12*'RIY Cashflows'!D92) ->  | O92: =-MAX(MAX(D92*Assumptions!$B$12/12,N92),M92)-D92*Illustrator!#REF! ->  | P92: =IF(A92=A91,P91,P91*(1+Assumptions!$C$17)) -> 1.418519112e+11 | Q92: =-K92*(Illustrator!$C$38)/12 ->  | R92: =-K92*(Illustrator!$C$39)/12 ->  | AM92: 2006-10-01 | AN92: carry on | AO92: 2006-10-01
A93: 7 | B93: 83 | C93: 2006-11-01 | E93: 0 | F93: =IF(A93=A92,F92,F92*(1+Illustrator!$C$23)) -> 0 | G93: =-SUMPRODUCT(Illustrator!$D$13:$D$17,Illustrator!$Q$13:$Q$17)/SUM(Illustrator!$D$13:$D$17)*F93 ->  | H93: =-E93*Illustrator!$I$18 -> 0 | I93: =-F93*Illustrator!$C$31 -> 0 | J93: =IF(A93=A92,J92,J92*(1+Illustrator!$C$25)) -> 0 | L93: =-K93*(Illustrator!$L$18+Illustrator!$C$40)/12 ->  | M93: =IF(A93=A92,M92,M92*(1+Assumptions!$C$16)) -> 0 | N93: =IF((SUM('Admin fee calc'!$B$9:$B$9)*(1+'RIY Cashflows'!$D$8)^('RIY Cashflows'!B93/12)+'RIY Cashflows'!D93)*Assumptions!$B$12>Assumptions!$B$17,Assumptions!$B$17*D93/(D93+SUM('Admin fee calc'!$B$9:$B$9)),Assumptions!$B$12*'RIY Cashflows'!D93) ->  | O93: =-MAX(MAX(D93*Assumptions!$B$12/12,N93),M93)-D93*Illustrator!#REF! ->  | P93: =IF(A93=A92,P92,P92*(1+Assumptions!$C$17)) -> 1.418519112e+11 | Q93: =-K93*(Illustrator!$C$38)/12 ->  | R93: =-K93*(Illustrator!$C$39)/12 ->  | AM93: 2006-11-01 | AN93: carry on | AO93: 2006-11-01
A94: 7 | B94: 84 | C94: 2006-12-01 | E94: 0 | F94: =IF(A94=A93,F93,F93*(1+Illustrator!$C$23)) -> 0 | G94: =-SUMPRODUCT(Illustrator!$D$13:$D$17,Illustrator!$Q$13:$Q$17)/SUM(Illustrator!$D$13:$D$17)*F94 ->  | H94: =-E94*Illustrator!$I$18 -> 0 | I94: =-F94*Illustrator!$C$31 -> 0 | J94: =IF(A94=A93,J93,J93*(1+Illustrator!$C$25)) -> 0 | L94: =-K94*(Illustrator!$L$18+Illustrator!$C$40)/12 ->  | M94: =IF(A94=A93,M93,M93*(1+Assumptions!$C$16)) -> 0 | N94: =IF((SUM('Admin fee calc'!$B$9:$B$9)*(1+'RIY Cashflows'!$D$8)^('RIY Cashflows'!B94/12)+'RIY Cashflows'!D94)*Assumptions!$B$12>Assumptions!$B$17,Assumptions!$B$17*D94/(D94+SUM('Admin fee calc'!$B$9:$B$9)),Assumptions!$B$12*'RIY Cashflows'!D94) ->  | O94: =-MAX(MAX(D94*Assumptions!$B$12/12,N94),M94)-D94*Illustrator!#REF! ->  | P94: =IF(A94=A93,P93,P93*(1+Assumptions!$C$17)) -> 1.418519112e+11 | Q94: =-K94*(Illustrator!$C$38)/12 ->  | R94: =-K94*(Illustrator!$C$39)/12 ->  | AM94: 2006-12-01 | AN94: carry on | AO94: 2006-12-01
A95: 8 | B95: 85 | C95: 2007-01-01 | E95: 0 | F95: =IF(A95=A94,F94,F94*(1+Illustrator!$C$23)) -> 0 | G95: =-SUMPRODUCT(Illustrator!$D$13:$D$17,Illustrator!$Q$13:$Q$17)/SUM(Illustrator!$D$13:$D$17)*F95 ->  | H95: =-E95*Illustrator!$I$18 -> 0 | I95: =-F95*Illustrator!$C$31 -> 0 | J95: =IF(A95=A94,J94,J94*(1+Illustrator!$C$25)) -> 0 | L95: =-K95*(Illustrator!$L$18+Illustrator!$C$40)/12 ->  | M95: =IF(A95=A94,M94,M94*(1+Assumptions!$C$16)) -> 0 | N95: =IF((SUM('Admin fee calc'!$B$9:$B$9)*(1+'RIY Cashflows'!$D$8)^('RIY Cashflows'!B95/12)+'RIY Cashflows'!D95)*Assumptions!$B$12>Assumptions!$B$17,Assumptions!$B$17*D95/(D95+SUM('Admin fee calc'!$B$9:$B$9)),Assumptions!$B$12*'RIY Cashflows'!D95) ->  | O95: =-MAX(MAX(D95*Assumptions!$B$12/12,N95),M95)-D95*Illustrator!#REF! ->  | P95: =IF(A95=A94,P94,P94*(1+Assumptions!$C$17)) -> 1.503630259e+11 | Q95: =-K95*(Illustrator!$C$38)/12 ->  | R95: =-K95*(Illustrator!$C$39)/12 ->  | AM95: 2007-01-01 | AN95: carry on | AO95: 2007-01-01
A96: 8 | B96: 86 | C96: 2007-02-01 | E96: 0 | F96: =IF(A96=A95,F95,F95*(1+Illustrator!$C$23)) -> 0 | G96: =-SUMPRODUCT(Illustrator!$D$13:$D$17,Illustrator!$Q$13:$Q$17)/SUM(Illustrator!$D$13:$D$17)*F96 ->  | H96: =-E96*Illustrator!$I$18 -> 0 | I96: =-F96*Illustrator!$C$31 -> 0 | J96: =IF(A96=A95,J95,J95*(1+Illustrator!$C$25)) -> 0 | L96: =-K96*(Illustrator!$L$18+Illustrator!$C$40)/12 ->  | M96: =IF(A96=A95,M95,M95*(1+Assumptions!$C$16)) -> 0 | N96: =IF((SUM('Admin fee calc'!$B$9:$B$9)*(1+'RIY Cashflows'!$D$8)^('RIY Cashflows'!B96/12)+'RIY Cashflows'!D96)*Assumptions!$B$12>Assumptions!$B$17,Assumptions!$B$17*D96/(D96+SUM('Admin fee calc'!$B$9:$B$9)),Assumptions!$B$12*'RIY Cashflows'!D96) ->  | O96: =-MAX(MAX(D96*Assumptions!$B$12/12,N96),M96)-D96*Illustrator!#REF! ->  | P96: =IF(A96=A95,P95,P95*(1+Assumptions!$C$17)) -> 1.503630259e+11 | Q96: =-K96*(Illustrator!$C$38)/12 ->  | R96: =-K96*(Illustrator!$C$39)/12 ->  | AM96: 2007-02-01 | AN96: carry on | AO96: 2007-02-01
A97: 8 | B97: 87 | C97: 2007-03-01 | E97: 0 | F97: =IF(A97=A96,F96,F96*(1+Illustrator!$C$23)) -> 0 | G97: =-SUMPRODUCT(Illustrator!$D$13:$D$17,Illustrator!$Q$13:$Q$17)/SUM(Illustrator!$D$13:$D$17)*F97 ->  | H97: =-E97*Illustrator!$I$18 -> 0 | I97: =-F97*Illustrator!$C$31 -> 0 | J97: =IF(A97=A96,J96,J96*(1+Illustrator!$C$25)) -> 0 | L97: =-K97*(Illustrator!$L$18+Illustrator!$C$40)/12 ->  | M97: =IF(A97=A96,M96,M96*(1+Assumptions!$C$16)) -> 0 | N97: =IF((SUM('Admin fee calc'!$B$9:$B$9)*(1+'RIY Cashflows'!$D$8)^('RIY Cashflows'!B97/12)+'RIY Cashflows'!D97)*Assumptions!$B$12>Assumptions!$B$17,Assumptions!$B$17*D97/(D97+SUM('Admin fee calc'!$B$9:$B$9)),Assumptions!$B$12*'RIY Cashflows'!D97) ->  | O97: =-MAX(MAX(D97*Assumptions!$B$12/12,N97),M97)-D97*Illustrator!#REF! ->  | P97: =IF(A97=A96,P96,P96*(1+Assumptions!$C$17)) -> 1.503630259e+11 | Q97: =-K97*(Illustrator!$C$38)/12 ->  | R97: =-K97*(Illustrator!$C$39)/12 ->  | AM97: 2007-03-01 | AN97: carry on | AO97: 2007-03-01
A98: 8 | B98: 88 | C98: 2007-04-01 | E98: 0 | F98: =IF(A98=A97,F97,F97*(1+Illustrator!$C$23)) -> 0 | G98: =-SUMPRODUCT(Illustrator!$D$13:$D$17,Illustrator!$Q$13:$Q$17)/SUM(Illustrator!$D$13:$D$17)*F98 ->  | H98: =-E98*Illustrator!$I$18 -> 0 | I98: =-F98*Illustrator!$C$31 -> 0 | J98: =IF(A98=A97,J97,J97*(1+Illustrator!$C$25)) -> 0 | L98: =-K98*(Illustrator!$L$18+Illustrator!$C$40)/12 ->  | M98: =IF(A98=A97,M97,M97*(1+Assumptions!$C$16)) -> 0 | N98: =IF((SUM('Admin fee calc'!$B$9:$B$9)*(1+'RIY Cashflows'!$D$8)^('RIY Cashflows'!B98/12)+'RIY Cashflows'!D98)*Assumptions!$B$12>Assumptions!$B$17,Assumptions!$B$17*D98/(D98+SUM('Admin fee calc'!$B$9:$B$9)),Assumptions!$B$12*'RIY Cashflows'!D98) ->  | O98: =-MAX(MAX(D98*Assumptions!$B$12/12,N98),M98)-D98*Illustrator!#REF! ->  | P98: =IF(A98=A97,P97,P97*(1+Assumptions!$C$17)) -> 1.503630259e+11 | Q98: =-K98*(Illustrator!$C$38)/12 ->  | R98: =-K98*(Illustrator!$C$39)/12 ->  | AM98: 2007-04-01 | AN98: carry on | AO98: 2007-04-01
A99: 8 | B99: 89 | C99: 2007-05-01 | E99: 0 | F99: =IF(A99=A98,F98,F98*(1+Illustrator!$C$23)) -> 0 | G99: =-SUMPRODUCT(Illustrator!$D$13:$D$17,Illustrator!$Q$13:$Q$17)/SUM(Illustrator!$D$13:$D$17)*F99 ->  | H99: =-E99*Illustrator!$I$18 -> 0 | I99: =-F99*Illustrator!$C$31 -> 0 | J99: =IF(A99=A98,J98,J98*(1+Illustrator!$C$25)) -> 0 | L99: =-K99*(Illustrator!$L$18+Illustrator!$C$40)/12 ->  | M99: =IF(A99=A98,M98,M98*(1+Assumptions!$C$16)) -> 0 | N99: =IF((SUM('Admin fee calc'!$B$9:$B$9)*(1+'RIY Cashflows'!$D$8)^('RIY Cashflows'!B99/12)+'RIY Cashflows'!D99)*Assumptions!$B$12>Assumptions!$B$17,Assumptions!$B$17*D99/(D99+SUM('Admin fee calc'!$B$9:$B$9)),Assumptions!$B$12*'RIY Cashflows'!D99) ->  | O99: =-MAX(MAX(D99*Assumptions!$B$12/12,N99),M99)-D99*Illustrator!#REF! ->  | P99: =IF(A99=A98,P98,P98*(1+Assumptions!$C$17)) -> 1.503630259e+11 | Q99: =-K99*(Illustrator!$C$38)/12 ->  | R99: =-K99*(Illustrator!$C$39)/12 ->  | AM99: 2007-05-01 | AN99: carry on | AO99: 2007-05-01
A100: 8 | B100: 90 | C100: 2007-06-01 | E100: 0 | F100: =IF(A100=A99,F99,F99*(1+Illustrator!$C$23)) -> 0 | G100: =-SUMPRODUCT(Illustrator!$D$13:$D$17,Illustrator!$Q$13:$Q$17)/SUM(Illustrator!$D$13:$D$17)*F100 ->  | H100: =-E100*Illustrator!$I$18 -> 0 | I100: =-F100*Illustrator!$C$31 -> 0 | J100: =IF(A100=A99,J99,J99*(1+Illustrator!$C$25)) -> 0 | L100: =-K100*(Illustrator!$L$18+Illustrator!$C$40)/12 ->  | M100: =IF(A100=A99,M99,M99*(1+Assumptions!$C$16)) -> 0 | N100: =IF((SUM('Admin fee calc'!$B$9:$B$9)*(1+'RIY Cashflows'!$D$8)^('RIY Cashflows'!B100/12)+'RIY Cashflows'!D100)*Assumptions!$B$12>Assumptions!$B$17,Assumptions!$B$17*D100/(D100+SUM('Admin fee calc'!$B$9:$B$9)),Assumptions!$B$12*'RIY Cashflows'!D100) ->  | O100: =-MAX(MAX(D100*Assumptions!$B$12/12,N100),M100)-D100*Illustrator!#REF! ->  | P100: =IF(A100=A99,P99,P99*(1+Assumptions!$C$17)) -> 1.503630259e+11 | Q100: =-K100*(Illustrator!$C$38)/12 ->  | R100: =-K100*(Illustrator!$C$39)/12 ->  | AM100: 2007-06-01 | AN100: carry on | AO100: 2007-06-01
A101: 8 | B101: 91 | C101: 2007-07-01 | E101: 0 | F101: =IF(A101=A100,F100,F100*(1+Illustrator!$C$23)) -> 0 | G101: =-SUMPRODUCT(Illustrator!$D$13:$D$17,Illustrator!$Q$13:$Q$17)/SUM(Illustrator!$D$13:$D$17)*F101 ->  | H101: =-E101*Illustrator!$I$18 -> 0 | I101: =-F101*Illustrator!$C$31 -> 0 | J101: =IF(A101=A100,J100,J100*(1+Illustrator!$C$25)) -> 0 | L101: =-K101*(Illustrator!$L$18+Illustrator!$C$40)/12 ->  | M101: =IF(A101=A100,M100,M100*(1+Assumptions!$C$16)) -> 0 | N101: =IF((SUM('Admin fee calc'!$B$9:$B$9)*(1+'RIY Cashflows'!$D$8)^('RIY Cashflows'!B101/12)+'RIY Cashflows'!D101)*Assumptions!$B$12>Assumptions!$B$17,Assumptions!$B$17*D101/(D101+SUM('Admin fee calc'!$B$9:$B$9)),Assumptions!$B$12*'RIY Cashflows'!D101) ->  | O101: =-MAX(MAX(D101*Assumptions!$B$12/12,N101),M101)-D101*Illustrator!#REF! ->  | P101: =IF(A101=A100,P100,P100*(1+Assumptions!$C$17)) -> 1.503630259e+11 | Q101: =-K101*(Illustrator!$C$38)/12 ->  | R101: =-K101*(Illustrator!$C$39)/12 ->  | AM101: 2007-07-01 | AN101: carry on | AO101: 2007-07-01
A102: 8 | B102: 92 | C102: 2007-08-01 | E102: 0 | F102: =IF(A102=A101,F101,F101*(1+Illustrator!$C$23)) -> 0 | G102: =-SUMPRODUCT(Illustrator!$D$13:$D$17,Illustrator!$Q$13:$Q$17)/SUM(Illustrator!$D$13:$D$17)*F102 ->  | H102: =-E102*Illustrator!$I$18 -> 0 | I102: =-F102*Illustrator!$C$31 -> 0 | J102: =IF(A102=A101,J101,J101*(1+Illustrator!$C$25)) -> 0 | L102: =-K102*(Illustrator!$L$18+Illustrator!$C$40)/12 ->  | M102: =IF(A102=A101,M101,M101*(1+Assumptions!$C$16)) -> 0 | N102: =IF((SUM('Admin fee calc'!$B$9:$B$9)*(1+'RIY Cashflows'!$D$8)^('RIY Cashflows'!B102/12)+'RIY Cashflows'!D102)*Assumptions!$B$12>Assumptions!$B$17,Assumptions!$B$17*D102/(D102+SUM('Admin fee calc'!$B$9:$B$9)),Assumptions!$B$12*'RIY Cashflows'!D102) ->  | O102: =-MAX(MAX(D102*Assumptions!$B$12/12,N102),M102)-D102*Illustrator!#REF! ->  | P102: =IF(A102=A101,P101,P101*(1+Assumptions!$C$17)) -> 1.503630259e+11 | Q102: =-K102*(Illustrator!$C$38)/12 ->  | R102: =-K102*(Illustrator!$C$39)/12 ->  | AM102: 2007-08-01 | AN102: carry on | AO102: 2007-08-01
A103: 8 | B103: 93 | C103: 2007-09-01 | E103: 0 | F103: =IF(A103=A102,F102,F102*(1+Illustrator!$C$23)) -> 0 | G103: =-SUMPRODUCT(Illustrator!$D$13:$D$17,Illustrator!$Q$13:$Q$17)/SUM(Illustrator!$D$13:$D$17)*F103 ->  | H103: =-E103*Illustrator!$I$18 -> 0 | I103: =-F103*Illustrator!$C$31 -> 0 | J103: =IF(A103=A102,J102,J102*(1+Illustrator!$C$25)) -> 0 | L103: =-K103*(Illustrator!$L$18+Illustrator!$C$40)/12 ->  | M103: =IF(A103=A102,M102,M102*(1+Assumptions!$C$16)) -> 0 | N103: =IF((SUM('Admin fee calc'!$B$9:$B$9)*(1+'RIY Cashflows'!$D$8)^('RIY Cashflows'!B103/12)+'RIY Cashflows'!D103)*Assumptions!$B$12>Assumptions!$B$17,Assumptions!$B$17*D103/(D103+SUM('Admin fee calc'!$B$9:$B$9)),Assumptions!$B$12*'RIY Cashflows'!D103) ->  | O103: =-MAX(MAX(D103*Assumptions!$B$12/12,N103),M103)-D103*Illustrator!#REF! ->  | P103: =IF(A103=A102,P102,P102*(1+Assumptions!$C$17)) -> 1.503630259e+11 | Q103: =-K103*(Illustrator!$C$38)/12 ->  | R103: =-K103*(Illustrator!$C$39)/12 ->  | AM103: 2007-09-01 | AN103: carry on | AO103: 2007-09-01
A104: 8 | B104: 94 | C104: 2007-10-01 | E104: 0 | F104: =IF(A104=A103,F103,F103*(1+Illustrator!$C$23)) -> 0 | G104: =-SUMPRODUCT(Illustrator!$D$13:$D$17,Illustrator!$Q$13:$Q$17)/SUM(Illustrator!$D$13:$D$17)*F104 ->  | H104: =-E104*Illustrator!$I$18 -> 0 | I104: =-F104*Illustrator!$C$31 -> 0 | J104: =IF(A104=A103,J103,J103*(1+Illustrator!$C$25)) -> 0 | L104: =-K104*(Illustrator!$L$18+Illustrator!$C$40)/12 ->  | M104: =IF(A104=A103,M103,M103*(1+Assumptions!$C$16)) -> 0 | N104: =IF((SUM('Admin fee calc'!$B$9:$B$9)*(1+'RIY Cashflows'!$D$8)^('RIY Cashflows'!B104/12)+'RIY Cashflows'!D104)*Assumptions!$B$12>Assumptions!$B$17,Assumptions!$B$17*D104/(D104+SUM('Admin fee calc'!$B$9:$B$9)),Assumptions!$B$12*'RIY Cashflows'!D104) ->  | O104: =-MAX(MAX(D104*Assumptions!$B$12/12,N104),M104)-D104*Illustrator!#REF! ->  | P104: =IF(A104=A103,P103,P103*(1+Assumptions!$C$17)) -> 1.503630259e+11 | Q104: =-K104*(Illustrator!$C$38)/12 ->  | R104: =-K104*(Illustrator!$C$39)/12 ->  | AM104: 2007-10-01 | AN104: carry on | AO104: 2007-10-01
A105: 8 | B105: 95 | C105: 2007-11-01 | E105: 0 | F105: =IF(A105=A104,F104,F104*(1+Illustrator!$C$23)) -> 0 | G105: =-SUMPRODUCT(Illustrator!$D$13:$D$17,Illustrator!$Q$13:$Q$17)/SUM(Illustrator!$D$13:$D$17)*F105 ->  | H105: =-E105*Illustrator!$I$18 -> 0 | I105: =-F105*Illustrator!$C$31 -> 0 | J105: =IF(A105=A104,J104,J104*(1+Illustrator!$C$25)) -> 0 | L105: =-K105*(Illustrator!$L$18+Illustrator!$C$40)/12 ->  | M105: =IF(A105=A104,M104,M104*(1+Assumptions!$C$16)) -> 0 | N105: =IF((SUM('Admin fee calc'!$B$9:$B$9)*(1+'RIY Cashflows'!$D$8)^('RIY Cashflows'!B105/12)+'RIY Cashflows'!D105)*Assumptions!$B$12>Assumptions!$B$17,Assumptions!$B$17*D105/(D105+SUM('Admin fee calc'!$B$9:$B$9)),Assumptions!$B$12*'RIY Cashflows'!D105) ->  | O105: =-MAX(MAX(D105*Assumptions!$B$12/12,N105),M105)-D105*Illustrator!#REF! ->  | P105: =IF(A105=A104,P104,P104*(1+Assumptions!$C$17)) -> 1.503630259e+11 | Q105: =-K105*(Illustrator!$C$38)/12 ->  | R105: =-K105*(Illustrator!$C$39)/12 ->  | AM105: 2007-11-01 | AN105: carry on | AO105: 2007-11-01
A106: 8 | B106: 96 | C106: 2007-12-01 | E106: 0 | F106: =IF(A106=A105,F105,F105*(1+Illustrator!$C$23)) -> 0 | G106: =-SUMPRODUCT(Illustrator!$D$13:$D$17,Illustrator!$Q$13:$Q$17)/SUM(Illustrator!$D$13:$D$17)*F106 ->  | H106: =-E106*Illustrator!$I$18 -> 0 | I106: =-F106*Illustrator!$C$31 -> 0 | J106: =IF(A106=A105,J105,J105*(1+Illustrator!$C$25)) -> 0 | L106: =-K106*(Illustrator!$L$18+Illustrator!$C$40)/12 ->  | M106: =IF(A106=A105,M105,M105*(1+Assumptions!$C$16)) -> 0 | N106: =IF((SUM('Admin fee calc'!$B$9:$B$9)*(1+'RIY Cashflows'!$D$8)^('RIY Cashflows'!B106/12)+'RIY Cashflows'!D106)*Assumptions!$B$12>Assumptions!$B$17,Assumptions!$B$17*D106/(D106+SUM('Admin fee calc'!$B$9:$B$9)),Assumptions!$B$12*'RIY Cashflows'!D106) ->  | O106: =-MAX(MAX(D106*Assumptions!$B$12/12,N106),M106)-D106*Illustrator!#REF! ->  | P106: =IF(A106=A105,P105,P105*(1+Assumptions!$C$17)) -> 1.503630259e+11 | Q106: =-K106*(Illustrator!$C$38)/12 ->  | R106: =-K106*(Illustrator!$C$39)/12 ->  | AM106: 2007-12-01 | AN106: carry on | AO106: 2007-12-01
A107: 9 | B107: 97 | C107: 2008-01-01 | E107: 0 | F107: =IF(A107=A106,F106,F106*(1+Illustrator!$C$23)) -> 0 | G107: =-SUMPRODUCT(Illustrator!$D$13:$D$17,Illustrator!$Q$13:$Q$17)/SUM(Illustrator!$D$13:$D$17)*F107 ->  | H107: =-E107*Illustrator!$I$18 -> 0 | I107: =-F107*Illustrator!$C$31 -> 0 | J107: =IF(A107=A106,J106,J106*(1+Illustrator!$C$25)) -> 0 | L107: =-K107*(Illustrator!$L$18+Illustrator!$C$40)/12 ->  | M107: =IF(A107=A106,M106,M106*(1+Assumptions!$C$16)) -> 0 | N107: =IF((SUM('Admin fee calc'!$B$9:$B$9)*(1+'RIY Cashflows'!$D$8)^('RIY Cashflows'!B107/12)+'RIY Cashflows'!D107)*Assumptions!$B$12>Assumptions!$B$17,Assumptions!$B$17*D107/(D107+SUM('Admin fee calc'!$B$9:$B$9)),Assumptions!$B$12*'RIY Cashflows'!D107) ->  | O107: =-MAX(MAX(D107*Assumptions!$B$12/12,N107),M107)-D107*Illustrator!#REF! ->  | P107: =IF(A107=A106,P106,P106*(1+Assumptions!$C$17)) -> 1.593848075e+11 | Q107: =-K107*(Illustrator!$C$38)/12 ->  | R107: =-K107*(Illustrator!$C$39)/12 ->  | AM107: 2008-01-01 | AN107: carry on | AO107: 2008-01-01
A108: 9 | B108: 98 | C108: 2008-02-01 | E108: 0 | F108: =IF(A108=A107,F107,F107*(1+Illustrator!$C$23)) -> 0 | G108: =-SUMPRODUCT(Illustrator!$D$13:$D$17,Illustrator!$Q$13:$Q$17)/SUM(Illustrator!$D$13:$D$17)*F108 ->  | H108: =-E108*Illustrator!$I$18 -> 0 | I108: =-F108*Illustrator!$C$31 -> 0 | J108: =IF(A108=A107,J107,J107*(1+Illustrator!$C$25)) -> 0 | L108: =-K108*(Illustrator!$L$18+Illustrator!$C$40)/12 ->  | M108: =IF(A108=A107,M107,M107*(1+Assumptions!$C$16)) -> 0 | N108: =IF((SUM('Admin fee calc'!$B$9:$B$9)*(1+'RIY Cashflows'!$D$8)^('RIY Cashflows'!B108/12)+'RIY Cashflows'!D108)*Assumptions!$B$12>Assumptions!$B$17,Assumptions!$B$17*D108/(D108+SUM('Admin fee calc'!$B$9:$B$9)),Assumptions!$B$12*'RIY Cashflows'!D108) ->  | O108: =-MAX(MAX(D108*Assumptions!$B$12/12,N108),M108)-D108*Illustrator!#REF! ->  | P108: =IF(A108=A107,P107,P107*(1+Assumptions!$C$17)) -> 1.593848075e+11 | Q108: =-K108*(Illustrator!$C$38)/12 ->  | R108: =-K108*(Illustrator!$C$39)/12 ->  | AM108: 2008-02-01 | AN108: carry on | AO108: 2008-02-01 | AP108: =$L107+$R107+SUM($E108:$J108) ->  | AQ108: =$L107+$R107+SUM($E108:$J108)-$H108-$I108-$R107 ->  | AR108: =$L107+$R107+SUM($E108:$J108)-$G108-$Q108 ->  | AS108: =$L107+$R107+SUM($E108:$J108) -> 
A109: 9 | B109: 99 | C109: 2008-03-01 | E109: 0 | F109: =IF(A109=A108,F108,F108*(1+Illustrator!$C$23)) -> 0 | G109: =-SUMPRODUCT(Illustrator!$D$13:$D$17,Illustrator!$Q$13:$Q$17)/SUM(Illustrator!$D$13:$D$17)*F109 ->  | H109: =-E109*Illustrator!$I$18 -> 0 | I109: =-F109*Illustrator!$C$31 -> 0 | J109: =IF(A109=A108,J108,J108*(1+Illustrator!$C$25)) -> 0 | L109: =-K109*(Illustrator!$L$18+Illustrator!$C$40)/12 ->  | M109: =IF(A109=A108,M108,M108*(1+Assumptions!$C$16)) -> 0 | N109: =IF((SUM('Admin fee calc'!$B$9:$B$9)*(1+'RIY Cashflows'!$D$8)^('RIY Cashflows'!B109/12)+'RIY Cashflows'!D109)*Assumptions!$B$12>Assumptions!$B$17,Assumptions!$B$17*D109/(D109+SUM('Admin fee calc'!$B$9:$B$9)),Assumptions!$B$12*'RIY Cashflows'!D109) ->  | O109: =-MAX(MAX(D109*Assumptions!$B$12/12,N109),M109)-D109*Illustrator!#REF! ->  | P109: =IF(A109=A108,P108,P108*(1+Assumptions!$C$17)) -> 1.593848075e+11 | Q109: =-K109*(Illustrator!$C$38)/12 ->  | R109: =-K109*(Illustrator!$C$39)/12 ->  | AM109: 2008-03-01 | AN109: carry on | AO109: 2008-03-01
A110: 9 | B110: 100 | C110: 2008-04-01 | E110: 0 | F110: =IF(A110=A109,F109,F109*(1+Illustrator!$C$23)) -> 0 | G110: =-SUMPRODUCT(Illustrator!$D$13:$D$17,Illustrator!$Q$13:$Q$17)/SUM(Illustrator!$D$13:$D$17)*F110 ->  | H110: =-E110*Illustrator!$I$18 -> 0 | I110: =-F110*Illustrator!$C$31 -> 0 | J110: =IF(A110=A109,J109,J109*(1+Illustrator!$C$25)) -> 0 | L110: =-K110*(Illustrator!$L$18+Illustrator!$C$40)/12 ->  | M110: =IF(A110=A109,M109,M109*(1+Assumptions!$C$16)) -> 0 | N110: =IF((SUM('Admin fee calc'!$B$9:$B$9)*(1+'RIY Cashflows'!$D$8)^('RIY Cashflows'!B110/12)+'RIY Cashflows'!D110)*Assumptions!$B$12>Assumptions!$B$17,Assumptions!$B$17*D110/(D110+SUM('Admin fee calc'!$B$9:$B$9)),Assumptions!$B$12*'RIY Cashflows'!D110) ->  | O110: =-MAX(MAX(D110*Assumptions!$B$12/12,N110),M110)-D110*Illustrator!#REF! ->  | P110: =IF(A110=A109,P109,P109*(1+Assumptions!$C$17)) -> 1.593848075e+11 | Q110: =-K110*(Illustrator!$C$38)/12 ->  | R110: =-K110*(Illustrator!$C$39)/12 ->  | AM110: 2008-04-01 | AN110: carry on | AO110: 2008-04-01
A111: 9 | B111: 101 | C111: 2008-05-01 | E111: 0 | F111: =IF(A111=A110,F110,F110*(1+Illustrator!$C$23)) -> 0 | G111: =-SUMPRODUCT(Illustrator!$D$13:$D$17,Illustrator!$Q$13:$Q$17)/SUM(Illustrator!$D$13:$D$17)*F111 ->  | H111: =-E111*Illustrator!$I$18 -> 0 | I111: =-F111*Illustrator!$C$31 -> 0 | J111: =IF(A111=A110,J110,J110*(1+Illustrator!$C$25)) -> 0 | L111: =-K111*(Illustrator!$L$18+Illustrator!$C$40)/12 ->  | M111: =IF(A111=A110,M110,M110*(1+Assumptions!$C$16)) -> 0 | N111: =IF((SUM('Admin fee calc'!$B$9:$B$9)*(1+'RIY Cashflows'!$D$8)^('RIY Cashflows'!B111/12)+'RIY Cashflows'!D111)*Assumptions!$B$12>Assumptions!$B$17,Assumptions!$B$17*D111/(D111+SUM('Admin fee calc'!$B$9:$B$9)),Assumptions!$B$12*'RIY Cashflows'!D111) ->  | O111: =-MAX(MAX(D111*Assumptions!$B$12/12,N111),M111)-D111*Illustrator!#REF! ->  | P111: =IF(A111=A110,P110,P110*(1+Assumptions!$C$17)) -> 1.593848075e+11 | Q111: =-K111*(Illustrator!$C$38)/12 ->  | R111: =-K111*(Illustrator!$C$39)/12 ->  | AM111: 2008-05-01 | AN111: carry on | AO111: 2008-05-01
A112: 9 | B112: 102 | C112: 2008-06-01 | E112: 0 | F112: =IF(A112=A111,F111,F111*(1+Illustrator!$C$23)) -> 0 | G112: =-SUMPRODUCT(Illustrator!$D$13:$D$17,Illustrator!$Q$13:$Q$17)/SUM(Illustrator!$D$13:$D$17)*F112 ->  | H112: =-E112*Illustrator!$I$18 -> 0 | I112: =-F112*Illustrator!$C$31 -> 0 | J112: =IF(A112=A111,J111,J111*(1+Illustrator!$C$25)) -> 0 | L112: =-K112*(Illustrator!$L$18+Illustrator!$C$40)/12 ->  | M112: =IF(A112=A111,M111,M111*(1+Assumptions!$C$16)) -> 0 | N112: =IF((SUM('Admin fee calc'!$B$9:$B$9)*(1+'RIY Cashflows'!$D$8)^('RIY Cashflows'!B112/12)+'RIY Cashflows'!D112)*Assumptions!$B$12>Assumptions!$B$17,Assumptions!$B$17*D112/(D112+SUM('Admin fee calc'!$B$9:$B$9)),Assumptions!$B$12*'RIY Cashflows'!D112) ->  | O112: =-MAX(MAX(D112*Assumptions!$B$12/12,N112),M112)-D112*Illustrator!#REF! ->  | P112: =IF(A112=A111,P111,P111*(1+Assumptions!$C$17)) -> 1.593848075e+11 | Q112: =-K112*(Illustrator!$C$38)/12 ->  | R112: =-K112*(Illustrator!$C$39)/12 ->  | AM112: 2008-06-01 | AN112: carry on | AO112: 2008-06-01
A113: 9 | B113: 103 | C113: 2008-07-01 | E113: 0 | F113: =IF(A113=A112,F112,F112*(1+Illustrator!$C$23)) -> 0 | G113: =-SUMPRODUCT(Illustrator!$D$13:$D$17,Illustrator!$Q$13:$Q$17)/SUM(Illustrator!$D$13:$D$17)*F113 ->  | H113: =-E113*Illustrator!$I$18 -> 0 | I113: =-F113*Illustrator!$C$31 -> 0 | J113: =IF(A113=A112,J112,J112*(1+Illustrator!$C$25)) -> 0 | L113: =-K113*(Illustrator!$L$18+Illustrator!$C$40)/12 ->  | M113: =IF(A113=A112,M112,M112*(1+Assumptions!$C$16)) -> 0 | N113: =IF((SUM('Admin fee calc'!$B$9:$B$9)*(1+'RIY Cashflows'!$D$8)^('RIY Cashflows'!B113/12)+'RIY Cashflows'!D113)*Assumptions!$B$12>Assumptions!$B$17,Assumptions!$B$17*D113/(D113+SUM('Admin fee calc'!$B$9:$B$9)),Assumptions!$B$12*'RIY Cashflows'!D113) ->  | O113: =-MAX(MAX(D113*Assumptions!$B$12/12,N113),M113)-D113*Illustrator!#REF! ->  | P113: =IF(A113=A112,P112,P112*(1+Assumptions!$C$17)) -> 1.593848075e+11 | Q113: =-K113*(Illustrator!$C$38)/12 ->  | R113: =-K113*(Illustrator!$C$39)/12 ->  | AM113: 2008-07-01 | AN113: carry on | AO113: 2008-07-01
A114: 9 | B114: 104 | C114: 2008-08-01 | E114: 0 | F114: =IF(A114=A113,F113,F113*(1+Illustrator!$C$23)) -> 0 | G114: =-SUMPRODUCT(Illustrator!$D$13:$D$17,Illustrator!$Q$13:$Q$17)/SUM(Illustrator!$D$13:$D$17)*F114 ->  | H114: =-E114*Illustrator!$I$18 -> 0 | I114: =-F114*Illustrator!$C$31 -> 0 | J114: =IF(A114=A113,J113,J113*(1+Illustrator!$C$25)) -> 0 | L114: =-K114*(Illustrator!$L$18+Illustrator!$C$40)/12 ->  | M114: =IF(A114=A113,M113,M113*(1+Assumptions!$C$16)) -> 0 | N114: =IF((SUM('Admin fee calc'!$B$9:$B$9)*(1+'RIY Cashflows'!$D$8)^('RIY Cashflows'!B114/12)+'RIY Cashflows'!D114)*Assumptions!$B$12>Assumptions!$B$17,Assumptions!$B$17*D114/(D114+SUM('Admin fee calc'!$B$9:$B$9)),Assumptions!$B$12*'RIY Cashflows'!D114) ->  | O114: =-MAX(MAX(D114*Assumptions!$B$12/12,N114),M114)-D114*Illustrator!#REF! ->  | P114: =IF(A114=A113,P113,P113*(1+Assumptions!$C$17)) -> 1.593848075e+11 | Q114: =-K114*(Illustrator!$C$38)/12 ->  | R114: =-K114*(Illustrator!$C$39)/12 ->  | AM114: 2008-08-01 | AN114: carry on | AO114: 2008-08-01
A115: 9 | B115: 105 | C115: 2008-09-01 | E115: 0 | F115: =IF(A115=A114,F114,F114*(1+Illustrator!$C$23)) -> 0 | G115: =-SUMPRODUCT(Illustrator!$D$13:$D$17,Illustrator!$Q$13:$Q$17)/SUM(Illustrator!$D$13:$D$17)*F115 ->  | H115: =-E115*Illustrator!$I$18 -> 0 | I115: =-F115*Illustrator!$C$31 -> 0 | J115: =IF(A115=A114,J114,J114*(1+Illustrator!$C$25)) -> 0 | L115: =-K115*(Illustrator!$L$18+Illustrator!$C$40)/12 ->  | M115: =IF(A115=A114,M114,M114*(1+Assumptions!$C$16)) -> 0 | N115: =IF((SUM('Admin fee calc'!$B$9:$B$9)*(1+'RIY Cashflows'!$D$8)^('RIY Cashflows'!B115/12)+'RIY Cashflows'!D115)*Assumptions!$B$12>Assumptions!$B$17,Assumptions!$B$17*D115/(D115+SUM('Admin fee calc'!$B$9:$B$9)),Assumptions!$B$12*'RIY Cashflows'!D115) ->  | O115: =-MAX(MAX(D115*Assumptions!$B$12/12,N115),M115)-D115*Illustrator!#REF! ->  | P115: =IF(A115=A114,P114,P114*(1+Assumptions!$C$17)) -> 1.593848075e+11 | Q115: =-K115*(Illustrator!$C$38)/12 ->  | R115: =-K115*(Illustrator!$C$39)/12 ->  | AM115: 2008-09-01 | AN115: carry on | AO115: 2008-09-01
A116: 9 | B116: 106 | C116: 2008-10-01 | E116: 0 | F116: =IF(A116=A115,F115,F115*(1+Illustrator!$C$23)) -> 0 | G116: =-SUMPRODUCT(Illustrator!$D$13:$D$17,Illustrator!$Q$13:$Q$17)/SUM(Illustrator!$D$13:$D$17)*F116 ->  | H116: =-E116*Illustrator!$I$18 -> 0 | I116: =-F116*Illustrator!$C$31 -> 0 | J116: =IF(A116=A115,J115,J115*(1+Illustrator!$C$25)) -> 0 | L116: =-K116*(Illustrator!$L$18+Illustrator!$C$40)/12 ->  | M116: =IF(A116=A115,M115,M115*(1+Assumptions!$C$16)) -> 0 | N116: =IF((SUM('Admin fee calc'!$B$9:$B$9)*(1+'RIY Cashflows'!$D$8)^('RIY Cashflows'!B116/12)+'RIY Cashflows'!D116)*Assumptions!$B$12>Assumptions!$B$17,Assumptions!$B$17*D116/(D116+SUM('Admin fee calc'!$B$9:$B$9)),Assumptions!$B$12*'RIY Cashflows'!D116) ->  | O116: =-MAX(MAX(D116*Assumptions!$B$12/12,N116),M116)-D116*Illustrator!#REF! ->  | P116: =IF(A116=A115,P115,P115*(1+Assumptions!$C$17)) -> 1.593848075e+11 | Q116: =-K116*(Illustrator!$C$38)/12 ->  | R116: =-K116*(Illustrator!$C$39)/12 ->  | AM116: 2008-10-01 | AN116: carry on | AO116: 2008-10-01
A117: 9 | B117: 107 | C117: 2008-11-01 | E117: 0 | F117: =IF(A117=A116,F116,F116*(1+Illustrator!$C$23)) -> 0 | G117: =-SUMPRODUCT(Illustrator!$D$13:$D$17,Illustrator!$Q$13:$Q$17)/SUM(Illustrator!$D$13:$D$17)*F117 ->  | H117: =-E117*Illustrator!$I$18 -> 0 | I117: =-F117*Illustrator!$C$31 -> 0 | J117: =IF(A117=A116,J116,J116*(1+Illustrator!$C$25)) -> 0 | L117: =-K117*(Illustrator!$L$18+Illustrator!$C$40)/12 ->  | M117: =IF(A117=A116,M116,M116*(1+Assumptions!$C$16)) -> 0 | N117: =IF((SUM('Admin fee calc'!$B$9:$B$9)*(1+'RIY Cashflows'!$D$8)^('RIY Cashflows'!B117/12)+'RIY Cashflows'!D117)*Assumptions!$B$12>Assumptions!$B$17,Assumptions!$B$17*D117/(D117+SUM('Admin fee calc'!$B$9:$B$9)),Assumptions!$B$12*'RIY Cashflows'!D117) ->  | O117: =-MAX(MAX(D117*Assumptions!$B$12/12,N117),M117)-D117*Illustrator!#REF! ->  | P117: =IF(A117=A116,P116,P116*(1+Assumptions!$C$17)) -> 1.593848075e+11 | Q117: =-K117*(Illustrator!$C$38)/12 ->  | R117: =-K117*(Illustrator!$C$39)/12 ->  | AM117: 2008-11-01 | AN117: carry on | AO117: 2008-11-01
A118: 9 | B118: 108 | C118: 2008-12-01 | E118: 0 | F118: =IF(A118=A117,F117,F117*(1+Illustrator!$C$23)) -> 0 | G118: =-SUMPRODUCT(Illustrator!$D$13:$D$17,Illustrator!$Q$13:$Q$17)/SUM(Illustrator!$D$13:$D$17)*F118 ->  | H118: =-E118*Illustrator!$I$18 -> 0 | I118: =-F118*Illustrator!$C$31 -> 0 | J118: =IF(A118=A117,J117,J117*(1+Illustrator!$C$25)) -> 0 | L118: =-K118*(Illustrator!$L$18+Illustrator!$C$40)/12 ->  | M118: =IF(A118=A117,M117,M117*(1+Assumptions!$C$16)) -> 0 | N118: =IF((SUM('Admin fee calc'!$B$9:$B$9)*(1+'RIY Cashflows'!$D$8)^('RIY Cashflows'!B118/12)+'RIY Cashflows'!D118)*Assumptions!$B$12>Assumptions!$B$17,Assumptions!$B$17*D118/(D118+SUM('Admin fee calc'!$B$9:$B$9)),Assumptions!$B$12*'RIY Cashflows'!D118) ->  | O118: =-MAX(MAX(D118*Assumptions!$B$12/12,N118),M118)-D118*Illustrator!#REF! ->  | P118: =IF(A118=A117,P117,P117*(1+Assumptions!$C$17)) -> 1.593848075e+11 | Q118: =-K118*(Illustrator!$C$38)/12 ->  | R118: =-K118*(Illustrator!$C$39)/12 ->  | AM118: 2008-12-01 | AN118: carry on | AO118: 2008-12-01
A119: 10 | B119: 109 | C119: 2009-01-01 | E119: 0 | F119: =IF(A119=A118,F118,F118*(1+Illustrator!$C$23)) -> 0 | G119: =-SUMPRODUCT(Illustrator!$D$13:$D$17,Illustrator!$Q$13:$Q$17)/SUM(Illustrator!$D$13:$D$17)*F119 ->  | H119: =-E119*Illustrator!$I$18 -> 0 | I119: =-F119*Illustrator!$C$31 -> 0 | J119: =IF(A119=A118,J118,J118*(1+Illustrator!$C$25)) -> 0 | L119: =-K119*(Illustrator!$L$18+Illustrator!$C$40)/12 ->  | M119: =IF(A119=A118,M118,M118*(1+Assumptions!$C$16)) -> 0 | N119: =IF((SUM('Admin fee calc'!$B$9:$B$9)*(1+'RIY Cashflows'!$D$8)^('RIY Cashflows'!B119/12)+'RIY Cashflows'!D119)*Assumptions!$B$12>Assumptions!$B$17,Assumptions!$B$17*D119/(D119+SUM('Admin fee calc'!$B$9:$B$9)),Assumptions!$B$12*'RIY Cashflows'!D119) ->  | O119: =-MAX(MAX(D119*Assumptions!$B$12/12,N119),M119)-D119*Illustrator!#REF! ->  | P119: =IF(A119=A118,P118,P118*(1+Assumptions!$C$17)) -> 1.689478959e+11 | Q119: =-K119*(Illustrator!$C$38)/12 ->  | R119: =-K119*(Illustrator!$C$39)/12 ->  | AM119: 2009-01-01 | AN119: carry on | AO119: 2009-01-01
A120: 10 | B120: 110 | C120: 2009-02-01 | E120: 0 | F120: =IF(A120=A119,F119,F119*(1+Illustrator!$C$23)) -> 0 | G120: =-SUMPRODUCT(Illustrator!$D$13:$D$17,Illustrator!$Q$13:$Q$17)/SUM(Illustrator!$D$13:$D$17)*F120 ->  | H120: =-E120*Illustrator!$I$18 -> 0 | I120: =-F120*Illustrator!$C$31 -> 0 | J120: =IF(A120=A119,J119,J119*(1+Illustrator!$C$25)) -> 0 | L120: =-K120*(Illustrator!$L$18+Illustrator!$C$40)/12 ->  | M120: =IF(A120=A119,M119,M119*(1+Assumptions!$C$16)) -> 0 | N120: =IF((SUM('Admin fee calc'!$B$9:$B$9)*(1+'RIY Cashflows'!$D$8)^('RIY Cashflows'!B120/12)+'RIY Cashflows'!D120)*Assumptions!$B$12>Assumptions!$B$17,Assumptions!$B$17*D120/(D120+SUM('Admin fee calc'!$B$9:$B$9)),Assumptions!$B$12*'RIY Cashflows'!D120) ->  | O120: =-MAX(MAX(D120*Assumptions!$B$12/12,N120),M120)-D120*Illustrator!#REF! ->  | P120: =IF(A120=A119,P119,P119*(1+Assumptions!$C$17)) -> 1.689478959e+11 | Q120: =-K120*(Illustrator!$C$38)/12 ->  | R120: =-K120*(Illustrator!$C$39)/12 ->  | AM120: 2009-02-01 | AN120: carry on | AO120: 2009-02-01
A121: 10 | B121: 111 | C121: 2009-03-01 | E121: 0 | F121: =IF(A121=A120,F120,F120*(1+Illustrator!$C$23)) -> 0 | G121: =-SUMPRODUCT(Illustrator!$D$13:$D$17,Illustrator!$Q$13:$Q$17)/SUM(Illustrator!$D$13:$D$17)*F121 ->  | H121: =-E121*Illustrator!$I$18 -> 0 | I121: =-F121*Illustrator!$C$31 -> 0 | J121: =IF(A121=A120,J120,J120*(1+Illustrator!$C$25)) -> 0 | L121: =-K121*(Illustrator!$L$18+Illustrator!$C$40)/12 ->  | M121: =IF(A121=A120,M120,M120*(1+Assumptions!$C$16)) -> 0 | N121: =IF((SUM('Admin fee calc'!$B$9:$B$9)*(1+'RIY Cashflows'!$D$8)^('RIY Cashflows'!B121/12)+'RIY Cashflows'!D121)*Assumptions!$B$12>Assumptions!$B$17,Assumptions!$B$17*D121/(D121+SUM('Admin fee calc'!$B$9:$B$9)),Assumptions!$B$12*'RIY Cashflows'!D121) ->  | O121: =-MAX(MAX(D121*Assumptions!$B$12/12,N121),M121)-D121*Illustrator!#REF! ->  | P121: =IF(A121=A120,P120,P120*(1+Assumptions!$C$17)) -> 1.689478959e+11 | Q121: =-K121*(Illustrator!$C$38)/12 ->  | R121: =-K121*(Illustrator!$C$39)/12 ->  | AM121: 2009-03-01 | AN121: carry on | AO121: 2009-03-01
A122: 10 | B122: 112 | C122: 2009-04-01 | E122: 0 | F122: =IF(A122=A121,F121,F121*(1+Illustrator!$C$23)) -> 0 | G122: =-SUMPRODUCT(Illustrator!$D$13:$D$17,Illustrator!$Q$13:$Q$17)/SUM(Illustrator!$D$13:$D$17)*F122 ->  | H122: =-E122*Illustrator!$I$18 -> 0 | I122: =-F122*Illustrator!$C$31 -> 0 | J122: =IF(A122=A121,J121,J121*(1+Illustrator!$C$25)) -> 0 | L122: =-K122*(Illustrator!$L$18+Illustrator!$C$40)/12 ->  | M122: =IF(A122=A121,M121,M121*(1+Assumptions!$C$16)) -> 0 | N122: =IF((SUM('Admin fee calc'!$B$9:$B$9)*(1+'RIY Cashflows'!$D$8)^('RIY Cashflows'!B122/12)+'RIY Cashflows'!D122)*Assumptions!$B$12>Assumptions!$B$17,Assumptions!$B$17*D122/(D122+SUM('Admin fee calc'!$B$9:$B$9)),Assumptions!$B$12*'RIY Cashflows'!D122) ->  | O122: =-MAX(MAX(D122*Assumptions!$B$12/12,N122),M122)-D122*Illustrator!#REF! ->  | P122: =IF(A122=A121,P121,P121*(1+Assumptions!$C$17)) -> 1.689478959e+11 | Q122: =-K122*(Illustrator!$C$38)/12 ->  | R122: =-K122*(Illustrator!$C$39)/12 ->  | AM122: 2009-04-01 | AN122: carry on | AO122: 2009-04-01
A123: 10 | B123: 113 | C123: 2009-05-01 | E123: 0 | F123: =IF(A123=A122,F122,F122*(1+Illustrator!$C$23)) -> 0 | G123: =-SUMPRODUCT(Illustrator!$D$13:$D$17,Illustrator!$Q$13:$Q$17)/SUM(Illustrator!$D$13:$D$17)*F123 ->  | H123: =-E123*Illustrator!$I$18 -> 0 | I123: =-F123*Illustrator!$C$31 -> 0 | J123: =IF(A123=A122,J122,J122*(1+Illustrator!$C$25)) -> 0 | L123: =-K123*(Illustrator!$L$18+Illustrator!$C$40)/12 ->  | M123: =IF(A123=A122,M122,M122*(1+Assumptions!$C$16)) -> 0 | N123: =IF((SUM('Admin fee calc'!$B$9:$B$9)*(1+'RIY Cashflows'!$D$8)^('RIY Cashflows'!B123/12)+'RIY Cashflows'!D123)*Assumptions!$B$12>Assumptions!$B$17,Assumptions!$B$17*D123/(D123+SUM('Admin fee calc'!$B$9:$B$9)),Assumptions!$B$12*'RIY Cashflows'!D123) ->  | O123: =-MAX(MAX(D123*Assumptions!$B$12/12,N123),M123)-D123*Illustrator!#REF! ->  | P123: =IF(A123=A122,P122,P122*(1+Assumptions!$C$17)) -> 1.689478959e+11 | Q123: =-K123*(Illustrator!$C$38)/12 ->  | R123: =-K123*(Illustrator!$C$39)/12 ->  | AM123: 2009-05-01 | AN123: carry on | AO123: 2009-05-01
A124: 10 | B124: 114 | C124: 2009-06-01 | E124: 0 | F124: =IF(A124=A123,F123,F123*(1+Illustrator!$C$23)) -> 0 | G124: =-SUMPRODUCT(Illustrator!$D$13:$D$17,Illustrator!$Q$13:$Q$17)/SUM(Illustrator!$D$13:$D$17)*F124 ->  | H124: =-E124*Illustrator!$I$18 -> 0 | I124: =-F124*Illustrator!$C$31 -> 0 | J124: =IF(A124=A123,J123,J123*(1+Illustrator!$C$25)) -> 0 | L124: =-K124*(Illustrator!$L$18+Illustrator!$C$40)/12 ->  | M124: =IF(A124=A123,M123,M123*(1+Assumptions!$C$16)) -> 0 | N124: =IF((SUM('Admin fee calc'!$B$9:$B$9)*(1+'RIY Cashflows'!$D$8)^('RIY Cashflows'!B124/12)+'RIY Cashflows'!D124)*Assumptions!$B$12>Assumptions!$B$17,Assumptions!$B$17*D124/(D124+SUM('Admin fee calc'!$B$9:$B$9)),Assumptions!$B$12*'RIY Cashflows'!D124) ->  | O124: =-MAX(MAX(D124*Assumptions!$B$12/12,N124),M124)-D124*Illustrator!#REF! ->  | P124: =IF(A124=A123,P123,P123*(1+Assumptions!$C$17)) -> 1.689478959e+11 | Q124: =-K124*(Illustrator!$C$38)/12 ->  | R124: =-K124*(Illustrator!$C$39)/12 ->  | AM124: 2009-06-01 | AN124: carry on | AO124: 2009-06-01
A125: 10 | B125: 115 | C125: 2009-07-01 | E125: 0 | F125: =IF(A125=A124,F124,F124*(1+Illustrator!$C$23)) -> 0 | G125: =-SUMPRODUCT(Illustrator!$D$13:$D$17,Illustrator!$Q$13:$Q$17)/SUM(Illustrator!$D$13:$D$17)*F125 ->  | H125: =-E125*Illustrator!$I$18 -> 0 | I125: =-F125*Illustrator!$C$31 -> 0 | J125: =IF(A125=A124,J124,J124*(1+Illustrator!$C$25)) -> 0 | L125: =-K125*(Illustrator!$L$18+Illustrator!$C$40)/12 ->  | M125: =IF(A125=A124,M124,M124*(1+Assumptions!$C$16)) -> 0 | N125: =IF((SUM('Admin fee calc'!$B$9:$B$9)*(1+'RIY Cashflows'!$D$8)^('RIY Cashflows'!B125/12)+'RIY Cashflows'!D125)*Assumptions!$B$12>Assumptions!$B$17,Assumptions!$B$17*D125/(D125+SUM('Admin fee calc'!$B$9:$B$9)),Assumptions!$B$12*'RIY Cashflows'!D125) ->  | O125: =-MAX(MAX(D125*Assumptions!$B$12/12,N125),M125)-D125*Illustrator!#REF! ->  | P125: =IF(A125=A124,P124,P124*(1+Assumptions!$C$17)) -> 1.689478959e+11 | Q125: =-K125*(Illustrator!$C$38)/12 ->  | R125: =-K125*(Illustrator!$C$39)/12 ->  | AM125: 2009-07-01 | AN125: carry on | AO125: 2009-07-01
A126: 10 | B126: 116 | C126: 2009-08-01 | E126: 0 | F126: =IF(A126=A125,F125,F125*(1+Illustrator!$C$23)) -> 0 | G126: =-SUMPRODUCT(Illustrator!$D$13:$D$17,Illustrator!$Q$13:$Q$17)/SUM(Illustrator!$D$13:$D$17)*F126 ->  | H126: =-E126*Illustrator!$I$18 -> 0 | I126: =-F126*Illustrator!$C$31 -> 0 | J126: =IF(A126=A125,J125,J125*(1+Illustrator!$C$25)) -> 0 | L126: =-K126*(Illustrator!$L$18+Illustrator!$C$40)/12 ->  | M126: =IF(A126=A125,M125,M125*(1+Assumptions!$C$16)) -> 0 | N126: =IF((SUM('Admin fee calc'!$B$9:$B$9)*(1+'RIY Cashflows'!$D$8)^('RIY Cashflows'!B126/12)+'RIY Cashflows'!D126)*Assumptions!$B$12>Assumptions!$B$17,Assumptions!$B$17*D126/(D126+SUM('Admin fee calc'!$B$9:$B$9)),Assumptions!$B$12*'RIY Cashflows'!D126) ->  | O126: =-MAX(MAX(D126*Assumptions!$B$12/12,N126),M126)-D126*Illustrator!#REF! ->  | P126: =IF(A126=A125,P125,P125*(1+Assumptions!$C$17)) -> 1.689478959e+11 | Q126: =-K126*(Illustrator!$C$38)/12 ->  | R126: =-K126*(Illustrator!$C$39)/12 ->  | AM126: 2009-08-01 | AN126: carry on | AO126: 2009-08-01
A127: 10 | B127: 117 | C127: 2009-09-01 | E127: 0 | F127: =IF(A127=A126,F126,F126*(1+Illustrator!$C$23)) -> 0 | G127: =-SUMPRODUCT(Illustrator!$D$13:$D$17,Illustrator!$Q$13:$Q$17)/SUM(Illustrator!$D$13:$D$17)*F127 ->  | H127: =-E127*Illustrator!$I$18 -> 0 | I127: =-F127*Illustrator!$C$31 -> 0 | J127: =IF(A127=A126,J126,J126*(1+Illustrator!$C$25)) -> 0 | L127: =-K127*(Illustrator!$L$18+Illustrator!$C$40)/12 ->  | M127: =IF(A127=A126,M126,M126*(1+Assumptions!$C$16)) -> 0 | N127: =IF((SUM('Admin fee calc'!$B$9:$B$9)*(1+'RIY Cashflows'!$D$8)^('RIY Cashflows'!B127/12)+'RIY Cashflows'!D127)*Assumptions!$B$12>Assumptions!$B$17,Assumptions!$B$17*D127/(D127+SUM('Admin fee calc'!$B$9:$B$9)),Assumptions!$B$12*'RIY Cashflows'!D127) ->  | O127: =-MAX(MAX(D127*Assumptions!$B$12/12,N127),M127)-D127*Illustrator!#REF! ->  | P127: =IF(A127=A126,P126,P126*(1+Assumptions!$C$17)) -> 1.689478959e+11 | Q127: =-K127*(Illustrator!$C$38)/12 ->  | R127: =-K127*(Illustrator!$C$39)/12 ->  | AM127: 2009-09-01 | AN127: carry on | AO127: 2009-09-01
A128: 10 | B128: 118 | C128: 2009-10-01 | E128: 0 | F128: =IF(A128=A127,F127,F127*(1+Illustrator!$C$23)) -> 0 | G128: =-SUMPRODUCT(Illustrator!$D$13:$D$17,Illustrator!$Q$13:$Q$17)/SUM(Illustrator!$D$13:$D$17)*F128 ->  | H128: =-E128*Illustrator!$I$18 -> 0 | I128: =-F128*Illustrator!$C$31 -> 0 | J128: =IF(A128=A127,J127,J127*(1+Illustrator!$C$25)) -> 0 | L128: =-K128*(Illustrator!$L$18+Illustrator!$C$40)/12 ->  | M128: =IF(A128=A127,M127,M127*(1+Assumptions!$C$16)) -> 0 | N128: =IF((SUM('Admin fee calc'!$B$9:$B$9)*(1+'RIY Cashflows'!$D$8)^('RIY Cashflows'!B128/12)+'RIY Cashflows'!D128)*Assumptions!$B$12>Assumptions!$B$17,Assumptions!$B$17*D128/(D128+SUM('Admin fee calc'!$B$9:$B$9)),Assumptions!$B$12*'RIY Cashflows'!D128) ->  | O128: =-MAX(MAX(D128*Assumptions!$B$12/12,N128),M128)-D128*Illustrator!#REF! ->  | P128: =IF(A128=A127,P127,P127*(1+Assumptions!$C$17)) -> 1.689478959e+11 | Q128: =-K128*(Illustrator!$C$38)/12 ->  | R128: =-K128*(Illustrator!$C$39)/12 ->  | AM128: 2009-10-01 | AN128: carry on | AO128: 2009-10-01
A129: 10 | B129: 119 | C129: 2009-11-01 | E129: 0 | F129: =IF(A129=A128,F128,F128*(1+Illustrator!$C$23)) -> 0 | G129: =-SUMPRODUCT(Illustrator!$D$13:$D$17,Illustrator!$Q$13:$Q$17)/SUM(Illustrator!$D$13:$D$17)*F129 ->  | H129: =-E129*Illustrator!$I$18 -> 0 | I129: =-F129*Illustrator!$C$31 -> 0 | J129: =IF(A129=A128,J128,J128*(1+Illustrator!$C$25)) -> 0 | L129: =-K129*(Illustrator!$L$18+Illustrator!$C$40)/12 ->  | M129: =IF(A129=A128,M128,M128*(1+Assumptions!$C$16)) -> 0 | N129: =IF((SUM('Admin fee calc'!$B$9:$B$9)*(1+'RIY Cashflows'!$D$8)^('RIY Cashflows'!B129/12)+'RIY Cashflows'!D129)*Assumptions!$B$12>Assumptions!$B$17,Assumptions!$B$17*D129/(D129+SUM('Admin fee calc'!$B$9:$B$9)),Assumptions!$B$12*'RIY Cashflows'!D129) ->  | O129: =-MAX(MAX(D129*Assumptions!$B$12/12,N129),M129)-D129*Illustrator!#REF! ->  | P129: =IF(A129=A128,P128,P128*(1+Assumptions!$C$17)) -> 1.689478959e+11 | Q129: =-K129*(Illustrator!$C$38)/12 ->  | R129: =-K129*(Illustrator!$C$39)/12 ->  | AM129: 2009-11-01 | AN129: carry on | AO129: 2009-11-01
A130: 10 | B130: 120 | C130: 2009-12-01 | E130: 0 | F130: =IF(A130=A129,F129,F129*(1+Illustrator!$C$23)) -> 0 | G130: =-SUMPRODUCT(Illustrator!$D$13:$D$17,Illustrator!$Q$13:$Q$17)/SUM(Illustrator!$D$13:$D$17)*F130 ->  | H130: =-E130*Illustrator!$I$18 -> 0 | I130: =-F130*Illustrator!$C$31 -> 0 | J130: =IF(A130=A129,J129,J129*(1+Illustrator!$C$25)) -> 0 | L130: =-K130*(Illustrator!$L$18+Illustrator!$C$40)/12 ->  | M130: =IF(A130=A129,M129,M129*(1+Assumptions!$C$16)) -> 0 | N130: =IF((SUM('Admin fee calc'!$B$9:$B$9)*(1+'RIY Cashflows'!$D$8)^('RIY Cashflows'!B130/12)+'RIY Cashflows'!D130)*Assumptions!$B$12>Assumptions!$B$17,Assumptions!$B$17*D130/(D130+SUM('Admin fee calc'!$B$9:$B$9)),Assumptions!$B$12*'RIY Cashflows'!D130) ->  | O130: =-MAX(MAX(D130*Assumptions!$B$12/12,N130),M130)-D130*Illustrator!#REF! ->  | P130: =IF(A130=A129,P129,P129*(1+Assumptions!$C$17)) -> 1.689478959e+11 | Q130: =-K130*(Illustrator!$C$38)/12 ->  | R130: =-K130*(Illustrator!$C$39)/12 ->  | AM130: 2009-12-01 | AN130: carry on | AO130: 2009-12-01
A131: 11 | B131: 121 | C131: 2010-01-01 | E131: 0 | F131: =IF(A131=A130,F130,F130*(1+Illustrator!$C$23)) -> 0 | G131: =-SUMPRODUCT(Illustrator!$D$13:$D$17,Illustrator!$Q$13:$Q$17)/SUM(Illustrator!$D$13:$D$17)*F131 ->  | H131: =-E131*Illustrator!$I$18 -> 0 | I131: =-F131*Illustrator!$C$31 -> 0 | J131: =IF(A131=A130,J130,J130*(1+Illustrator!$C$25)) -> 0 | L131: =-K131*(Illustrator!$L$18+Illustrator!$C$40)/12 ->  | M131: =IF(A131=A130,M130,M130*(1+Assumptions!$C$16)) -> 0 | N131: =IF((SUM('Admin fee calc'!$B$9:$B$9)*(1+'RIY Cashflows'!$D$8)^('RIY Cashflows'!B131/12)+'RIY Cashflows'!D131)*Assumptions!$B$12>Assumptions!$B$17,Assumptions!$B$17*D131/(D131+SUM('Admin fee calc'!$B$9:$B$9)),Assumptions!$B$12*'RIY Cashflows'!D131) ->  | O131: =-MAX(MAX(D131*Assumptions!$B$12/12,N131),M131)-D131*Illustrator!#REF! ->  | P131: =IF(A131=A130,P130,P130*(1+Assumptions!$C$17)) -> 1.790847697e+11 | Q131: =-K131*(Illustrator!$C$38)/12 ->  | R131: =-K131*(Illustrator!$C$39)/12 ->  | AM131: 2010-01-01 | AN131: 2nd last line | AO131: 2009-12-31 | AP131: =IF($AN131="carry on",$L130+$R130+SUM($E131:$J131), IF($AN131="2nd last line",$L130+$R130,IF($AN131="last line",-$S129,0))) ->  | AQ131: =IF($AN131="carry on",$L130+$R130+SUM($E131:$J131)-$H131-$I131-$R130, IF($AN131="2nd last line",$L130+$R130-$R130,IF($AN131="last line",-$S129,0))) ->  | AR131: =IF($AN131="carry on",$L130+$R130+SUM($E131:$J131)-$G131-$Q131, IF($AN131="2nd last line",$L130+$R130-$G131-$Q131,IF($AN131="last line",-$S129,0))) ->  | AS131: =IF($AN131="carry on",$L130+$R130+SUM($E131:$J131), IF($AN131="2nd last line",$L130+$R130,IF($AN131="last line",-$S129,0))) -> 
A132: 11 | B132: 122 | C132: 2010-02-01 | E132: 0 | F132: =IF(A132=A131,F131,F131*(1+Illustrator!$C$23)) -> 0 | G132: =-SUMPRODUCT(Illustrator!$D$13:$D$17,Illustrator!$Q$13:$Q$17)/SUM(Illustrator!$D$13:$D$17)*F132 ->  | H132: =-E132*Illustrator!$I$18 -> 0 | I132: =-F132*Illustrator!$C$31 -> 0 | J132: =IF(A132=A131,J131,J131*(1+Illustrator!$C$25)) -> 0 | L132: =-K132*(Illustrator!$L$18+Illustrator!$C$40)/12 ->  | M132: =IF(A132=A131,M131,M131*(1+Assumptions!$C$16)) -> 0 | N132: =IF((SUM('Admin fee calc'!$B$9:$B$9)*(1+'RIY Cashflows'!$D$8)^('RIY Cashflows'!B132/12)+'RIY Cashflows'!D132)*Assumptions!$B$12>Assumptions!$B$17,Assumptions!$B$17*D132/(D132+SUM('Admin fee calc'!$B$9:$B$9)),Assumptions!$B$12*'RIY Cashflows'!D132) ->  | O132: =-MAX(MAX(D132*Assumptions!$B$12/12,N132),M132)-D132*Illustrator!#REF! ->  | P132: =IF(A132=A131,P131,P131*(1+Assumptions!$C$17)) -> 1.790847697e+11 | Q132: =-K132*(Illustrator!$C$38)/12 ->  | R132: =-K132*(Illustrator!$C$39)/12 ->  | AM132: 2010-02-01 | AN132: last line | AO132: 2009-12-31
A133: 11 | B133: 123 | C133: 2010-03-01 | E133: 0 | F133: =IF(A133=A132,F132,F132*(1+Illustrator!$C$23)) -> 0 | G133: =-SUMPRODUCT(Illustrator!$D$13:$D$17,Illustrator!$Q$13:$Q$17)/SUM(Illustrator!$D$13:$D$17)*F133 ->  | H133: =-E133*Illustrator!$I$18 -> 0 | I133: =-F133*Illustrator!$C$31 -> 0 | J133: =IF(A133=A132,J132,J132*(1+Illustrator!$C$25)) -> 0 | L133: =-K133*(Illustrator!$L$18+Illustrator!$C$40)/12 ->  | M133: =IF(A133=A132,M132,M132*(1+Assumptions!$C$16)) -> 0 | N133: =IF((SUM('Admin fee calc'!$B$9:$B$9)*(1+'RIY Cashflows'!$D$8)^('RIY Cashflows'!B133/12)+'RIY Cashflows'!D133)*Assumptions!$B$12>Assumptions!$B$17,Assumptions!$B$17*D133/(D133+SUM('Admin fee calc'!$B$9:$B$9)),Assumptions!$B$12*'RIY Cashflows'!D133) ->  | O133: =-MAX(MAX(D133*Assumptions!$B$12/12,N133),M133)-D133*Illustrator!#REF! ->  | P133: =IF(A133=A132,P132,P132*(1+Assumptions!$C$17)) -> 1.790847697e+11 | Q133: =-K133*(Illustrator!$C$38)/12 ->  | R133: =-K133*(Illustrator!$C$39)/12 ->  | AM133: 2010-03-01 | AO133: 00:00:00 | AP133: 0 | AQ133: 0 | AR133: 0 | AS133: 0
A134: 11 | B134: 124 | C134: 2010-04-01 | E134: 0 | F134: =IF(A134=A133,F133,F133*(1+Illustrator!$C$23)) -> 0 | G134: =-SUMPRODUCT(Illustrator!$D$13:$D$17,Illustrator!$Q$13:$Q$17)/SUM(Illustrator!$D$13:$D$17)*F134 ->  | H134: =-E134*Illustrator!$I$18 -> 0 | I134: =-F134*Illustrator!$C$31 -> 0 | J134: =IF(A134=A133,J133,J133*(1+Illustrator!$C$25)) -> 0 | L134: =-K134*(Illustrator!$L$18+Illustrator!$C$40)/12 ->  | M134: =IF(A134=A133,M133,M133*(1+Assumptions!$C$16)) -> 0 | N134: =IF((SUM('Admin fee calc'!$B$9:$B$9)*(1+'RIY Cashflows'!$D$8)^('RIY Cashflows'!B134/12)+'RIY Cashflows'!D134)*Assumptions!$B$12>Assumptions!$B$17,Assumptions!$B$17*D134/(D134+SUM('Admin fee calc'!$B$9:$B$9)),Assumptions!$B$12*'RIY Cashflows'!D134) ->  | O134: =-MAX(MAX(D134*Assumptions!$B$12/12,N134),M134)-D134*Illustrator!#REF! ->  | P134: =IF(A134=A133,P133,P133*(1+Assumptions!$C$17)) -> 1.790847697e+11 | Q134: =-K134*(Illustrator!$C$38)/12 ->  | R134: =-K134*(Illustrator!$C$39)/12 ->  | AM134: 2010-04-01 | AO134: 00:00:00 | AP134: 0 | AQ134: 0 | AR134: 0 | AS134: 0
A135: 11 | B135: 125 | C135: 2010-05-01 | E135: 0 | F135: =IF(A135=A134,F134,F134*(1+Illustrator!$C$23)) -> 0 | G135: =-SUMPRODUCT(Illustrator!$D$13:$D$17,Illustrator!$Q$13:$Q$17)/SUM(Illustrator!$D$13:$D$17)*F135 ->  | H135: =-E135*Illustrator!$I$18 -> 0 | I135: =-F135*Illustrator!$C$31 -> 0 | J135: =IF(A135=A134,J134,J134*(1+Illustrator!$C$25)) -> 0 | L135: =-K135*(Illustrator!$L$18+Illustrator!$C$40)/12 ->  | M135: =IF(A135=A134,M134,M134*(1+Assumptions!$C$16)) -> 0 | N135: =IF((SUM('Admin fee calc'!$B$9:$B$9)*(1+'RIY Cashflows'!$D$8)^('RIY Cashflows'!B135/12)+'RIY Cashflows'!D135)*Assumptions!$B$12>Assumptions!$B$17,Assumptions!$B$17*D135/(D135+SUM('Admin fee calc'!$B$9:$B$9)),Assumptions!$B$12*'RIY Cashflows'!D135) ->  | O135: =-MAX(MAX(D135*Assumptions!$B$12/12,N135),M135)-D135*Illustrator!#REF! ->  | P135: =IF(A135=A134,P134,P134*(1+Assumptions!$C$17)) -> 1.790847697e+11 | Q135: =-K135*(Illustrator!$C$38)/12 ->  | R135: =-K135*(Illustrator!$C$39)/12 ->  | AM135: 2010-05-01 | AO135: 00:00:00 | AP135: 0 | AQ135: 0 | AR135: 0 | AS135: 0
A136: 11 | B136: 126 | C136: 2010-06-01 | E136: 0 | F136: =IF(A136=A135,F135,F135*(1+Illustrator!$C$23)) -> 0 | G136: =-SUMPRODUCT(Illustrator!$D$13:$D$17,Illustrator!$Q$13:$Q$17)/SUM(Illustrator!$D$13:$D$17)*F136 ->  | H136: =-E136*Illustrator!$I$18 -> 0 | I136: =-F136*Illustrator!$C$31 -> 0 | J136: =IF(A136=A135,J135,J135*(1+Illustrator!$C$25)) -> 0 | L136: =-K136*(Illustrator!$L$18+Illustrator!$C$40)/12 ->  | M136: =IF(A136=A135,M135,M135*(1+Assumptions!$C$16)) -> 0 | N136: =IF((SUM('Admin fee calc'!$B$9:$B$9)*(1+'RIY Cashflows'!$D$8)^('RIY Cashflows'!B136/12)+'RIY Cashflows'!D136)*Assumptions!$B$12>Assumptions!$B$17,Assumptions!$B$17*D136/(D136+SUM('Admin fee calc'!$B$9:$B$9)),Assumptions!$B$12*'RIY Cashflows'!D136) ->  | O136: =-MAX(MAX(D136*Assumptions!$B$12/12,N136),M136)-D136*Illustrator!#REF! ->  | P136: =IF(A136=A135,P135,P135*(1+Assumptions!$C$17)) -> 1.790847697e+11 | Q136: =-K136*(Illustrator!$C$38)/12 ->  | R136: =-K136*(Illustrator!$C$39)/12 ->  | AM136: 2010-06-01 | AO136: 00:00:00 | AP136: 0 | AQ136: 0 | AR136: 0 | AS136: 0
A137: 11 | B137: 127 | C137: 2010-07-01 | E137: 0 | F137: =IF(A137=A136,F136,F136*(1+Illustrator!$C$23)) -> 0 | G137: =-SUMPRODUCT(Illustrator!$D$13:$D$17,Illustrator!$Q$13:$Q$17)/SUM(Illustrator!$D$13:$D$17)*F137 ->  | H137: =-E137*Illustrator!$I$18 -> 0 | I137: =-F137*Illustrator!$C$31 -> 0 | J137: =IF(A137=A136,J136,J136*(1+Illustrator!$C$25)) -> 0 | L137: =-K137*(Illustrator!$L$18+Illustrator!$C$40)/12 ->  | M137: =IF(A137=A136,M136,M136*(1+Assumptions!$C$16)) -> 0 | N137: =IF((SUM('Admin fee calc'!$B$9:$B$9)*(1+'RIY Cashflows'!$D$8)^('RIY Cashflows'!B137/12)+'RIY Cashflows'!D137)*Assumptions!$B$12>Assumptions!$B$17,Assumptions!$B$17*D137/(D137+SUM('Admin fee calc'!$B$9:$B$9)),Assumptions!$B$12*'RIY Cashflows'!D137) ->  | O137: =-MAX(MAX(D137*Assumptions!$B$12/12,N137),M137)-D137*Illustrator!#REF! ->  | P137: =IF(A137=A136,P136,P136*(1+Assumptions!$C$17)) -> 1.790847697e+11 | Q137: =-K137*(Illustrator!$C$38)/12 ->  | R137: =-K137*(Illustrator!$C$39)/12 ->  | AM137: 2010-07-01 | AO137: 00:00:00 | AP137: 0 | AQ137: 0 | AR137: 0 | AS137: 0
A138: 11 | B138: 128 | C138: 2010-08-01 | E138: 0 | F138: =IF(A138=A137,F137,F137*(1+Illustrator!$C$23)) -> 0 | G138: =-SUMPRODUCT(Illustrator!$D$13:$D$17,Illustrator!$Q$13:$Q$17)/SUM(Illustrator!$D$13:$D$17)*F138 ->  | H138: =-E138*Illustrator!$I$18 -> 0 | I138: =-F138*Illustrator!$C$31 -> 0 | J138: =IF(A138=A137,J137,J137*(1+Illustrator!$C$25)) -> 0 | L138: =-K138*(Illustrator!$L$18+Illustrator!$C$40)/12 ->  | M138: =IF(A138=A137,M137,M137*(1+Assumptions!$C$16)) -> 0 | N138: =IF((SUM('Admin fee calc'!$B$9:$B$9)*(1+'RIY Cashflows'!$D$8)^('RIY Cashflows'!B138/12)+'RIY Cashflows'!D138)*Assumptions!$B$12>Assumptions!$B$17,Assumptions!$B$17*D138/(D138+SUM('Admin fee calc'!$B$9:$B$9)),Assumptions!$B$12*'RIY Cashflows'!D138) ->  | O138: =-MAX(MAX(D138*Assumptions!$B$12/12,N138),M138)-D138*Illustrator!#REF! ->  | P138: =IF(A138=A137,P137,P137*(1+Assumptions!$C$17)) -> 1.790847697e+11 | Q138: =-K138*(Illustrator!$C$38)/12 ->  | R138: =-K138*(Illustrator!$C$39)/12 ->  | AM138: 2010-08-01 | AO138: 00:00:00 | AP138: 0 | AQ138: 0 | AR138: 0 | AS138: 0
A139: 11 | B139: 129 | C139: 2010-09-01 | E139: 0 | F139: =IF(A139=A138,F138,F138*(1+Illustrator!$C$23)) -> 0 | G139: =-SUMPRODUCT(Illustrator!$D$13:$D$17,Illustrator!$Q$13:$Q$17)/SUM(Illustrator!$D$13:$D$17)*F139 ->  | H139: =-E139*Illustrator!$I$18 -> 0 | I139: =-F139*Illustrator!$C$31 -> 0 | J139: =IF(A139=A138,J138,J138*(1+Illustrator!$C$25)) -> 0 | L139: =-K139*(Illustrator!$L$18+Illustrator!$C$40)/12 ->  | M139: =IF(A139=A138,M138,M138*(1+Assumptions!$C$16)) -> 0 | N139: =IF((SUM('Admin fee calc'!$B$9:$B$9)*(1+'RIY Cashflows'!$D$8)^('RIY Cashflows'!B139/12)+'RIY Cashflows'!D139)*Assumptions!$B$12>Assumptions!$B$17,Assumptions!$B$17*D139/(D139+SUM('Admin fee calc'!$B$9:$B$9)),Assumptions!$B$12*'RIY Cashflows'!D139) ->  | O139: =-MAX(MAX(D139*Assumptions!$B$12/12,N139),M139)-D139*Illustrator!#REF! ->  | P139: =IF(A139=A138,P138,P138*(1+Assumptions!$C$17)) -> 1.790847697e+11 | Q139: =-K139*(Illustrator!$C$38)/12 ->  | R139: =-K139*(Illustrator!$C$39)/12 ->  | S139: =K139+L139+R139 ->  | AM139: 2010-09-01 | AO139: 00:00:00 | AP139: 0 | AQ139: 0 | AR139: 0 | AS139: 0
A140: =ROUNDUP(B140/12,0) -> 11 | B140: 130 | C140: 2010-10-01 | E140: 0 | F140: =IF(A140=A139,F139,F139*(1+Illustrator!$C$23)) -> 0 | G140: =-SUMPRODUCT(Illustrator!$D$13:$D$17,Illustrator!$Q$13:$Q$17)/SUM(Illustrator!$D$13:$D$17)*F140 ->  | H140: =-E140*Illustrator!$I$18 -> 0 | I140: =-F140*Illustrator!$C$31 -> 0 | J140: =IF(A140=A139,J139,J139*(1+Illustrator!$C$25)) -> 0 | K140: =SUM(D140:J140)*(1+$D$8)^((C141-C140)/365) ->  | L140: =-K140*(Illustrator!$L$18+Illustrator!$C$40)/12 ->  | M140: =IF(A140=A139,M139,M139*(1+Assumptions!$C$16)) -> 0 | N140: =IF((SUM('Admin fee calc'!$B$9:$B$9)*(1+'RIY Cashflows'!$D$8)^('RIY Cashflows'!B140/12)+'RIY Cashflows'!D140)*Assumptions!$B$12>Assumptions!$B$17,Assumptions!$B$17*D140/(D140+SUM('Admin fee calc'!$B$9:$B$9)),Assumptions!$B$12*'RIY Cashflows'!D140) ->  | O140: =-MAX(MAX(D140*Assumptions!$B$12/12,N140),M140)-D140*Illustrator!#REF! ->  | P140: =IF(A140=A139,P139,P139*(1+Assumptions!$C$17)) -> 1.790847697e+11 | Q140: =-K140*(Illustrator!$C$38)/12 ->  | R140: =-K140*(Illustrator!$C$39)/12 ->  | AM140: 2010-10-01 | AO140: 00:00:00 | AP140: 0 | AQ140: 0 | AR140: 0 | AS140: 0
A141: 11 | B141: 131 | C141: 2010-11-01 | D141: =S140 ->  | E141: 0 | F141: =IF(A141=A140,F140,F140*(1+Illustrator!$C$23)) -> 0 | G141: =-SUMPRODUCT(Illustrator!$D$13:$D$17,Illustrator!$Q$13:$Q$17)/SUM(Illustrator!$D$13:$D$17)*F141 ->  | H141: =-E141*Illustrator!$I$18 -> 0 | I141: =-F141*Illustrator!$C$31 -> 0 | J141: =IF(A141=A140,J140,J140*(1+Illustrator!$C$25)) -> 0 | L141: =-K141*(Illustrator!$L$18+Illustrator!$C$40)/12 ->  | M141: =IF(A141=A140,M140,M140*(1+Assumptions!$C$16)) -> 0 | N141: =IF((SUM('Admin fee calc'!$B$9:$B$9)*(1+'RIY Cashflows'!$D$8)^('RIY Cashflows'!B141/12)+'RIY Cashflows'!D141)*Assumptions!$B$12>Assumptions!$B$17,Assumptions!$B$17*D141/(D141+SUM('Admin fee calc'!$B$9:$B$9)),Assumptions!$B$12*'RIY Cashflows'!D141) ->  | O141: =-MAX(MAX(D141*Assumptions!$B$12/12,N141),M141)-D141*Illustrator!#REF! ->  | P141: =IF(A141=A140,P140,P140*(1+Assumptions!$C$17)) -> 1.790847697e+11 | Q141: =-K141*(Illustrator!$C$38)/12 ->  | R141: =-K141*(Illustrator!$C$39)/12 ->  | AM141: 2010-11-01 | AN141: =IF(AM141<$AP$2,"carry on",IF(AN140="carry on","2nd last line",IF(AN140="2nd last line","last line",""))) ->  | AO141: =IF(AN141="carry on",AM141,IF(AN141="2nd last line",AM141-1,IF(AN141="last line",AO140,0))) -> 00:00:00 | AP141: 0 | AQ141: 0 | AR141: 0 | AS141: 0
A142: 11 | B142: 132 | C142: 2010-12-01 | E142: 0 | F142: =IF(A142=A141,F141,F141*(1+Illustrator!$C$23)) -> 0 | G142: =-SUMPRODUCT(Illustrator!$D$13:$D$17,Illustrator!$Q$13:$Q$17)/SUM(Illustrator!$D$13:$D$17)*F142 ->  | H142: =-E142*Illustrator!$I$18 -> 0 | I142: =-F142*Illustrator!$C$31 -> 0 | J142: =IF(A142=A141,J141,J141*(1+Illustrator!$C$25)) -> 0 | L142: =-K142*(Illustrator!$L$18+Illustrator!$C$40)/12 ->  | M142: =IF(A142=A141,M141,M141*(1+Assumptions!$C$16)) -> 0 | N142: =IF((SUM('Admin fee calc'!$B$9:$B$9)*(1+'RIY Cashflows'!$D$8)^('RIY Cashflows'!B142/12)+'RIY Cashflows'!D142)*Assumptions!$B$12>Assumptions!$B$17,Assumptions!$B$17*D142/(D142+SUM('Admin fee calc'!$B$9:$B$9)),Assumptions!$B$12*'RIY Cashflows'!D142) ->  | O142: =-MAX(MAX(D142*Assumptions!$B$12/12,N142),M142)-D142*Illustrator!#REF! ->  | P142: =IF(A142=A141,P141,P141*(1+Assumptions!$C$17)) -> 1.790847697e+11 | Q142: =-K142*(Illustrator!$C$38)/12 ->  | R142: =-K142*(Illustrator!$C$39)/12 ->  | AM142: 2010-12-01 | AO142: 00:00:00 | AP142: 0 | AQ142: 0 | AR142: 0 | AS142: 0
A143: 12 | B143: 133 | C143: 2011-01-01 | E143: 0 | F143: =IF(A143=A142,F142,F142*(1+Illustrator!$C$23)) -> 0 | G143: =-SUMPRODUCT(Illustrator!$D$13:$D$17,Illustrator!$Q$13:$Q$17)/SUM(Illustrator!$D$13:$D$17)*F143 ->  | H143: =-E143*Illustrator!$I$18 -> 0 | I143: =-F143*Illustrator!$C$31 -> 0 | J143: =IF(A143=A142,J142,J142*(1+Illustrator!$C$25)) -> 0 | L143: =-K143*(Illustrator!$L$18+Illustrator!$C$40)/12 ->  | M143: =IF(A143=A142,M142,M142*(1+Assumptions!$C$16)) -> 0 | N143: =IF((SUM('Admin fee calc'!$B$9:$B$9)*(1+'RIY Cashflows'!$D$8)^('RIY Cashflows'!B143/12)+'RIY Cashflows'!D143)*Assumptions!$B$12>Assumptions!$B$17,Assumptions!$B$17*D143/(D143+SUM('Admin fee calc'!$B$9:$B$9)),Assumptions!$B$12*'RIY Cashflows'!D143) ->  | O143: =-MAX(MAX(D143*Assumptions!$B$12/12,N143),M143)-D143*Illustrator!#REF! ->  | P143: =IF(A143=A142,P142,P142*(1+Assumptions!$C$17)) -> 1.898298558e+11 | Q143: =-K143*(Illustrator!$C$38)/12 ->  | R143: =-K143*(Illustrator!$C$39)/12 ->  | AM143: 2011-01-01 | AO143: 00:00:00 | AP143: 0 | AQ143: 0 | AR143: 0 | AS143: 0
A144: 12 | B144: 134 | C144: 2011-02-01 | E144: 0 | F144: =IF(A144=A143,F143,F143*(1+Illustrator!$C$23)) -> 0 | G144: =-SUMPRODUCT(Illustrator!$D$13:$D$17,Illustrator!$Q$13:$Q$17)/SUM(Illustrator!$D$13:$D$17)*F144 ->  | H144: =-E144*Illustrator!$I$18 -> 0 | I144: =-F144*Illustrator!$C$31 -> 0 | J144: =IF(A144=A143,J143,J143*(1+Illustrator!$C$25)) -> 0 | L144: =-K144*(Illustrator!$L$18+Illustrator!$C$40)/12 ->  | M144: =IF(A144=A143,M143,M143*(1+Assumptions!$C$16)) -> 0 | N144: =IF((SUM('Admin fee calc'!$B$9:$B$9)*(1+'RIY Cashflows'!$D$8)^('RIY Cashflows'!B144/12)+'RIY Cashflows'!D144)*Assumptions!$B$12>Assumptions!$B$17,Assumptions!$B$17*D144/(D144+SUM('Admin fee calc'!$B$9:$B$9)),Assumptions!$B$12*'RIY Cashflows'!D144) ->  | O144: =-MAX(MAX(D144*Assumptions!$B$12/12,N144),M144)-D144*Illustrator!#REF! ->  | P144: =IF(A144=A143,P143,P143*(1+Assumptions!$C$17)) -> 1.898298558e+11 | Q144: =-K144*(Illustrator!$C$38)/12 ->  | R144: =-K144*(Illustrator!$C$39)/12 ->  | AM144: 2011-02-01 | AO144: 00:00:00 | AP144: 0 | AQ144: 0 | AR144: 0 | AS144: 0
A145: 12 | B145: 135 | C145: 2011-03-01 | E145: 0 | F145: =IF(A145=A144,F144,F144*(1+Illustrator!$C$23)) -> 0 | G145: =-SUMPRODUCT(Illustrator!$D$13:$D$17,Illustrator!$Q$13:$Q$17)/SUM(Illustrator!$D$13:$D$17)*F145 ->  | H145: =-E145*Illustrator!$I$18 -> 0 | I145: =-F145*Illustrator!$C$31 -> 0 | J145: =IF(A145=A144,J144,J144*(1+Illustrator!$C$25)) -> 0 | L145: =-K145*(Illustrator!$L$18+Illustrator!$C$40)/12 ->  | M145: =IF(A145=A144,M144,M144*(1+Assumptions!$C$16)) -> 0 | N145: =IF((SUM('Admin fee calc'!$B$9:$B$9)*(1+'RIY Cashflows'!$D$8)^('RIY Cashflows'!B145/12)+'RIY Cashflows'!D145)*Assumptions!$B$12>Assumptions!$B$17,Assumptions!$B$17*D145/(D145+SUM('Admin fee calc'!$B$9:$B$9)),Assumptions!$B$12*'RIY Cashflows'!D145) ->  | O145: =-MAX(MAX(D145*Assumptions!$B$12/12,N145),M145)-D145*Illustrator!#REF! ->  | P145: =IF(A145=A144,P144,P144*(1+Assumptions!$C$17)) -> 1.898298558e+11 | Q145: =-K145*(Illustrator!$C$38)/12 ->  | R145: =-K145*(Illustrator!$C$39)/12 ->  | AM145: 2011-03-01 | AO145: 00:00:00 | AP145: 0 | AQ145: 0 | AR145: 0 | AS145: 0
A146: 12 | B146: 136 | C146: 2011-04-01 | E146: 0 | F146: =IF(A146=A145,F145,F145*(1+Illustrator!$C$23)) -> 0 | G146: =-SUMPRODUCT(Illustrator!$D$13:$D$17,Illustrator!$Q$13:$Q$17)/SUM(Illustrator!$D$13:$D$17)*F146 ->  | H146: =-E146*Illustrator!$I$18 -> 0 | I146: =-F146*Illustrator!$C$31 -> 0 | J146: =IF(A146=A145,J145,J145*(1+Illustrator!$C$25)) -> 0 | L146: =-K146*(Illustrator!$L$18+Illustrator!$C$40)/12 ->  | M146: =IF(A146=A145,M145,M145*(1+Assumptions!$C$16)) -> 0 | N146: =IF((SUM('Admin fee calc'!$B$9:$B$9)*(1+'RIY Cashflows'!$D$8)^('RIY Cashflows'!B146/12)+'RIY Cashflows'!D146)*Assumptions!$B$12>Assumptions!$B$17,Assumptions!$B$17*D146/(D146+SUM('Admin fee calc'!$B$9:$B$9)),Assumptions!$B$12*'RIY Cashflows'!D146) ->  | O146: =-MAX(MAX(D146*Assumptions!$B$12/12,N146),M146)-D146*Illustrator!#REF! ->  | P146: =IF(A146=A145,P145,P145*(1+Assumptions!$C$17)) -> 1.898298558e+11 | Q146: =-K146*(Illustrator!$C$38)/12 ->  | R146: =-K146*(Illustrator!$C$39)/12 ->  | AM146: 2011-04-01 | AO146: 00:00:00 | AP146: 0 | AQ146: 0 | AR146: 0 | AS146: 0
A147: 12 | B147: 137 | C147: 2011-05-01 | E147: 0 | F147: =IF(A147=A146,F146,F146*(1+Illustrator!$C$23)) -> 0 | G147: =-SUMPRODUCT(Illustrator!$D$13:$D$17,Illustrator!$Q$13:$Q$17)/SUM(Illustrator!$D$13:$D$17)*F147 ->  | H147: =-E147*Illustrator!$I$18 -> 0 | I147: =-F147*Illustrator!$C$31 -> 0 | J147: =IF(A147=A146,J146,J146*(1+Illustrator!$C$25)) -> 0 | L147: =-K147*(Illustrator!$L$18+Illustrator!$C$40)/12 ->  | M147: =IF(A147=A146,M146,M146*(1+Assumptions!$C$16)) -> 0 | N147: =IF((SUM('Admin fee calc'!$B$9:$B$9)*(1+'RIY Cashflows'!$D$8)^('RIY Cashflows'!B147/12)+'RIY Cashflows'!D147)*Assumptions!$B$12>Assumptions!$B$17,Assumptions!$B$17*D147/(D147+SUM('Admin fee calc'!$B$9:$B$9)),Assumptions!$B$12*'RIY Cashflows'!D147) ->  | O147: =-MAX(MAX(D147*Assumptions!$B$12/12,N147),M147)-D147*Illustrator!#REF! ->  | P147: =IF(A147=A146,P146,P146*(1+Assumptions!$C$17)) -> 1.898298558e+11 | Q147: =-K147*(Illustrator!$C$38)/12 ->  | R147: =-K147*(Illustrator!$C$39)/12 ->  | AM147: 2011-05-01 | AO147: 00:00:00 | AP147: 0 | AQ147: 0 | AR147: 0 | AS147: 0
A148: 12 | B148: 138 | C148: 2011-06-01 | E148: 0 | F148: =IF(A148=A147,F147,F147*(1+Illustrator!$C$23)) -> 0 | G148: =-SUMPRODUCT(Illustrator!$D$13:$D$17,Illustrator!$Q$13:$Q$17)/SUM(Illustrator!$D$13:$D$17)*F148 ->  | H148: =-E148*Illustrator!$I$18 -> 0 | I148: =-F148*Illustrator!$C$31 -> 0 | J148: =IF(A148=A147,J147,J147*(1+Illustrator!$C$25)) -> 0 | L148: =-K148*(Illustrator!$L$18+Illustrator!$C$40)/12 ->  | M148: =IF(A148=A147,M147,M147*(1+Assumptions!$C$16)) -> 0 | N148: =IF((SUM('Admin fee calc'!$B$9:$B$9)*(1+'RIY Cashflows'!$D$8)^('RIY Cashflows'!B148/12)+'RIY Cashflows'!D148)*Assumptions!$B$12>Assumptions!$B$17,Assumptions!$B$17*D148/(D148+SUM('Admin fee calc'!$B$9:$B$9)),Assumptions!$B$12*'RIY Cashflows'!D148) ->  | O148: =-MAX(MAX(D148*Assumptions!$B$12/12,N148),M148)-D148*Illustrator!#REF! ->  | P148: =IF(A148=A147,P147,P147*(1+Assumptions!$C$17)) -> 1.898298558e+11 | Q148: =-K148*(Illustrator!$C$38)/12 ->  | R148: =-K148*(Illustrator!$C$39)/12 ->  | AM148: 2011-06-01 | AO148: 00:00:00 | AP148: 0 | AQ148: 0 | AR148: 0 | AS148: 0
A149: 12 | B149: 139 | C149: 2011-07-01 | E149: 0 | F149: =IF(A149=A148,F148,F148*(1+Illustrator!$C$23)) -> 0 | G149: =-SUMPRODUCT(Illustrator!$D$13:$D$17,Illustrator!$Q$13:$Q$17)/SUM(Illustrator!$D$13:$D$17)*F149 ->  | H149: =-E149*Illustrator!$I$18 -> 0 | I149: =-F149*Illustrator!$C$31 -> 0 | J149: =IF(A149=A148,J148,J148*(1+Illustrator!$C$25)) -> 0 | L149: =-K149*(Illustrator!$L$18+Illustrator!$C$40)/12 ->  | M149: =IF(A149=A148,M148,M148*(1+Assumptions!$C$16)) -> 0 | N149: =IF((SUM('Admin fee calc'!$B$9:$B$9)*(1+'RIY Cashflows'!$D$8)^('RIY Cashflows'!B149/12)+'RIY Cashflows'!D149)*Assumptions!$B$12>Assumptions!$B$17,Assumptions!$B$17*D149/(D149+SUM('Admin fee calc'!$B$9:$B$9)),Assumptions!$B$12*'RIY Cashflows'!D149) ->  | O149: =-MAX(MAX(D149*Assumptions!$B$12/12,N149),M149)-D149*Illustrator!#REF! ->  | P149: =IF(A149=A148,P148,P148*(1+Assumptions!$C$17)) -> 1.898298558e+11 | Q149: =-K149*(Illustrator!$C$38)/12 ->  | R149: =-K149*(Illustrator!$C$39)/12 ->  | AM149: 2011-07-01 | AO149: 00:00:00 | AP149: 0 | AQ149: 0 | AR149: 0 | AS149: 0
A150: 12 | B150: 140 | C150: 2011-08-01 | E150: 0 | F150: =IF(A150=A149,F149,F149*(1+Illustrator!$C$23)) -> 0 | G150: =-SUMPRODUCT(Illustrator!$D$13:$D$17,Illustrator!$Q$13:$Q$17)/SUM(Illustrator!$D$13:$D$17)*F150 ->  | H150: =-E150*Illustrator!$I$18 -> 0 | I150: =-F150*Illustrator!$C$31 -> 0 | J150: =IF(A150=A149,J149,J149*(1+Illustrator!$C$25)) -> 0 | L150: =-K150*(Illustrator!$L$18+Illustrator!$C$40)/12 ->  | M150: =IF(A150=A149,M149,M149*(1+Assumptions!$C$16)) -> 0 | N150: =IF((SUM('Admin fee calc'!$B$9:$B$9)*(1+'RIY Cashflows'!$D$8)^('RIY Cashflows'!B150/12)+'RIY Cashflows'!D150)*Assumptions!$B$12>Assumptions!$B$17,Assumptions!$B$17*D150/(D150+SUM('Admin fee calc'!$B$9:$B$9)),Assumptions!$B$12*'RIY Cashflows'!D150) ->  | O150: =-MAX(MAX(D150*Assumptions!$B$12/12,N150),M150)-D150*Illustrator!#REF! ->  | P150: =IF(A150=A149,P149,P149*(1+Assumptions!$C$17)) -> 1.898298558e+11 | Q150: =-K150*(Illustrator!$C$38)/12 ->  | R150: =-K150*(Illustrator!$C$39)/12 ->  | AM150: 2011-08-01 | AO150: 00:00:00 | AP150: 0 | AQ150: 0 | AR150: 0 | AS150: 0
A151: 12 | B151: 141 | C151: 2011-09-01 | E151: 0 | F151: =IF(A151=A150,F150,F150*(1+Illustrator!$C$23)) -> 0 | G151: =-SUMPRODUCT(Illustrator!$D$13:$D$17,Illustrator!$Q$13:$Q$17)/SUM(Illustrator!$D$13:$D$17)*F151 ->  | H151: =-E151*Illustrator!$I$18 -> 0 | I151: =-F151*Illustrator!$C$31 -> 0 | J151: =IF(A151=A150,J150,J150*(1+Illustrator!$C$25)) -> 0 | L151: =-K151*(Illustrator!$L$18+Illustrator!$C$40)/12 ->  | M151: =IF(A151=A150,M150,M150*(1+Assumptions!$C$16)) -> 0 | N151: =IF((SUM('Admin fee calc'!$B$9:$B$9)*(1+'RIY Cashflows'!$D$8)^('RIY Cashflows'!B151/12)+'RIY Cashflows'!D151)*Assumptions!$B$12>Assumptions!$B$17,Assumptions!$B$17*D151/(D151+SUM('Admin fee calc'!$B$9:$B$9)),Assumptions!$B$12*'RIY Cashflows'!D151) ->  | O151: =-MAX(MAX(D151*Assumptions!$B$12/12,N151),M151)-D151*Illustrator!#REF! ->  | P151: =IF(A151=A150,P150,P150*(1+Assumptions!$C$17)) -> 1.898298558e+11 | Q151: =-K151*(Illustrator!$C$38)/12 ->  | R151: =-K151*(Illustrator!$C$39)/12 ->  | AM151: 2011-09-01 | AO151: 00:00:00 | AP151: 0 | AQ151: 0 | AR151: 0 | AS151: 0
A152: 12 | B152: 142 | C152: 2011-10-01 | E152: 0 | F152: =IF(A152=A151,F151,F151*(1+Illustrator!$C$23)) -> 0 | G152: =-SUMPRODUCT(Illustrator!$D$13:$D$17,Illustrator!$Q$13:$Q$17)/SUM(Illustrator!$D$13:$D$17)*F152 ->  | H152: =-E152*Illustrator!$I$18 -> 0 | I152: =-F152*Illustrator!$C$31 -> 0 | J152: =IF(A152=A151,J151,J151*(1+Illustrator!$C$25)) -> 0 | L152: =-K152*(Illustrator!$L$18+Illustrator!$C$40)/12 ->  | M152: =IF(A152=A151,M151,M151*(1+Assumptions!$C$16)) -> 0 | N152: =IF((SUM('Admin fee calc'!$B$9:$B$9)*(1+'RIY Cashflows'!$D$8)^('RIY Cashflows'!B152/12)+'RIY Cashflows'!D152)*Assumptions!$B$12>Assumptions!$B$17,Assumptions!$B$17*D152/(D152+SUM('Admin fee calc'!$B$9:$B$9)),Assumptions!$B$12*'RIY Cashflows'!D152) ->  | O152: =-MAX(MAX(D152*Assumptions!$B$12/12,N152),M152)-D152*Illustrator!#REF! ->  | P152: =IF(A152=A151,P151,P151*(1+Assumptions!$C$17)) -> 1.898298558e+11 | Q152: =-K152*(Illustrator!$C$38)/12 ->  | R152: =-K152*(Illustrator!$C$39)/12 ->  | AM152: 2011-10-01 | AO152: 00:00:00 | AP152: 0 | AQ152: 0 | AR152: 0 | AS152: 0
A153: 12 | B153: 143 | C153: 2011-11-01 | E153: 0 | F153: =IF(A153=A152,F152,F152*(1+Illustrator!$C$23)) -> 0 | G153: =-SUMPRODUCT(Illustrator!$D$13:$D$17,Illustrator!$Q$13:$Q$17)/SUM(Illustrator!$D$13:$D$17)*F153 ->  | H153: =-E153*Illustrator!$I$18 -> 0 | I153: =-F153*Illustrator!$C$31 -> 0 | J153: =IF(A153=A152,J152,J152*(1+Illustrator!$C$25)) -> 0 | L153: =-K153*(Illustrator!$L$18+Illustrator!$C$40)/12 ->  | M153: =IF(A153=A152,M152,M152*(1+Assumptions!$C$16)) -> 0 | N153: =IF((SUM('Admin fee calc'!$B$9:$B$9)*(1+'RIY Cashflows'!$D$8)^('RIY Cashflows'!B153/12)+'RIY Cashflows'!D153)*Assumptions!$B$12>Assumptions!$B$17,Assumptions!$B$17*D153/(D153+SUM('Admin fee calc'!$B$9:$B$9)),Assumptions!$B$12*'RIY Cashflows'!D153) ->  | O153: =-MAX(MAX(D153*Assumptions!$B$12/12,N153),M153)-D153*Illustrator!#REF! ->  | P153: =IF(A153=A152,P152,P152*(1+Assumptions!$C$17)) -> 1.898298558e+11 | Q153: =-K153*(Illustrator!$C$38)/12 ->  | R153: =-K153*(Illustrator!$C$39)/12 ->  | AM153: 2011-11-01 | AO153: 00:00:00 | AP153: 0 | AQ153: 0 | AR153: 0 | AS153: 0
A154: 12 | B154: 144 | C154: 2011-12-01 | E154: 0 | F154: =IF(A154=A153,F153,F153*(1+Illustrator!$C$23)) -> 0 | G154: =-SUMPRODUCT(Illustrator!$D$13:$D$17,Illustrator!$Q$13:$Q$17)/SUM(Illustrator!$D$13:$D$17)*F154 ->  | H154: =-E154*Illustrator!$I$18 -> 0 | I154: =-F154*Illustrator!$C$31 -> 0 | J154: =IF(A154=A153,J153,J153*(1+Illustrator!$C$25)) -> 0 | L154: =-K154*(Illustrator!$L$18+Illustrator!$C$40)/12 ->  | M154: =IF(A154=A153,M153,M153*(1+Assumptions!$C$16)) -> 0 | N154: =IF((SUM('Admin fee calc'!$B$9:$B$9)*(1+'RIY Cashflows'!$D$8)^('RIY Cashflows'!B154/12)+'RIY Cashflows'!D154)*Assumptions!$B$12>Assumptions!$B$17,Assumptions!$B$17*D154/(D154+SUM('Admin fee calc'!$B$9:$B$9)),Assumptions!$B$12*'RIY Cashflows'!D154) ->  | O154: =-MAX(MAX(D154*Assumptions!$B$12/12,N154),M154)-D154*Illustrator!#REF! ->  | P154: =IF(A154=A153,P153,P153*(1+Assumptions!$C$17)) -> 1.898298558e+11 | Q154: =-K154*(Illustrator!$C$38)/12 ->  | R154: =-K154*(Illustrator!$C$39)/12 ->  | AM154: 2011-12-01 | AO154: 00:00:00 | AP154: 0 | AQ154: 0 | AR154: 0 | AS154: 0
A155: 13 | B155: 145 | C155: 2012-01-01 | E155: 0 | F155: =IF(A155=A154,F154,F154*(1+Illustrator!$C$23)) -> 0 | G155: =-SUMPRODUCT(Illustrator!$D$13:$D$17,Illustrator!$Q$13:$Q$17)/SUM(Illustrator!$D$13:$D$17)*F155 ->  | H155: =-E155*Illustrator!$I$18 -> 0 | I155: =-F155*Illustrator!$C$31 -> 0 | J155: =IF(A155=A154,J154,J154*(1+Illustrator!$C$25)) -> 0 | L155: =-K155*(Illustrator!$L$18+Illustrator!$C$40)/12 ->  | M155: =IF(A155=A154,M154,M154*(1+Assumptions!$C$16)) -> 0 | N155: =IF((SUM('Admin fee calc'!$B$9:$B$9)*(1+'RIY Cashflows'!$D$8)^('RIY Cashflows'!B155/12)+'RIY Cashflows'!D155)*Assumptions!$B$12>Assumptions!$B$17,Assumptions!$B$17*D155/(D155+SUM('Admin fee calc'!$B$9:$B$9)),Assumptions!$B$12*'RIY Cashflows'!D155) ->  | O155: =-MAX(MAX(D155*Assumptions!$B$12/12,N155),M155)-D155*Illustrator!#REF! ->  | P155: =IF(A155=A154,P154,P154*(1+Assumptions!$C$17)) -> 2.012196472e+11 | Q155: =-K155*(Illustrator!$C$38)/12 ->  | R155: =-K155*(Illustrator!$C$39)/12 ->  | AM155: 2012-01-01 | AO155: 00:00:00 | AP155: 0 | AQ155: 0 | AR155: 0 | AS155: 0
A156: 13 | B156: 146 | C156: 2012-02-01 | E156: 0 | F156: =IF(A156=A155,F155,F155*(1+Illustrator!$C$23)) -> 0 | G156: =-SUMPRODUCT(Illustrator!$D$13:$D$17,Illustrator!$Q$13:$Q$17)/SUM(Illustrator!$D$13:$D$17)*F156 ->  | H156: =-E156*Illustrator!$I$18 -> 0 | I156: =-F156*Illustrator!$C$31 -> 0 | J156: =IF(A156=A155,J155,J155*(1+Illustrator!$C$25)) -> 0 | L156: =-K156*(Illustrator!$L$18+Illustrator!$C$40)/12 ->  | M156: =IF(A156=A155,M155,M155*(1+Assumptions!$C$16)) -> 0 | N156: =IF((SUM('Admin fee calc'!$B$9:$B$9)*(1+'RIY Cashflows'!$D$8)^('RIY Cashflows'!B156/12)+'RIY Cashflows'!D156)*Assumptions!$B$12>Assumptions!$B$17,Assumptions!$B$17*D156/(D156+SUM('Admin fee calc'!$B$9:$B$9)),Assumptions!$B$12*'RIY Cashflows'!D156) ->  | O156: =-MAX(MAX(D156*Assumptions!$B$12/12,N156),M156)-D156*Illustrator!#REF! ->  | P156: =IF(A156=A155,P155,P155*(1+Assumptions!$C$17)) -> 2.012196472e+11 | Q156: =-K156*(Illustrator!$C$38)/12 ->  | R156: =-K156*(Illustrator!$C$39)/12 ->  | AM156: 2012-02-01 | AO156: 00:00:00 | AP156: 0 | AQ156: 0 | AR156: 0 | AS156: 0
A157: 13 | B157: 147 | C157: 2012-03-01 | E157: 0 | F157: =IF(A157=A156,F156,F156*(1+Illustrator!$C$23)) -> 0 | G157: =-SUMPRODUCT(Illustrator!$D$13:$D$17,Illustrator!$Q$13:$Q$17)/SUM(Illustrator!$D$13:$D$17)*F157 ->  | H157: =-E157*Illustrator!$I$18 -> 0 | I157: =-F157*Illustrator!$C$31 -> 0 | J157: =IF(A157=A156,J156,J156*(1+Illustrator!$C$25)) -> 0 | L157: =-K157*(Illustrator!$L$18+Illustrator!$C$40)/12 ->  | M157: =IF(A157=A156,M156,M156*(1+Assumptions!$C$16)) -> 0 | N157: =IF((SUM('Admin fee calc'!$B$9:$B$9)*(1+'RIY Cashflows'!$D$8)^('RIY Cashflows'!B157/12)+'RIY Cashflows'!D157)*Assumptions!$B$12>Assumptions!$B$17,Assumptions!$B$17*D157/(D157+SUM('Admin fee calc'!$B$9:$B$9)),Assumptions!$B$12*'RIY Cashflows'!D157) ->  | O157: =-MAX(MAX(D157*Assumptions!$B$12/12,N157),M157)-D157*Illustrator!#REF! ->  | P157: =IF(A157=A156,P156,P156*(1+Assumptions!$C$17)) -> 2.012196472e+11 | Q157: =-K157*(Illustrator!$C$38)/12 ->  | R157: =-K157*(Illustrator!$C$39)/12 ->  | AM157: 2012-03-01 | AO157: 00:00:00 | AP157: 0 | AQ157: 0 | AR157: 0 | AS157: 0
A158: 13 | B158: 148 | C158: 2012-04-01 | E158: 0 | F158: =IF(A158=A157,F157,F157*(1+Illustrator!$C$23)) -> 0 | G158: =-SUMPRODUCT(Illustrator!$D$13:$D$17,Illustrator!$Q$13:$Q$17)/SUM(Illustrator!$D$13:$D$17)*F158 ->  | H158: =-E158*Illustrator!$I$18 -> 0 | I158: =-F158*Illustrator!$C$31 -> 0 | J158: =IF(A158=A157,J157,J157*(1+Illustrator!$C$25)) -> 0 | L158: =-K158*(Illustrator!$L$18+Illustrator!$C$40)/12 ->  | M158: =IF(A158=A157,M157,M157*(1+Assumptions!$C$16)) -> 0 | N158: =IF((SUM('Admin fee calc'!$B$9:$B$9)*(1+'RIY Cashflows'!$D$8)^('RIY Cashflows'!B158/12)+'RIY Cashflows'!D158)*Assumptions!$B$12>Assumptions!$B$17,Assumptions!$B$17*D158/(D158+SUM('Admin fee calc'!$B$9:$B$9)),Assumptions!$B$12*'RIY Cashflows'!D158) ->  | O158: =-MAX(MAX(D158*Assumptions!$B$12/12,N158),M158)-D158*Illustrator!#REF! ->  | P158: =IF(A158=A157,P157,P157*(1+Assumptions!$C$17)) -> 2.012196472e+11 | Q158: =-K158*(Illustrator!$C$38)/12 ->  | R158: =-K158*(Illustrator!$C$39)/12 ->  | AM158: 2012-04-01 | AO158: 00:00:00 | AP158: 0 | AQ158: 0 | AR158: 0 | AS158: 0
A159: 13 | B159: 149 | C159: 2012-05-01 | E159: 0 | F159: =IF(A159=A158,F158,F158*(1+Illustrator!$C$23)) -> 0 | G159: =-SUMPRODUCT(Illustrator!$D$13:$D$17,Illustrator!$Q$13:$Q$17)/SUM(Illustrator!$D$13:$D$17)*F159 ->  | H159: =-E159*Illustrator!$I$18 -> 0 | I159: =-F159*Illustrator!$C$31 -> 0 | J159: =IF(A159=A158,J158,J158*(1+Illustrator!$C$25)) -> 0 | L159: =-K159*(Illustrator!$L$18+Illustrator!$C$40)/12 ->  | M159: =IF(A159=A158,M158,M158*(1+Assumptions!$C$16)) -> 0 | N159: =IF((SUM('Admin fee calc'!$B$9:$B$9)*(1+'RIY Cashflows'!$D$8)^('RIY Cashflows'!B159/12)+'RIY Cashflows'!D159)*Assumptions!$B$12>Assumptions!$B$17,Assumptions!$B$17*D159/(D159+SUM('Admin fee calc'!$B$9:$B$9)),Assumptions!$B$12*'RIY Cashflows'!D159) ->  | O159: =-MAX(MAX(D159*Assumptions!$B$12/12,N159),M159)-D159*Illustrator!#REF! ->  | P159: =IF(A159=A158,P158,P158*(1+Assumptions!$C$17)) -> 2.012196472e+11 | Q159: =-K159*(Illustrator!$C$38)/12 ->  | R159: =-K159*(Illustrator!$C$39)/12 ->  | AM159: 2012-05-01 | AO159: 00:00:00 | AP159: 0 | AQ159: 0 | AR159: 0 | AS159: 0
A160: 13 | B160: 150 | C160: 2012-06-01 | E160: 0 | F160: =IF(A160=A159,F159,F159*(1+Illustrator!$C$23)) -> 0 | G160: =-SUMPRODUCT(Illustrator!$D$13:$D$17,Illustrator!$Q$13:$Q$17)/SUM(Illustrator!$D$13:$D$17)*F160 ->  | H160: =-E160*Illustrator!$I$18 -> 0 | I160: =-F160*Illustrator!$C$31 -> 0 | J160: =IF(A160=A159,J159,J159*(1+Illustrator!$C$25)) -> 0 | L160: =-K160*(Illustrator!$L$18+Illustrator!$C$40)/12 ->  | M160: =IF(A160=A159,M159,M159*(1+Assumptions!$C$16)) -> 0 | N160: =IF((SUM('Admin fee calc'!$B$9:$B$9)*(1+'RIY Cashflows'!$D$8)^('RIY Cashflows'!B160/12)+'RIY Cashflows'!D160)*Assumptions!$B$12>Assumptions!$B$17,Assumptions!$B$17*D160/(D160+SUM('Admin fee calc'!$B$9:$B$9)),Assumptions!$B$12*'RIY Cashflows'!D160) ->  | O160: =-MAX(MAX(D160*Assumptions!$B$12/12,N160),M160)-D160*Illustrator!#REF! ->  | P160: =IF(A160=A159,P159,P159*(1+Assumptions!$C$17)) -> 2.012196472e+11 | Q160: =-K160*(Illustrator!$C$38)/12 ->  | R160: =-K160*(Illustrator!$C$39)/12 ->  | AM160: 2012-06-01 | AO160: 00:00:00 | AP160: 0 | AQ160: 0 | AR160: 0 | AS160: 0
A161: 13 | B161: 151 | C161: 2012-07-01 | E161: 0 | F161: =IF(A161=A160,F160,F160*(1+Illustrator!$C$23)) -> 0 | G161: =-SUMPRODUCT(Illustrator!$D$13:$D$17,Illustrator!$Q$13:$Q$17)/SUM(Illustrator!$D$13:$D$17)*F161 ->  | H161: =-E161*Illustrator!$I$18 -> 0 | I161: =-F161*Illustrator!$C$31 -> 0 | J161: =IF(A161=A160,J160,J160*(1+Illustrator!$C$25)) -> 0 | L161: =-K161*(Illustrator!$L$18+Illustrator!$C$40)/12 ->  | M161: =IF(A161=A160,M160,M160*(1+Assumptions!$C$16)) -> 0 | N161: =IF((SUM('Admin fee calc'!$B$9:$B$9)*(1+'RIY Cashflows'!$D$8)^('RIY Cashflows'!B161/12)+'RIY Cashflows'!D161)*Assumptions!$B$12>Assumptions!$B$17,Assumptions!$B$17*D161/(D161+SUM('Admin fee calc'!$B$9:$B$9)),Assumptions!$B$12*'RIY Cashflows'!D161) ->  | O161: =-MAX(MAX(D161*Assumptions!$B$12/12,N161),M161)-D161*Illustrator!#REF! ->  | P161: =IF(A161=A160,P160,P160*(1+Assumptions!$C$17)) -> 2.012196472e+11 | Q161: =-K161*(Illustrator!$C$38)/12 ->  | R161: =-K161*(Illustrator!$C$39)/12 ->  | AM161: 2012-07-01 | AO161: 00:00:00 | AP161: 0 | AQ161: 0 | AR161: 0 | AS161: 0
A162: 13 | B162: 152 | C162: 2012-08-01 | E162: 0 | F162: =IF(A162=A161,F161,F161*(1+Illustrator!$C$23)) -> 0 | G162: =-SUMPRODUCT(Illustrator!$D$13:$D$17,Illustrator!$Q$13:$Q$17)/SUM(Illustrator!$D$13:$D$17)*F162 ->  | H162: =-E162*Illustrator!$I$18 -> 0 | I162: =-F162*Illustrator!$C$31 -> 0 | J162: =IF(A162=A161,J161,J161*(1+Illustrator!$C$25)) -> 0 | L162: =-K162*(Illustrator!$L$18+Illustrator!$C$40)/12 ->  | M162: =IF(A162=A161,M161,M161*(1+Assumptions!$C$16)) -> 0 | N162: =IF((SUM('Admin fee calc'!$B$9:$B$9)*(1+'RIY Cashflows'!$D$8)^('RIY Cashflows'!B162/12)+'RIY Cashflows'!D162)*Assumptions!$B$12>Assumptions!$B$17,Assumptions!$B$17*D162/(D162+SUM('Admin fee calc'!$B$9:$B$9)),Assumptions!$B$12*'RIY Cashflows'!D162) ->  | O162: =-MAX(MAX(D162*Assumptions!$B$12/12,N162),M162)-D162*Illustrator!#REF! ->  | P162: =IF(A162=A161,P161,P161*(1+Assumptions!$C$17)) -> 2.012196472e+11 | Q162: =-K162*(Illustrator!$C$38)/12 ->  | R162: =-K162*(Illustrator!$C$39)/12 ->  | AM162: 2012-08-01 | AO162: 00:00:00 | AP162: 0 | AQ162: 0 | AR162: 0 | AS162: 0
A163: 13 | B163: 153 | C163: 2012-09-01 | E163: 0 | F163: =IF(A163=A162,F162,F162*(1+Illustrator!$C$23)) -> 0 | G163: =-SUMPRODUCT(Illustrator!$D$13:$D$17,Illustrator!$Q$13:$Q$17)/SUM(Illustrator!$D$13:$D$17)*F163 ->  | H163: =-E163*Illustrator!$I$18 -> 0 | I163: =-F163*Illustrator!$C$31 -> 0 | J163: =IF(A163=A162,J162,J162*(1+Illustrator!$C$25)) -> 0 | L163: =-K163*(Illustrator!$L$18+Illustrator!$C$40)/12 ->  | M163: =IF(A163=A162,M162,M162*(1+Assumptions!$C$16)) -> 0 | N163: =IF((SUM('Admin fee calc'!$B$9:$B$9)*(1+'RIY Cashflows'!$D$8)^('RIY Cashflows'!B163/12)+'RIY Cashflows'!D163)*Assumptions!$B$12>Assumptions!$B$17,Assumptions!$B$17*D163/(D163+SUM('Admin fee calc'!$B$9:$B$9)),Assumptions!$B$12*'RIY Cashflows'!D163) ->  | O163: =-MAX(MAX(D163*Assumptions!$B$12/12,N163),M163)-D163*Illustrator!#REF! ->  | P163: =IF(A163=A162,P162,P162*(1+Assumptions!$C$17)) -> 2.012196472e+11 | Q163: =-K163*(Illustrator!$C$38)/12 ->  | R163: =-K163*(Illustrator!$C$39)/12 ->  | AM163: 2012-09-01 | AO163: 00:00:00 | AP163: 0 | AQ163: 0 | AR163: 0 | AS163: 0
A164: 13 | B164: 154 | C164: 2012-10-01 | E164: 0 | F164: =IF(A164=A163,F163,F163*(1+Illustrator!$C$23)) -> 0 | G164: =-SUMPRODUCT(Illustrator!$D$13:$D$17,Illustrator!$Q$13:$Q$17)/SUM(Illustrator!$D$13:$D$17)*F164 ->  | H164: =-E164*Illustrator!$I$18 -> 0 | I164: =-F164*Illustrator!$C$31 -> 0 | J164: =IF(A164=A163,J163,J163*(1+Illustrator!$C$25)) -> 0 | L164: =-K164*(Illustrator!$L$18+Illustrator!$C$40)/12 ->  | M164: =IF(A164=A163,M163,M163*(1+Assumptions!$C$16)) -> 0 | N164: =IF((SUM('Admin fee calc'!$B$9:$B$9)*(1+'RIY Cashflows'!$D$8)^('RIY Cashflows'!B164/12)+'RIY Cashflows'!D164)*Assumptions!$B$12>Assumptions!$B$17,Assumptions!$B$17*D164/(D164+SUM('Admin fee calc'!$B$9:$B$9)),Assumptions!$B$12*'RIY Cashflows'!D164) ->  | O164: =-MAX(MAX(D164*Assumptions!$B$12/12,N164),M164)-D164*Illustrator!#REF! ->  | P164: =IF(A164=A163,P163,P163*(1+Assumptions!$C$17)) -> 2.012196472e+11 | Q164: =-K164*(Illustrator!$C$38)/12 ->  | R164: =-K164*(Illustrator!$C$39)/12 ->  | AM164: 2012-10-01 | AO164: 00:00:00 | AP164: 0 | AQ164: 0 | AR164: 0 | AS164: 0
A165: 13 | B165: 155 | C165: 2012-11-01 | E165: 0 | F165: =IF(A165=A164,F164,F164*(1+Illustrator!$C$23)) -> 0 | G165: =-SUMPRODUCT(Illustrator!$D$13:$D$17,Illustrator!$Q$13:$Q$17)/SUM(Illustrator!$D$13:$D$17)*F165 ->  | H165: =-E165*Illustrator!$I$18 -> 0 | I165: =-F165*Illustrator!$C$31 -> 0 | J165: =IF(A165=A164,J164,J164*(1+Illustrator!$C$25)) -> 0 | L165: =-K165*(Illustrator!$L$18+Illustrator!$C$40)/12 ->  | M165: =IF(A165=A164,M164,M164*(1+Assumptions!$C$16)) -> 0 | N165: =IF((SUM('Admin fee calc'!$B$9:$B$9)*(1+'RIY Cashflows'!$D$8)^('RIY Cashflows'!B165/12)+'RIY Cashflows'!D165)*Assumptions!$B$12>Assumptions!$B$17,Assumptions!$B$17*D165/(D165+SUM('Admin fee calc'!$B$9:$B$9)),Assumptions!$B$12*'RIY Cashflows'!D165) ->  | O165: =-MAX(MAX(D165*Assumptions!$B$12/12,N165),M165)-D165*Illustrator!#REF! ->  | P165: =IF(A165=A164,P164,P164*(1+Assumptions!$C$17)) -> 2.012196472e+11 | Q165: =-K165*(Illustrator!$C$38)/12 ->  | R165: =-K165*(Illustrator!$C$39)/12 ->  | AM165: 2012-11-01 | AO165: 00:00:00 | AP165: 0 | AQ165: 0 | AR165: 0 | AS165: 0
A166: 13 | B166: 156 | C166: 2012-12-01 | E166: 0 | F166: =IF(A166=A165,F165,F165*(1+Illustrator!$C$23)) -> 0 | G166: =-SUMPRODUCT(Illustrator!$D$13:$D$17,Illustrator!$Q$13:$Q$17)/SUM(Illustrator!$D$13:$D$17)*F166 ->  | H166: =-E166*Illustrator!$I$18 -> 0 | I166: =-F166*Illustrator!$C$31 -> 0 | J166: =IF(A166=A165,J165,J165*(1+Illustrator!$C$25)) -> 0 | L166: =-K166*(Illustrator!$L$18+Illustrator!$C$40)/12 ->  | M166: =IF(A166=A165,M165,M165*(1+Assumptions!$C$16)) -> 0 | N166: =IF((SUM('Admin fee calc'!$B$9:$B$9)*(1+'RIY Cashflows'!$D$8)^('RIY Cashflows'!B166/12)+'RIY Cashflows'!D166)*Assumptions!$B$12>Assumptions!$B$17,Assumptions!$B$17*D166/(D166+SUM('Admin fee calc'!$B$9:$B$9)),Assumptions!$B$12*'RIY Cashflows'!D166) ->  | O166: =-MAX(MAX(D166*Assumptions!$B$12/12,N166),M166)-D166*Illustrator!#REF! ->  | P166: =IF(A166=A165,P165,P165*(1+Assumptions!$C$17)) -> 2.012196472e+11 | Q166: =-K166*(Illustrator!$C$38)/12 ->  | R166: =-K166*(Illustrator!$C$39)/12 ->  | AM166: 2012-12-01 | AO166: 00:00:00 | AP166: 0 | AQ166: 0 | AR166: 0 | AS166: 0
A167: 14 | B167: 157 | C167: 2013-01-01 | E167: 0 | F167: =IF(A167=A166,F166,F166*(1+Illustrator!$C$23)) -> 0 | G167: =-SUMPRODUCT(Illustrator!$D$13:$D$17,Illustrator!$Q$13:$Q$17)/SUM(Illustrator!$D$13:$D$17)*F167 ->  | H167: =-E167*Illustrator!$I$18 -> 0 | I167: =-F167*Illustrator!$C$31 -> 0 | J167: =IF(A167=A166,J166,J166*(1+Illustrator!$C$25)) -> 0 | L167: =-K167*(Illustrator!$L$18+Illustrator!$C$40)/12 ->  | M167: =IF(A167=A166,M166,M166*(1+Assumptions!$C$16)) -> 0 | N167: =IF((SUM('Admin fee calc'!$B$9:$B$9)*(1+'RIY Cashflows'!$D$8)^('RIY Cashflows'!B167/12)+'RIY Cashflows'!D167)*Assumptions!$B$12>Assumptions!$B$17,Assumptions!$B$17*D167/(D167+SUM('Admin fee calc'!$B$9:$B$9)),Assumptions!$B$12*'RIY Cashflows'!D167) ->  | O167: =-MAX(MAX(D167*Assumptions!$B$12/12,N167),M167)-D167*Illustrator!#REF! ->  | P167: =IF(A167=A166,P166,P166*(1+Assumptions!$C$17)) -> 2.13292826e+11 | Q167: =-K167*(Illustrator!$C$38)/12 ->  | R167: =-K167*(Illustrator!$C$39)/12 ->  | AM167: 2013-01-01 | AO167: 00:00:00 | AP167: 0 | AQ167: 0 | AR167: 0 | AS167: 0
A168: 14 | B168: 158 | C168: 2013-02-01 | E168: 0 | F168: =IF(A168=A167,F167,F167*(1+Illustrator!$C$23)) -> 0 | G168: =-SUMPRODUCT(Illustrator!$D$13:$D$17,Illustrator!$Q$13:$Q$17)/SUM(Illustrator!$D$13:$D$17)*F168 ->  | H168: =-E168*Illustrator!$I$18 -> 0 | I168: =-F168*Illustrator!$C$31 -> 0 | J168: =IF(A168=A167,J167,J167*(1+Illustrator!$C$25)) -> 0 | L168: =-K168*(Illustrator!$L$18+Illustrator!$C$40)/12 ->  | M168: =IF(A168=A167,M167,M167*(1+Assumptions!$C$16)) -> 0 | N168: =IF((SUM('Admin fee calc'!$B$9:$B$9)*(1+'RIY Cashflows'!$D$8)^('RIY Cashflows'!B168/12)+'RIY Cashflows'!D168)*Assumptions!$B$12>Assumptions!$B$17,Assumptions!$B$17*D168/(D168+SUM('Admin fee calc'!$B$9:$B$9)),Assumptions!$B$12*'RIY Cashflows'!D168) ->  | O168: =-MAX(MAX(D168*Assumptions!$B$12/12,N168),M168)-D168*Illustrator!#REF! ->  | P168: =IF(A168=A167,P167,P167*(1+Assumptions!$C$17)) -> 2.13292826e+11 | Q168: =-K168*(Illustrator!$C$38)/12 ->  | R168: =-K168*(Illustrator!$C$39)/12 ->  | AM168: 2013-02-01 | AO168: 00:00:00 | AP168: 0 | AQ168: 0 | AR168: 0 | AS168: 0
A169: 14 | B169: 159 | C169: 2013-03-01 | E169: 0 | F169: =IF(A169=A168,F168,F168*(1+Illustrator!$C$23)) -> 0 | G169: =-SUMPRODUCT(Illustrator!$D$13:$D$17,Illustrator!$Q$13:$Q$17)/SUM(Illustrator!$D$13:$D$17)*F169 ->  | H169: =-E169*Illustrator!$I$18 -> 0 | I169: =-F169*Illustrator!$C$31 -> 0 | J169: =IF(A169=A168,J168,J168*(1+Illustrator!$C$25)) -> 0 | L169: =-K169*(Illustrator!$L$18+Illustrator!$C$40)/12 ->  | M169: =IF(A169=A168,M168,M168*(1+Assumptions!$C$16)) -> 0 | N169: =IF((SUM('Admin fee calc'!$B$9:$B$9)*(1+'RIY Cashflows'!$D$8)^('RIY Cashflows'!B169/12)+'RIY Cashflows'!D169)*Assumptions!$B$12>Assumptions!$B$17,Assumptions!$B$17*D169/(D169+SUM('Admin fee calc'!$B$9:$B$9)),Assumptions!$B$12*'RIY Cashflows'!D169) ->  | O169: =-MAX(MAX(D169*Assumptions!$B$12/12,N169),M169)-D169*Illustrator!#REF! ->  | P169: =IF(A169=A168,P168,P168*(1+Assumptions!$C$17)) -> 2.13292826e+11 | Q169: =-K169*(Illustrator!$C$38)/12 ->  | R169: =-K169*(Illustrator!$C$39)/12 ->  | AM169: 2013-03-01 | AO169: 00:00:00 | AP169: 0 | AQ169: 0 | AR169: 0 | AS169: 0
A170: 14 | B170: 160 | C170: 2013-04-01 | E170: 0 | F170: =IF(A170=A169,F169,F169*(1+Illustrator!$C$23)) -> 0 | G170: =-SUMPRODUCT(Illustrator!$D$13:$D$17,Illustrator!$Q$13:$Q$17)/SUM(Illustrator!$D$13:$D$17)*F170 ->  | H170: =-E170*Illustrator!$I$18 -> 0 | I170: =-F170*Illustrator!$C$31 -> 0 | J170: =IF(A170=A169,J169,J169*(1+Illustrator!$C$25)) -> 0 | L170: =-K170*(Illustrator!$L$18+Illustrator!$C$40)/12 ->  | M170: =IF(A170=A169,M169,M169*(1+Assumptions!$C$16)) -> 0 | N170: =IF((SUM('Admin fee calc'!$B$9:$B$9)*(1+'RIY Cashflows'!$D$8)^('RIY Cashflows'!B170/12)+'RIY Cashflows'!D170)*Assumptions!$B$12>Assumptions!$B$17,Assumptions!$B$17*D170/(D170+SUM('Admin fee calc'!$B$9:$B$9)),Assumptions!$B$12*'RIY Cashflows'!D170) ->  | O170: =-MAX(MAX(D170*Assumptions!$B$12/12,N170),M170)-D170*Illustrator!#REF! ->  | P170: =IF(A170=A169,P169,P169*(1+Assumptions!$C$17)) -> 2.13292826e+11 | Q170: =-K170*(Illustrator!$C$38)/12 ->  | R170: =-K170*(Illustrator!$C$39)/12 ->  | AM170: 2013-04-01 | AO170: 00:00:00 | AP170: 0 | AQ170: 0 | AR170: 0 | AS170: 0
A171: 14 | B171: 161 | C171: 2013-05-01 | E171: 0 | F171: =IF(A171=A170,F170,F170*(1+Illustrator!$C$23)) -> 0 | G171: =-SUMPRODUCT(Illustrator!$D$13:$D$17,Illustrator!$Q$13:$Q$17)/SUM(Illustrator!$D$13:$D$17)*F171 ->  | H171: =-E171*Illustrator!$I$18 -> 0 | I171: =-F171*Illustrator!$C$31 -> 0 | J171: =IF(A171=A170,J170,J170*(1+Illustrator!$C$25)) -> 0 | L171: =-K171*(Illustrator!$L$18+Illustrator!$C$40)/12 ->  | M171: =IF(A171=A170,M170,M170*(1+Assumptions!$C$16)) -> 0 | N171: =IF((SUM('Admin fee calc'!$B$9:$B$9)*(1+'RIY Cashflows'!$D$8)^('RIY Cashflows'!B171/12)+'RIY Cashflows'!D171)*Assumptions!$B$12>Assumptions!$B$17,Assumptions!$B$17*D171/(D171+SUM('Admin fee calc'!$B$9:$B$9)),Assumptions!$B$12*'RIY Cashflows'!D171) ->  | O171: =-MAX(MAX(D171*Assumptions!$B$12/12,N171),M171)-D171*Illustrator!#REF! ->  | P171: =IF(A171=A170,P170,P170*(1+Assumptions!$C$17)) -> 2.13292826e+11 | Q171: =-K171*(Illustrator!$C$38)/12 ->  | R171: =-K171*(Illustrator!$C$39)/12 ->  | AM171: 2013-05-01 | AO171: 00:00:00 | AP171: 0 | AQ171: 0 | AR171: 0 | AS171: 0
A172: 14 | B172: 162 | C172: 2013-06-01 | E172: 0 | F172: =IF(A172=A171,F171,F171*(1+Illustrator!$C$23)) -> 0 | G172: =-SUMPRODUCT(Illustrator!$D$13:$D$17,Illustrator!$Q$13:$Q$17)/SUM(Illustrator!$D$13:$D$17)*F172 ->  | H172: =-E172*Illustrator!$I$18 -> 0 | I172: =-F172*Illustrator!$C$31 -> 0 | J172: =IF(A172=A171,J171,J171*(1+Illustrator!$C$25)) -> 0 | L172: =-K172*(Illustrator!$L$18+Illustrator!$C$40)/12 ->  | M172: =IF(A172=A171,M171,M171*(1+Assumptions!$C$16)) -> 0 | N172: =IF((SUM('Admin fee calc'!$B$9:$B$9)*(1+'RIY Cashflows'!$D$8)^('RIY Cashflows'!B172/12)+'RIY Cashflows'!D172)*Assumptions!$B$12>Assumptions!$B$17,Assumptions!$B$17*D172/(D172+SUM('Admin fee calc'!$B$9:$B$9)),Assumptions!$B$12*'RIY Cashflows'!D172) ->  | O172: =-MAX(MAX(D172*Assumptions!$B$12/12,N172),M172)-D172*Illustrator!#REF! ->  | P172: =IF(A172=A171,P171,P171*(1+Assumptions!$C$17)) -> 2.13292826e+11 | Q172: =-K172*(Illustrator!$C$38)/12 ->  | R172: =-K172*(Illustrator!$C$39)/12 ->  | AM172: 2013-06-01 | AO172: 00:00:00 | AP172: 0 | AQ172: 0 | AR172: 0 | AS172: 0
A173: 14 | B173: 163 | C173: 2013-07-01 | E173: 0 | F173: =IF(A173=A172,F172,F172*(1+Illustrator!$C$23)) -> 0 | G173: =-SUMPRODUCT(Illustrator!$D$13:$D$17,Illustrator!$Q$13:$Q$17)/SUM(Illustrator!$D$13:$D$17)*F173 ->  | H173: =-E173*Illustrator!$I$18 -> 0 | I173: =-F173*Illustrator!$C$31 -> 0 | J173: =IF(A173=A172,J172,J172*(1+Illustrator!$C$25)) -> 0 | L173: =-K173*(Illustrator!$L$18+Illustrator!$C$40)/12 ->  | M173: =IF(A173=A172,M172,M172*(1+Assumptions!$C$16)) -> 0 | N173: =IF((SUM('Admin fee calc'!$B$9:$B$9)*(1+'RIY Cashflows'!$D$8)^('RIY Cashflows'!B173/12)+'RIY Cashflows'!D173)*Assumptions!$B$12>Assumptions!$B$17,Assumptions!$B$17*D173/(D173+SUM('Admin fee calc'!$B$9:$B$9)),Assumptions!$B$12*'RIY Cashflows'!D173) ->  | O173: =-MAX(MAX(D173*Assumptions!$B$12/12,N173),M173)-D173*Illustrator!#REF! ->  | P173: =IF(A173=A172,P172,P172*(1+Assumptions!$C$17)) -> 2.13292826e+11 | Q173: =-K173*(Illustrator!$C$38)/12 ->  | R173: =-K173*(Illustrator!$C$39)/12 ->  | AM173: 2013-07-01 | AO173: 00:00:00 | AP173: 0 | AQ173: 0 | AR173: 0 | AS173: 0
A174: 14 | B174: 164 | C174: 2013-08-01 | E174: 0 | F174: =IF(A174=A173,F173,F173*(1+Illustrator!$C$23)) -> 0 | G174: =-SUMPRODUCT(Illustrator!$D$13:$D$17,Illustrator!$Q$13:$Q$17)/SUM(Illustrator!$D$13:$D$17)*F174 ->  | H174: =-E174*Illustrator!$I$18 -> 0 | I174: =-F174*Illustrator!$C$31 -> 0 | J174: =IF(A174=A173,J173,J173*(1+Illustrator!$C$25)) -> 0 | L174: =-K174*(Illustrator!$L$18+Illustrator!$C$40)/12 ->  | M174: =IF(A174=A173,M173,M173*(1+Assumptions!$C$16)) -> 0 | N174: =IF((SUM('Admin fee calc'!$B$9:$B$9)*(1+'RIY Cashflows'!$D$8)^('RIY Cashflows'!B174/12)+'RIY Cashflows'!D174)*Assumptions!$B$12>Assumptions!$B$17,Assumptions!$B$17*D174/(D174+SUM('Admin fee calc'!$B$9:$B$9)),Assumptions!$B$12*'RIY Cashflows'!D174) ->  | O174: =-MAX(MAX(D174*Assumptions!$B$12/12,N174),M174)-D174*Illustrator!#REF! ->  | P174: =IF(A174=A173,P173,P173*(1+Assumptions!$C$17)) -> 2.13292826e+11 | Q174: =-K174*(Illustrator!$C$38)/12 ->  | R174: =-K174*(Illustrator!$C$39)/12 ->  | AM174: 2013-08-01 | AO174: 00:00:00 | AP174: 0 | AQ174: 0 | AR174: 0 | AS174: 0
A175: 14 | B175: 165 | C175: 2013-09-01 | E175: 0 | F175: =IF(A175=A174,F174,F174*(1+Illustrator!$C$23)) -> 0 | G175: =-SUMPRODUCT(Illustrator!$D$13:$D$17,Illustrator!$Q$13:$Q$17)/SUM(Illustrator!$D$13:$D$17)*F175 ->  | H175: =-E175*Illustrator!$I$18 -> 0 | I175: =-F175*Illustrator!$C$31 -> 0 | J175: =IF(A175=A174,J174,J174*(1+Illustrator!$C$25)) -> 0 | L175: =-K175*(Illustrator!$L$18+Illustrator!$C$40)/12 ->  | M175: =IF(A175=A174,M174,M174*(1+Assumptions!$C$16)) -> 0 | N175: =IF((SUM('Admin fee calc'!$B$9:$B$9)*(1+'RIY Cashflows'!$D$8)^('RIY Cashflows'!B175/12)+'RIY Cashflows'!D175)*Assumptions!$B$12>Assumptions!$B$17,Assumptions!$B$17*D175/(D175+SUM('Admin fee calc'!$B$9:$B$9)),Assumptions!$B$12*'RIY Cashflows'!D175) ->  | O175: =-MAX(MAX(D175*Assumptions!$B$12/12,N175),M175)-D175*Illustrator!#REF! ->  | P175: =IF(A175=A174,P174,P174*(1+Assumptions!$C$17)) -> 2.13292826e+11 | Q175: =-K175*(Illustrator!$C$38)/12 ->  | R175: =-K175*(Illustrator!$C$39)/12 ->  | AM175: 2013-09-01 | AO175: 00:00:00 | AP175: 0 | AQ175: 0 | AR175: 0 | AS175: 0
A176: 14 | B176: 166 | C176: 2013-10-01 | E176: 0 | F176: =IF(A176=A175,F175,F175*(1+Illustrator!$C$23)) -> 0 | G176: =-SUMPRODUCT(Illustrator!$D$13:$D$17,Illustrator!$Q$13:$Q$17)/SUM(Illustrator!$D$13:$D$17)*F176 ->  | H176: =-E176*Illustrator!$I$18 -> 0 | I176: =-F176*Illustrator!$C$31 -> 0 | J176: =IF(A176=A175,J175,J175*(1+Illustrator!$C$25)) -> 0 | L176: =-K176*(Illustrator!$L$18+Illustrator!$C$40)/12 ->  | M176: =IF(A176=A175,M175,M175*(1+Assumptions!$C$16)) -> 0 | N176: =IF((SUM('Admin fee calc'!$B$9:$B$9)*(1+'RIY Cashflows'!$D$8)^('RIY Cashflows'!B176/12)+'RIY Cashflows'!D176)*Assumptions!$B$12>Assumptions!$B$17,Assumptions!$B$17*D176/(D176+SUM('Admin fee calc'!$B$9:$B$9)),Assumptions!$B$12*'RIY Cashflows'!D176) ->  | O176: =-MAX(MAX(D176*Assumptions!$B$12/12,N176),M176)-D176*Illustrator!#REF! ->  | P176: =IF(A176=A175,P175,P175*(1+Assumptions!$C$17)) -> 2.13292826e+11 | Q176: =-K176*(Illustrator!$C$38)/12 ->  | R176: =-K176*(Illustrator!$C$39)/12 ->  | AM176: 2013-10-01 | AO176: 00:00:00 | AP176: 0 | AQ176: 0 | AR176: 0 | AS176: 0
A177: 14 | B177: 167 | C177: 2013-11-01 | E177: 0 | F177: =IF(A177=A176,F176,F176*(1+Illustrator!$C$23)) -> 0 | G177: =-SUMPRODUCT(Illustrator!$D$13:$D$17,Illustrator!$Q$13:$Q$17)/SUM(Illustrator!$D$13:$D$17)*F177 ->  | H177: =-E177*Illustrator!$I$18 -> 0 | I177: =-F177*Illustrator!$C$31 -> 0 | J177: =IF(A177=A176,J176,J176*(1+Illustrator!$C$25)) -> 0 | L177: =-K177*(Illustrator!$L$18+Illustrator!$C$40)/12 ->  | M177: =IF(A177=A176,M176,M176*(1+Assumptions!$C$16)) -> 0 | N177: =IF((SUM('Admin fee calc'!$B$9:$B$9)*(1+'RIY Cashflows'!$D$8)^('RIY Cashflows'!B177/12)+'RIY Cashflows'!D177)*Assumptions!$B$12>Assumptions!$B$17,Assumptions!$B$17*D177/(D177+SUM('Admin fee calc'!$B$9:$B$9)),Assumptions!$B$12*'RIY Cashflows'!D177) ->  | O177: =-MAX(MAX(D177*Assumptions!$B$12/12,N177),M177)-D177*Illustrator!#REF! ->  | P177: =IF(A177=A176,P176,P176*(1+Assumptions!$C$17)) -> 2.13292826e+11 | Q177: =-K177*(Illustrator!$C$38)/12 ->  | R177: =-K177*(Illustrator!$C$39)/12 ->  | AM177: 2013-11-01 | AO177: 00:00:00 | AP177: 0 | AQ177: 0 | AR177: 0 | AS177: 0
A178: 14 | B178: 168 | C178: 2013-12-01 | E178: 0 | F178: =IF(A178=A177,F177,F177*(1+Illustrator!$C$23)) -> 0 | G178: =-SUMPRODUCT(Illustrator!$D$13:$D$17,Illustrator!$Q$13:$Q$17)/SUM(Illustrator!$D$13:$D$17)*F178 ->  | H178: =-E178*Illustrator!$I$18 -> 0 | I178: =-F178*Illustrator!$C$31 -> 0 | J178: =IF(A178=A177,J177,J177*(1+Illustrator!$C$25)) -> 0 | L178: =-K178*(Illustrator!$L$18+Illustrator!$C$40)/12 ->  | M178: =IF(A178=A177,M177,M177*(1+Assumptions!$C$16)) -> 0 | N178: =IF((SUM('Admin fee calc'!$B$9:$B$9)*(1+'RIY Cashflows'!$D$8)^('RIY Cashflows'!B178/12)+'RIY Cashflows'!D178)*Assumptions!$B$12>Assumptions!$B$17,Assumptions!$B$17*D178/(D178+SUM('Admin fee calc'!$B$9:$B$9)),Assumptions!$B$12*'RIY Cashflows'!D178) ->  | O178: =-MAX(MAX(D178*Assumptions!$B$12/12,N178),M178)-D178*Illustrator!#REF! ->  | P178: =IF(A178=A177,P177,P177*(1+Assumptions!$C$17)) -> 2.13292826e+11 | Q178: =-K178*(Illustrator!$C$38)/12 ->  | R178: =-K178*(Illustrator!$C$39)/12 ->  | AM178: 2013-12-01 | AO178: 00:00:00 | AP178: 0 | AQ178: 0 | AR178: 0 | AS178: 0
A179: 15 | B179: 169 | C179: 2014-01-01 | E179: 0 | F179: =IF(A179=A178,F178,F178*(1+Illustrator!$C$23)) -> 0 | G179: =-SUMPRODUCT(Illustrator!$D$13:$D$17,Illustrator!$Q$13:$Q$17)/SUM(Illustrator!$D$13:$D$17)*F179 ->  | H179: =-E179*Illustrator!$I$18 -> 0 | I179: =-F179*Illustrator!$C$31 -> 0 | J179: =IF(A179=A178,J178,J178*(1+Illustrator!$C$25)) -> 0 | L179: =-K179*(Illustrator!$L$18+Illustrator!$C$40)/12 ->  | M179: =IF(A179=A178,M178,M178*(1+Assumptions!$C$16)) -> 0 | N179: =IF((SUM('Admin fee calc'!$B$9:$B$9)*(1+'RIY Cashflows'!$D$8)^('RIY Cashflows'!B179/12)+'RIY Cashflows'!D179)*Assumptions!$B$12>Assumptions!$B$17,Assumptions!$B$17*D179/(D179+SUM('Admin fee calc'!$B$9:$B$9)),Assumptions!$B$12*'RIY Cashflows'!D179) ->  | O179: =-MAX(MAX(D179*Assumptions!$B$12/12,N179),M179)-D179*Illustrator!#REF! ->  | P179: =IF(A179=A178,P178,P178*(1+Assumptions!$C$17)) -> 2.260903956e+11 | Q179: =-K179*(Illustrator!$C$38)/12 ->  | R179: =-K179*(Illustrator!$C$39)/12 ->  | AM179: 2014-01-01 | AO179: 00:00:00 | AP179: 0 | AQ179: 0 | AR179: 0 | AS179: 0
A180: 15 | B180: 170 | C180: 2014-02-01 | E180: 0 | F180: =IF(A180=A179,F179,F179*(1+Illustrator!$C$23)) -> 0 | G180: =-SUMPRODUCT(Illustrator!$D$13:$D$17,Illustrator!$Q$13:$Q$17)/SUM(Illustrator!$D$13:$D$17)*F180 ->  | H180: =-E180*Illustrator!$I$18 -> 0 | I180: =-F180*Illustrator!$C$31 -> 0 | J180: =IF(A180=A179,J179,J179*(1+Illustrator!$C$25)) -> 0 | L180: =-K180*(Illustrator!$L$18+Illustrator!$C$40)/12 ->  | M180: =IF(A180=A179,M179,M179*(1+Assumptions!$C$16)) -> 0 | N180: =IF((SUM('Admin fee calc'!$B$9:$B$9)*(1+'RIY Cashflows'!$D$8)^('RIY Cashflows'!B180/12)+'RIY Cashflows'!D180)*Assumptions!$B$12>Assumptions!$B$17,Assumptions!$B$17*D180/(D180+SUM('Admin fee calc'!$B$9:$B$9)),Assumptions!$B$12*'RIY Cashflows'!D180) ->  | O180: =-MAX(MAX(D180*Assumptions!$B$12/12,N180),M180)-D180*Illustrator!#REF! ->  | P180: =IF(A180=A179,P179,P179*(1+Assumptions!$C$17)) -> 2.260903956e+11 | Q180: =-K180*(Illustrator!$C$38)/12 ->  | R180: =-K180*(Illustrator!$C$39)/12 ->  | AM180: 2014-02-01 | AO180: 00:00:00 | AP180: 0 | AQ180: 0 | AR180: 0 | AS180: 0
A181: 15 | B181: 171 | C181: 2014-03-01 | E181: 0 | F181: =IF(A181=A180,F180,F180*(1+Illustrator!$C$23)) -> 0 | G181: =-SUMPRODUCT(Illustrator!$D$13:$D$17,Illustrator!$Q$13:$Q$17)/SUM(Illustrator!$D$13:$D$17)*F181 ->  | H181: =-E181*Illustrator!$I$18 -> 0 | I181: =-F181*Illustrator!$C$31 -> 0 | J181: =IF(A181=A180,J180,J180*(1+Illustrator!$C$25)) -> 0 | L181: =-K181*(Illustrator!$L$18+Illustrator!$C$40)/12 ->  | M181: =IF(A181=A180,M180,M180*(1+Assumptions!$C$16)) -> 0 | N181: =IF((SUM('Admin fee calc'!$B$9:$B$9)*(1+'RIY Cashflows'!$D$8)^('RIY Cashflows'!B181/12)+'RIY Cashflows'!D181)*Assumptions!$B$12>Assumptions!$B$17,Assumptions!$B$17*D181/(D181+SUM('Admin fee calc'!$B$9:$B$9)),Assumptions!$B$12*'RIY Cashflows'!D181) ->  | O181: =-MAX(MAX(D181*Assumptions!$B$12/12,N181),M181)-D181*Illustrator!#REF! ->  | P181: =IF(A181=A180,P180,P180*(1+Assumptions!$C$17)) -> 2.260903956e+11 | Q181: =-K181*(Illustrator!$C$38)/12 ->  | R181: =-K181*(Illustrator!$C$39)/12 ->  | AM181: 2014-03-01 | AO181: 00:00:00 | AP181: 0 | AQ181: 0 | AR181: 0 | AS181: 0
A182: 15 | B182: 172 | C182: 2014-04-01 | E182: 0 | F182: =IF(A182=A181,F181,F181*(1+Illustrator!$C$23)) -> 0 | G182: =-SUMPRODUCT(Illustrator!$D$13:$D$17,Illustrator!$Q$13:$Q$17)/SUM(Illustrator!$D$13:$D$17)*F182 ->  | H182: =-E182*Illustrator!$I$18 -> 0 | I182: =-F182*Illustrator!$C$31 -> 0 | J182: =IF(A182=A181,J181,J181*(1+Illustrator!$C$25)) -> 0 | L182: =-K182*(Illustrator!$L$18+Illustrator!$C$40)/12 ->  | M182: =IF(A182=A181,M181,M181*(1+Assumptions!$C$16)) -> 0 | N182: =IF((SUM('Admin fee calc'!$B$9:$B$9)*(1+'RIY Cashflows'!$D$8)^('RIY Cashflows'!B182/12)+'RIY Cashflows'!D182)*Assumptions!$B$12>Assumptions!$B$17,Assumptions!$B$17*D182/(D182+SUM('Admin fee calc'!$B$9:$B$9)),Assumptions!$B$12*'RIY Cashflows'!D182) ->  | O182: =-MAX(MAX(D182*Assumptions!$B$12/12,N182),M182)-D182*Illustrator!#REF! ->  | P182: =IF(A182=A181,P181,P181*(1+Assumptions!$C$17)) -> 2.260903956e+11 | Q182: =-K182*(Illustrator!$C$38)/12 ->  | R182: =-K182*(Illustrator!$C$39)/12 ->  | AM182: 2014-04-01 | AO182: 00:00:00 | AP182: 0 | AQ182: 0 | AR182: 0 | AS182: 0
A183: 15 | B183: 173 | C183: 2014-05-01 | E183: 0 | F183: =IF(A183=A182,F182,F182*(1+Illustrator!$C$23)) -> 0 | G183: =-SUMPRODUCT(Illustrator!$D$13:$D$17,Illustrator!$Q$13:$Q$17)/SUM(Illustrator!$D$13:$D$17)*F183 ->  | H183: =-E183*Illustrator!$I$18 -> 0 | I183: =-F183*Illustrator!$C$31 -> 0 | J183: =IF(A183=A182,J182,J182*(1+Illustrator!$C$25)) -> 0 | L183: =-K183*(Illustrator!$L$18+Illustrator!$C$40)/12 ->  | M183: =IF(A183=A182,M182,M182*(1+Assumptions!$C$16)) -> 0 | N183: =IF((SUM('Admin fee calc'!$B$9:$B$9)*(1+'RIY Cashflows'!$D$8)^('RIY Cashflows'!B183/12)+'RIY Cashflows'!D183)*Assumptions!$B$12>Assumptions!$B$17,Assumptions!$B$17*D183/(D183+SUM('Admin fee calc'!$B$9:$B$9)),Assumptions!$B$12*'RIY Cashflows'!D183) ->  | O183: =-MAX(MAX(D183*Assumptions!$B$12/12,N183),M183)-D183*Illustrator!#REF! ->  | P183: =IF(A183=A182,P182,P182*(1+Assumptions!$C$17)) -> 2.260903956e+11 | Q183: =-K183*(Illustrator!$C$38)/12 ->  | R183: =-K183*(Illustrator!$C$39)/12 ->  | AM183: 2014-05-01 | AO183: 00:00:00 | AP183: 0 | AQ183: 0 | AR183: 0 | AS183: 0
A184: 15 | B184: 174 | C184: 2014-06-01 | E184: 0 | F184: =IF(A184=A183,F183,F183*(1+Illustrator!$C$23)) -> 0 | G184: =-SUMPRODUCT(Illustrator!$D$13:$D$17,Illustrator!$Q$13:$Q$17)/SUM(Illustrator!$D$13:$D$17)*F184 ->  | H184: =-E184*Illustrator!$I$18 -> 0 | I184: =-F184*Illustrator!$C$31 -> 0 | J184: =IF(A184=A183,J183,J183*(1+Illustrator!$C$25)) -> 0 | L184: =-K184*(Illustrator!$L$18+Illustrator!$C$40)/12 ->  | M184: =IF(A184=A183,M183,M183*(1+Assumptions!$C$16)) -> 0 | N184: =IF((SUM('Admin fee calc'!$B$9:$B$9)*(1+'RIY Cashflows'!$D$8)^('RIY Cashflows'!B184/12)+'RIY Cashflows'!D184)*Assumptions!$B$12>Assumptions!$B$17,Assumptions!$B$17*D184/(D184+SUM('Admin fee calc'!$B$9:$B$9)),Assumptions!$B$12*'RIY Cashflows'!D184) ->  | O184: =-MAX(MAX(D184*Assumptions!$B$12/12,N184),M184)-D184*Illustrator!#REF! ->  | P184: =IF(A184=A183,P183,P183*(1+Assumptions!$C$17)) -> 2.260903956e+11 | Q184: =-K184*(Illustrator!$C$38)/12 ->  | R184: =-K184*(Illustrator!$C$39)/12 ->  | AM184: 2014-06-01 | AO184: 00:00:00 | AP184: 0 | AQ184: 0 | AR184: 0 | AS184: 0
A185: 15 | B185: 175 | C185: 2014-07-01 | E185: 0 | F185: =IF(A185=A184,F184,F184*(1+Illustrator!$C$23)) -> 0 | G185: =-SUMPRODUCT(Illustrator!$D$13:$D$17,Illustrator!$Q$13:$Q$17)/SUM(Illustrator!$D$13:$D$17)*F185 ->  | H185: =-E185*Illustrator!$I$18 -> 0 | I185: =-F185*Illustrator!$C$31 -> 0 | J185: =IF(A185=A184,J184,J184*(1+Illustrator!$C$25)) -> 0 | L185: =-K185*(Illustrator!$L$18+Illustrator!$C$40)/12 ->  | M185: =IF(A185=A184,M184,M184*(1+Assumptions!$C$16)) -> 0 | N185: =IF((SUM('Admin fee calc'!$B$9:$B$9)*(1+'RIY Cashflows'!$D$8)^('RIY Cashflows'!B185/12)+'RIY Cashflows'!D185)*Assumptions!$B$12>Assumptions!$B$17,Assumptions!$B$17*D185/(D185+SUM('Admin fee calc'!$B$9:$B$9)),Assumptions!$B$12*'RIY Cashflows'!D185) ->  | O185: =-MAX(MAX(D185*Assumptions!$B$12/12,N185),M185)-D185*Illustrator!#REF! ->  | P185: =IF(A185=A184,P184,P184*(1+Assumptions!$C$17)) -> 2.260903956e+11 | Q185: =-K185*(Illustrator!$C$38)/12 ->  | R185: =-K185*(Illustrator!$C$39)/12 ->  | AM185: 2014-07-01 | AO185: 00:00:00 | AP185: 0 | AQ185: 0 | AR185: 0 | AS185: 0
A186: 15 | B186: 176 | C186: 2014-08-01 | E186: 0 | F186: =IF(A186=A185,F185,F185*(1+Illustrator!$C$23)) -> 0 | G186: =-SUMPRODUCT(Illustrator!$D$13:$D$17,Illustrator!$Q$13:$Q$17)/SUM(Illustrator!$D$13:$D$17)*F186 ->  | H186: =-E186*Illustrator!$I$18 -> 0 | I186: =-F186*Illustrator!$C$31 -> 0 | J186: =IF(A186=A185,J185,J185*(1+Illustrator!$C$25)) -> 0 | L186: =-K186*(Illustrator!$L$18+Illustrator!$C$40)/12 ->  | M186: =IF(A186=A185,M185,M185*(1+Assumptions!$C$16)) -> 0 | N186: =IF((SUM('Admin fee calc'!$B$9:$B$9)*(1+'RIY Cashflows'!$D$8)^('RIY Cashflows'!B186/12)+'RIY Cashflows'!D186)*Assumptions!$B$12>Assumptions!$B$17,Assumptions!$B$17*D186/(D186+SUM('Admin fee calc'!$B$9:$B$9)),Assumptions!$B$12*'RIY Cashflows'!D186) ->  | O186: =-MAX(MAX(D186*Assumptions!$B$12/12,N186),M186)-D186*Illustrator!#REF! ->  | P186: =IF(A186=A185,P185,P185*(1+Assumptions!$C$17)) -> 2.260903956e+11 | Q186: =-K186*(Illustrator!$C$38)/12 ->  | R186: =-K186*(Illustrator!$C$39)/12 ->  | AM186: 2014-08-01 | AO186: 00:00:00 | AP186: 0 | AQ186: 0 | AR186: 0 | AS186: 0
A187: 15 | B187: 177 | C187: 2014-09-01 | E187: 0 | F187: =IF(A187=A186,F186,F186*(1+Illustrator!$C$23)) -> 0 | G187: =-SUMPRODUCT(Illustrator!$D$13:$D$17,Illustrator!$Q$13:$Q$17)/SUM(Illustrator!$D$13:$D$17)*F187 ->  | H187: =-E187*Illustrator!$I$18 -> 0 | I187: =-F187*Illustrator!$C$31 -> 0 | J187: =IF(A187=A186,J186,J186*(1+Illustrator!$C$25)) -> 0 | L187: =-K187*(Illustrator!$L$18+Illustrator!$C$40)/12 ->  | M187: =IF(A187=A186,M186,M186*(1+Assumptions!$C$16)) -> 0 | N187: =IF((SUM('Admin fee calc'!$B$9:$B$9)*(1+'RIY Cashflows'!$D$8)^('RIY Cashflows'!B187/12)+'RIY Cashflows'!D187)*Assumptions!$B$12>Assumptions!$B$17,Assumptions!$B$17*D187/(D187+SUM('Admin fee calc'!$B$9:$B$9)),Assumptions!$B$12*'RIY Cashflows'!D187) ->  | O187: =-MAX(MAX(D187*Assumptions!$B$12/12,N187),M187)-D187*Illustrator!#REF! ->  | P187: =IF(A187=A186,P186,P186*(1+Assumptions!$C$17)) -> 2.260903956e+11 | Q187: =-K187*(Illustrator!$C$38)/12 ->  | R187: =-K187*(Illustrator!$C$39)/12 ->  | AM187: 2014-09-01 | AO187: 00:00:00 | AP187: 0 | AQ187: 0 | AR187: 0 | AS187: 0
A188: 15 | B188: 178 | C188: 2014-10-01 | E188: 0 | F188: =IF(A188=A187,F187,F187*(1+Illustrator!$C$23)) -> 0 | G188: =-SUMPRODUCT(Illustrator!$D$13:$D$17,Illustrator!$Q$13:$Q$17)/SUM(Illustrator!$D$13:$D$17)*F188 ->  | H188: =-E188*Illustrator!$I$18 -> 0 | I188: =-F188*Illustrator!$C$31 -> 0 | J188: =IF(A188=A187,J187,J187*(1+Illustrator!$C$25)) -> 0 | L188: =-K188*(Illustrator!$L$18+Illustrator!$C$40)/12 ->  | M188: =IF(A188=A187,M187,M187*(1+Assumptions!$C$16)) -> 0 | N188: =IF((SUM('Admin fee calc'!$B$9:$B$9)*(1+'RIY Cashflows'!$D$8)^('RIY Cashflows'!B188/12)+'RIY Cashflows'!D188)*Assumptions!$B$12>Assumptions!$B$17,Assumptions!$B$17*D188/(D188+SUM('Admin fee calc'!$B$9:$B$9)),Assumptions!$B$12*'RIY Cashflows'!D188) ->  | O188: =-MAX(MAX(D188*Assumptions!$B$12/12,N188),M188)-D188*Illustrator!#REF! ->  | P188: =IF(A188=A187,P187,P187*(1+Assumptions!$C$17)) -> 2.260903956e+11 | Q188: =-K188*(Illustrator!$C$38)/12 ->  | R188: =-K188*(Illustrator!$C$39)/12 ->  | AM188: 2014-10-01 | AO188: 00:00:00 | AP188: 0 | AQ188: 0 | AR188: 0 | AS188: 0
A189: 15 | B189: 179 | C189: 2014-11-01 | E189: 0 | F189: =IF(A189=A188,F188,F188*(1+Illustrator!$C$23)) -> 0 | G189: =-SUMPRODUCT(Illustrator!$D$13:$D$17,Illustrator!$Q$13:$Q$17)/SUM(Illustrator!$D$13:$D$17)*F189 ->  | H189: =-E189*Illustrator!$I$18 -> 0 | I189: =-F189*Illustrator!$C$31 -> 0 | J189: =IF(A189=A188,J188,J188*(1+Illustrator!$C$25)) -> 0 | L189: =-K189*(Illustrator!$L$18+Illustrator!$C$40)/12 ->  | M189: =IF(A189=A188,M188,M188*(1+Assumptions!$C$16)) -> 0 | N189: =IF((SUM('Admin fee calc'!$B$9:$B$9)*(1+'RIY Cashflows'!$D$8)^('RIY Cashflows'!B189/12)+'RIY Cashflows'!D189)*Assumptions!$B$12>Assumptions!$B$17,Assumptions!$B$17*D189/(D189+SUM('Admin fee calc'!$B$9:$B$9)),Assumptions!$B$12*'RIY Cashflows'!D189) ->  | O189: =-MAX(MAX(D189*Assumptions!$B$12/12,N189),M189)-D189*Illustrator!#REF! ->  | P189: =IF(A189=A188,P188,P188*(1+Assumptions!$C$17)) -> 2.260903956e+11 | Q189: =-K189*(Illustrator!$C$38)/12 ->  | R189: =-K189*(Illustrator!$C$39)/12 ->  | AM189: 2014-11-01 | AO189: 00:00:00 | AP189: 0 | AQ189: 0 | AR189: 0 | AS189: 0
A190: 15 | B190: 180 | C190: 2014-12-01 | E190: 0 | F190: =IF(A190=A189,F189,F189*(1+Illustrator!$C$23)) -> 0 | G190: =-SUMPRODUCT(Illustrator!$D$13:$D$17,Illustrator!$Q$13:$Q$17)/SUM(Illustrator!$D$13:$D$17)*F190 ->  | H190: =-E190*Illustrator!$I$18 -> 0 | I190: =-F190*Illustrator!$C$31 -> 0 | J190: =IF(A190=A189,J189,J189*(1+Illustrator!$C$25)) -> 0 | L190: =-K190*(Illustrator!$L$18+Illustrator!$C$40)/12 ->  | M190: =IF(A190=A189,M189,M189*(1+Assumptions!$C$16)) -> 0 | N190: =IF((SUM('Admin fee calc'!$B$9:$B$9)*(1+'RIY Cashflows'!$D$8)^('RIY Cashflows'!B190/12)+'RIY Cashflows'!D190)*Assumptions!$B$12>Assumptions!$B$17,Assumptions!$B$17*D190/(D190+SUM('Admin fee calc'!$B$9:$B$9)),Assumptions!$B$12*'RIY Cashflows'!D190) ->  | O190: =-MAX(MAX(D190*Assumptions!$B$12/12,N190),M190)-D190*Illustrator!#REF! ->  | P190: =IF(A190=A189,P189,P189*(1+Assumptions!$C$17)) -> 2.260903956e+11 | Q190: =-K190*(Illustrator!$C$38)/12 ->  | R190: =-K190*(Illustrator!$C$39)/12 ->  | AM190: 2014-12-01 | AO190: 00:00:00 | AP190: 0 | AQ190: 0 | AR190: 0 | AS190: 0
A191: 16 | B191: 181 | C191: 2015-01-01 | E191: 0 | F191: =IF(A191=A190,F190,F190*(1+Illustrator!$C$23)) -> 0 | G191: =-SUMPRODUCT(Illustrator!$D$13:$D$17,Illustrator!$Q$13:$Q$17)/SUM(Illustrator!$D$13:$D$17)*F191 ->  | H191: =-E191*Illustrator!$I$18 -> 0 | I191: =-F191*Illustrator!$C$31 -> 0 | J191: =IF(A191=A190,J190,J190*(1+Illustrator!$C$25)) -> 0 | L191: =-K191*(Illustrator!$L$18+Illustrator!$C$40)/12 ->  | M191: =IF(A191=A190,M190,M190*(1+Assumptions!$C$16)) -> 0 | N191: =IF((SUM('Admin fee calc'!$B$9:$B$9)*(1+'RIY Cashflows'!$D$8)^('RIY Cashflows'!B191/12)+'RIY Cashflows'!D191)*Assumptions!$B$12>Assumptions!$B$17,Assumptions!$B$17*D191/(D191+SUM('Admin fee calc'!$B$9:$B$9)),Assumptions!$B$12*'RIY Cashflows'!D191) ->  | O191: =-MAX(MAX(D191*Assumptions!$B$12/12,N191),M191)-D191*Illustrator!#REF! ->  | P191: =IF(A191=A190,P190,P190*(1+Assumptions!$C$17)) -> 2.396558193e+11 | Q191: =-K191*(Illustrator!$C$38)/12 ->  | R191: =-K191*(Illustrator!$C$39)/12 ->  | AM191: 2015-01-01 | AO191: 00:00:00 | AP191: 0 | AQ191: 0 | AR191: 0 | AS191: 0
A192: 16 | B192: 182 | C192: 2015-02-01 | E192: 0 | F192: =IF(A192=A191,F191,F191*(1+Illustrator!$C$23)) -> 0 | G192: =-SUMPRODUCT(Illustrator!$D$13:$D$17,Illustrator!$Q$13:$Q$17)/SUM(Illustrator!$D$13:$D$17)*F192 ->  | H192: =-E192*Illustrator!$I$18 -> 0 | I192: =-F192*Illustrator!$C$31 -> 0 | J192: =IF(A192=A191,J191,J191*(1+Illustrator!$C$25)) -> 0 | L192: =-K192*(Illustrator!$L$18+Illustrator!$C$40)/12 ->  | M192: =IF(A192=A191,M191,M191*(1+Assumptions!$C$16)) -> 0 | N192: =IF((SUM('Admin fee calc'!$B$9:$B$9)*(1+'RIY Cashflows'!$D$8)^('RIY Cashflows'!B192/12)+'RIY Cashflows'!D192)*Assumptions!$B$12>Assumptions!$B$17,Assumptions!$B$17*D192/(D192+SUM('Admin fee calc'!$B$9:$B$9)),Assumptions!$B$12*'RIY Cashflows'!D192) ->  | O192: =-MAX(MAX(D192*Assumptions!$B$12/12,N192),M192)-D192*Illustrator!#REF! ->  | P192: =IF(A192=A191,P191,P191*(1+Assumptions!$C$17)) -> 2.396558193e+11 | Q192: =-K192*(Illustrator!$C$38)/12 ->  | R192: =-K192*(Illustrator!$C$39)/12 ->  | AM192: 2015-02-01 | AO192: 00:00:00 | AP192: 0 | AQ192: 0 | AR192: 0 | AS192: 0
A193: 16 | B193: 183 | C193: 2015-03-01 | E193: 0 | F193: =IF(A193=A192,F192,F192*(1+Illustrator!$C$23)) -> 0 | G193: =-SUMPRODUCT(Illustrator!$D$13:$D$17,Illustrator!$Q$13:$Q$17)/SUM(Illustrator!$D$13:$D$17)*F193 ->  | H193: =-E193*Illustrator!$I$18 -> 0 | I193: =-F193*Illustrator!$C$31 -> 0 | J193: =IF(A193=A192,J192,J192*(1+Illustrator!$C$25)) -> 0 | L193: =-K193*(Illustrator!$L$18+Illustrator!$C$40)/12 ->  | M193: =IF(A193=A192,M192,M192*(1+Assumptions!$C$16)) -> 0 | N193: =IF((SUM('Admin fee calc'!$B$9:$B$9)*(1+'RIY Cashflows'!$D$8)^('RIY Cashflows'!B193/12)+'RIY Cashflows'!D193)*Assumptions!$B$12>Assumptions!$B$17,Assumptions!$B$17*D193/(D193+SUM('Admin fee calc'!$B$9:$B$9)),Assumptions!$B$12*'RIY Cashflows'!D193) ->  | O193: =-MAX(MAX(D193*Assumptions!$B$12/12,N193),M193)-D193*Illustrator!#REF! ->  | P193: =IF(A193=A192,P192,P192*(1+Assumptions!$C$17)) -> 2.396558193e+11 | Q193: =-K193*(Illustrator!$C$38)/12 ->  | R193: =-K193*(Illustrator!$C$39)/12 ->  | AM193: 2015-03-01 | AO193: 00:00:00 | AP193: 0 | AQ193: 0 | AR193: 0 | AS193: 0
A194: 16 | B194: 184 | C194: 2015-04-01 | E194: 0 | F194: =IF(A194=A193,F193,F193*(1+Illustrator!$C$23)) -> 0 | G194: =-SUMPRODUCT(Illustrator!$D$13:$D$17,Illustrator!$Q$13:$Q$17)/SUM(Illustrator!$D$13:$D$17)*F194 ->  | H194: =-E194*Illustrator!$I$18 -> 0 | I194: =-F194*Illustrator!$C$31 -> 0 | J194: =IF(A194=A193,J193,J193*(1+Illustrator!$C$25)) -> 0 | L194: =-K194*(Illustrator!$L$18+Illustrator!$C$40)/12 ->  | M194: =IF(A194=A193,M193,M193*(1+Assumptions!$C$16)) -> 0 | N194: =IF((SUM('Admin fee calc'!$B$9:$B$9)*(1+'RIY Cashflows'!$D$8)^('RIY Cashflows'!B194/12)+'RIY Cashflows'!D194)*Assumptions!$B$12>Assumptions!$B$17,Assumptions!$B$17*D194/(D194+SUM('Admin fee calc'!$B$9:$B$9)),Assumptions!$B$12*'RIY Cashflows'!D194) ->  | O194: =-MAX(MAX(D194*Assumptions!$B$12/12,N194),M194)-D194*Illustrator!#REF! ->  | P194: =IF(A194=A193,P193,P193*(1+Assumptions!$C$17)) -> 2.396558193e+11 | Q194: =-K194*(Illustrator!$C$38)/12 ->  | R194: =-K194*(Illustrator!$C$39)/12 ->  | AM194: 2015-04-01 | AO194: 00:00:00 | AP194: 0 | AQ194: 0 | AR194: 0 | AS194: 0
A195: 16 | B195: 185 | C195: 2015-05-01 | E195: 0 | F195: =IF(A195=A194,F194,F194*(1+Illustrator!$C$23)) -> 0 | G195: =-SUMPRODUCT(Illustrator!$D$13:$D$17,Illustrator!$Q$13:$Q$17)/SUM(Illustrator!$D$13:$D$17)*F195 ->  | H195: =-E195*Illustrator!$I$18 -> 0 | I195: =-F195*Illustrator!$C$31 -> 0 | J195: =IF(A195=A194,J194,J194*(1+Illustrator!$C$25)) -> 0 | L195: =-K195*(Illustrator!$L$18+Illustrator!$C$40)/12 ->  | M195: =IF(A195=A194,M194,M194*(1+Assumptions!$C$16)) -> 0 | N195: =IF((SUM('Admin fee calc'!$B$9:$B$9)*(1+'RIY Cashflows'!$D$8)^('RIY Cashflows'!B195/12)+'RIY Cashflows'!D195)*Assumptions!$B$12>Assumptions!$B$17,Assumptions!$B$17*D195/(D195+SUM('Admin fee calc'!$B$9:$B$9)),Assumptions!$B$12*'RIY Cashflows'!D195) ->  | O195: =-MAX(MAX(D195*Assumptions!$B$12/12,N195),M195)-D195*Illustrator!#REF! ->  | P195: =IF(A195=A194,P194,P194*(1+Assumptions!$C$17)) -> 2.396558193e+11 | Q195: =-K195*(Illustrator!$C$38)/12 ->  | R195: =-K195*(Illustrator!$C$39)/12 ->  | AM195: 2015-05-01 | AO195: 00:00:00 | AP195: =IF($AN195="carry on",$L194+$R194+SUM($E195:$J195), IF($AN195="2nd last line",$L194+$R194,IF($AN195="last line",-$S193,0))) -> 0 | AQ195: =IF($AN195="carry on",$L194+$R194+SUM($E195:$J195)-$H195-$I195-$R194, IF($AN195="2nd last line",$L194+$R194-$R194,IF($AN195="last line",-$S193,0))) -> 0 | AR195: =IF($AN195="carry on",$L194+$R194+SUM($E195:$J195)-$G195-$Q195, IF($AN195="2nd last line",$L194+$R194-$G195-$Q195,IF($AN195="last line",-$S193,0))) -> 0 | AS195: =IF($AN195="carry on",$L194+$R194+SUM($E195:$J195), IF($AN195="2nd last line",$L194+$R194,IF($AN195="last line",-$S193,0))) -> 0
A196: 16 | B196: 186 | C196: 2015-06-01 | E196: 0 | F196: =IF(A196=A195,F195,F195*(1+Illustrator!$C$23)) -> 0 | G196: =-SUMPRODUCT(Illustrator!$D$13:$D$17,Illustrator!$Q$13:$Q$17)/SUM(Illustrator!$D$13:$D$17)*F196 ->  | H196: =-E196*Illustrator!$I$18 -> 0 | I196: =-F196*Illustrator!$C$31 -> 0 | J196: =IF(A196=A195,J195,J195*(1+Illustrator!$C$25)) -> 0 | L196: =-K196*(Illustrator!$L$18+Illustrator!$C$40)/12 ->  | M196: =IF(A196=A195,M195,M195*(1+Assumptions!$C$16)) -> 0 | N196: =IF((SUM('Admin fee calc'!$B$9:$B$9)*(1+'RIY Cashflows'!$D$8)^('RIY Cashflows'!B196/12)+'RIY Cashflows'!D196)*Assumptions!$B$12>Assumptions!$B$17,Assumptions!$B$17*D196/(D196+SUM('Admin fee calc'!$B$9:$B$9)),Assumptions!$B$12*'RIY Cashflows'!D196) ->  | O196: =-MAX(MAX(D196*Assumptions!$B$12/12,N196),M196)-D196*Illustrator!#REF! ->  | P196: =IF(A196=A195,P195,P195*(1+Assumptions!$C$17)) -> 2.396558193e+11 | Q196: =-K196*(Illustrator!$C$38)/12 ->  | R196: =-K196*(Illustrator!$C$39)/12 ->  | AM196: 2015-06-01 | AO196: 00:00:00 | AP196: 0 | AQ196: 0 | AR196: 0 | AS196: 0
A197: 16 | B197: 187 | C197: 2015-07-01 | E197: 0 | F197: =IF(A197=A196,F196,F196*(1+Illustrator!$C$23)) -> 0 | G197: =-SUMPRODUCT(Illustrator!$D$13:$D$17,Illustrator!$Q$13:$Q$17)/SUM(Illustrator!$D$13:$D$17)*F197 ->  | H197: =-E197*Illustrator!$I$18 -> 0 | I197: =-F197*Illustrator!$C$31 -> 0 | J197: =IF(A197=A196,J196,J196*(1+Illustrator!$C$25)) -> 0 | L197: =-K197*(Illustrator!$L$18+Illustrator!$C$40)/12 ->  | M197: =IF(A197=A196,M196,M196*(1+Assumptions!$C$16)) -> 0 | N197: =IF((SUM('Admin fee calc'!$B$9:$B$9)*(1+'RIY Cashflows'!$D$8)^('RIY Cashflows'!B197/12)+'RIY Cashflows'!D197)*Assumptions!$B$12>Assumptions!$B$17,Assumptions!$B$17*D197/(D197+SUM('Admin fee calc'!$B$9:$B$9)),Assumptions!$B$12*'RIY Cashflows'!D197) ->  | O197: =-MAX(MAX(D197*Assumptions!$B$12/12,N197),M197)-D197*Illustrator!#REF! ->  | P197: =IF(A197=A196,P196,P196*(1+Assumptions!$C$17)) -> 2.396558193e+11 | Q197: =-K197*(Illustrator!$C$38)/12 ->  | R197: =-K197*(Illustrator!$C$39)/12 ->  | AM197: 2015-07-01 | AO197: 00:00:00 | AP197: 0 | AQ197: 0 | AR197: 0 | AS197: 0
A198: 16 | B198: 188 | C198: 2015-08-01 | E198: 0 | F198: =IF(A198=A197,F197,F197*(1+Illustrator!$C$23)) -> 0 | G198: =-SUMPRODUCT(Illustrator!$D$13:$D$17,Illustrator!$Q$13:$Q$17)/SUM(Illustrator!$D$13:$D$17)*F198 ->  | H198: =-E198*Illustrator!$I$18 -> 0 | I198: =-F198*Illustrator!$C$31 -> 0 | J198: =IF(A198=A197,J197,J197*(1+Illustrator!$C$25)) -> 0 | L198: =-K198*(Illustrator!$L$18+Illustrator!$C$40)/12 ->  | M198: =IF(A198=A197,M197,M197*(1+Assumptions!$C$16)) -> 0 | N198: =IF((SUM('Admin fee calc'!$B$9:$B$9)*(1+'RIY Cashflows'!$D$8)^('RIY Cashflows'!B198/12)+'RIY Cashflows'!D198)*Assumptions!$B$12>Assumptions!$B$17,Assumptions!$B$17*D198/(D198+SUM('Admin fee calc'!$B$9:$B$9)),Assumptions!$B$12*'RIY Cashflows'!D198) ->  | O198: =-MAX(MAX(D198*Assumptions!$B$12/12,N198),M198)-D198*Illustrator!#REF! ->  | P198: =IF(A198=A197,P197,P197*(1+Assumptions!$C$17)) -> 2.396558193e+11 | Q198: =-K198*(Illustrator!$C$38)/12 ->  | R198: =-K198*(Illustrator!$C$39)/12 ->  | AM198: 2015-08-01 | AO198: 00:00:00 | AP198: 0 | AQ198: 0 | AR198: 0 | AS198: 0
A199: 16 | B199: 189 | C199: 2015-09-01 | E199: 0 | F199: =IF(A199=A198,F198,F198*(1+Illustrator!$C$23)) -> 0 | G199: =-SUMPRODUCT(Illustrator!$D$13:$D$17,Illustrator!$Q$13:$Q$17)/SUM(Illustrator!$D$13:$D$17)*F199 ->  | H199: =-E199*Illustrator!$I$18 -> 0 | I199: =-F199*Illustrator!$C$31 -> 0 | J199: =IF(A199=A198,J198,J198*(1+Illustrator!$C$25)) -> 0 | L199: =-K199*(Illustrator!$L$18+Illustrator!$C$40)/12 ->  | M199: =IF(A199=A198,M198,M198*(1+Assumptions!$C$16)) -> 0 | N199: =IF((SUM('Admin fee calc'!$B$9:$B$9)*(1+'RIY Cashflows'!$D$8)^('RIY Cashflows'!B199/12)+'RIY Cashflows'!D199)*Assumptions!$B$12>Assumptions!$B$17,Assumptions!$B$17*D199/(D199+SUM('Admin fee calc'!$B$9:$B$9)),Assumptions!$B$12*'RIY Cashflows'!D199) ->  | O199: =-MAX(MAX(D199*Assumptions!$B$12/12,N199),M199)-D199*Illustrator!#REF! ->  | P199: =IF(A199=A198,P198,P198*(1+Assumptions!$C$17)) -> 2.396558193e+11 | Q199: =-K199*(Illustrator!$C$38)/12 ->  | R199: =-K199*(Illustrator!$C$39)/12 ->  | AM199: 2015-09-01 | AO199: 00:00:00 | AP199: 0 | AQ199: 0 | AR199: 0 | AS199: 0
A200: 16 | B200: 190 | C200: 2015-10-01 | E200: 0 | F200: =IF(A200=A199,F199,F199*(1+Illustrator!$C$23)) -> 0 | G200: =-SUMPRODUCT(Illustrator!$D$13:$D$17,Illustrator!$Q$13:$Q$17)/SUM(Illustrator!$D$13:$D$17)*F200 ->  | H200: =-E200*Illustrator!$I$18 -> 0 | I200: =-F200*Illustrator!$C$31 -> 0 | J200: =IF(A200=A199,J199,J199*(1+Illustrator!$C$25)) -> 0 | L200: =-K200*(Illustrator!$L$18+Illustrator!$C$40)/12 ->  | M200: =IF(A200=A199,M199,M199*(1+Assumptions!$C$16)) -> 0 | N200: =IF((SUM('Admin fee calc'!$B$9:$B$9)*(1+'RIY Cashflows'!$D$8)^('RIY Cashflows'!B200/12)+'RIY Cashflows'!D200)*Assumptions!$B$12>Assumptions!$B$17,Assumptions!$B$17*D200/(D200+SUM('Admin fee calc'!$B$9:$B$9)),Assumptions!$B$12*'RIY Cashflows'!D200) ->  | O200: =-MAX(MAX(D200*Assumptions!$B$12/12,N200),M200)-D200*Illustrator!#REF! ->  | P200: =IF(A200=A199,P199,P199*(1+Assumptions!$C$17)) -> 2.396558193e+11 | Q200: =-K200*(Illustrator!$C$38)/12 ->  | R200: =-K200*(Illustrator!$C$39)/12 ->  | AM200: 2015-10-01 | AO200: 00:00:00 | AP200: 0 | AQ200: 0 | AR200: 0 | AS200: 0
A201: 16 | B201: 191 | C201: 2015-11-01 | E201: 0 | F201: =IF(A201=A200,F200,F200*(1+Illustrator!$C$23)) -> 0 | G201: =-SUMPRODUCT(Illustrator!$D$13:$D$17,Illustrator!$Q$13:$Q$17)/SUM(Illustrator!$D$13:$D$17)*F201 ->  | H201: =-E201*Illustrator!$I$18 -> 0 | I201: =-F201*Illustrator!$C$31 -> 0 | J201: =IF(A201=A200,J200,J200*(1+Illustrator!$C$25)) -> 0 | L201: =-K201*(Illustrator!$L$18+Illustrator!$C$40)/12 ->  | M201: =IF(A201=A200,M200,M200*(1+Assumptions!$C$16)) -> 0 | N201: =IF((SUM('Admin fee calc'!$B$9:$B$9)*(1+'RIY Cashflows'!$D$8)^('RIY Cashflows'!B201/12)+'RIY Cashflows'!D201)*Assumptions!$B$12>Assumptions!$B$17,Assumptions!$B$17*D201/(D201+SUM('Admin fee calc'!$B$9:$B$9)),Assumptions!$B$12*'RIY Cashflows'!D201) ->  | O201: =-MAX(MAX(D201*Assumptions!$B$12/12,N201),M201)-D201*Illustrator!#REF! ->  | P201: =IF(A201=A200,P200,P200*(1+Assumptions!$C$17)) -> 2.396558193e+11 | Q201: =-K201*(Illustrator!$C$38)/12 ->  | R201: =-K201*(Illustrator!$C$39)/12 ->  | AM201: 2015-11-01 | AO201: 00:00:00 | AP201: 0 | AQ201: 0 | AR201: 0 | AS201: 0
... 410 more rows

Sheet Admin fee calc (hidden)
A1: Initial Admin Fee Percentage: | B1: =SUMPRODUCT(Input!$E$3:$E$12,Input!$Q$3:$Q$12)/SUM(Input!$E$3:$E$12) ->  | C1: Min: | D1: =Assumptions!B16*12 -> 0
A2: Ongoing Admin Fee Percentage: | B2: =Assumptions!B12/B16 ->  | C2: Max: | D2: =Assumptions!B17*12 -> 1199999999988
B4: %
A5: Lump Sum Initial Planner Fee | B5: =Input!A18 -> 
A6: Scheduled Initial Planner Fee | B6: =Input!B18 -> 
A7: Ongoing Planner Fee | B7: =Input!C18 -> 
A9: Existing Contract Value: | B9: =Input!C13 -> 0
A11: New Contract Lump Sum: | B11: =Input!D13 -> 0 | C11: =B11-(B11*B5) -> 
A12: Scheduled Investment Amount: | B12: =Input!E13 -> 0 | C12: =B12-(B12*B6)-(B12*B1) -> 
A13: Frequency: | B13: Yearly | C13: =C12*IF(B13="monthly",12,IF(B13="Quarterly",4,IF(B13="Bi Annual",2,1)))-IF(AND(B9=0,B11=0),B1,0) ->  | D13: =B12*IF(B13="monthly",12,IF(B13="Quarterly",4,IF(B13="Bi Annual",2,1))) -> 0
A15: Total (including other contracts): | B15: =C11+C13+B9 -> 
A16: Total (without other contracts): | B16: =B9+C11+C13 -> 
A17: % of total assets | B17: =B16/B15 -> 
A19: Admin Fee Rand Amount: | B19: =(C13+B9+C11)*B2 -> 
A20: Max applied? | B20: =IF(B19>D2,D2,B19) ->  | C20: =B20*B17 -> 
A21: Adjusted rate | B21: =IF(B20<D2,B16*B2,B20*B16/B15) ->  | C21: =B16*B2 -> 
A22: Adjusted CBC Fee: | B22: =B21/B16 -> 

Sheet How to do RIY (hidden)

Sheet Lists (hidden)
A1: Yes | B1: Monthly | C1: Retirement Product | E1: Fund A | F1: 0.0342 | G1: 0.0228
A2: No | C2: Living Annuity - Monthly Payment | E2: Fund B | F2: 0.0342 | G2: 0.0228
C3: Living Annuity - Quarterly Payment | E3: Fund C | F3: 0.0342 | G3: 0.0228
C4: Living Annuity - Bi-Annual Payment | E4: Fund D | F4: 0.0068 | G4: 0.0046
C5: Living Annuity - Annual Payment | E5: Fund E | F5: 0.0068 | G5: 0.0046
C6: OMUT Direct | E6: Fund F | F6: 0.0342 | G6: 0.0228
C7: Tax Free Investment | E7: Fund G | F7: 0.0068 | G7: 0.0046
E8: Fund H | F8: 0.0342 | G8: 0.0228
